Workbook

Sheet Spis treści
B1: Cennik - Urządzenia Spawalnicze
B8: Ważny od 01.04.2021
B12: 2 | C12: Cennik szczegółowy urządzeń
B13: 3 | C13: Zestawy pakietowe urządzeń
B14: 4 | C14: Cennik części zamiennych i uchwytów spawalniczych
B15: 5 | C15: Kompletacja - OrigoMig 320, 430, 510
B16: 6 | C16: Kompletacja - Warrior 400i, 500i + Robust Feed PRO
B17: 6a | C17: Kompletacja - Warrior 400i, 500i + Warrior Feed 304
B18: 9 | C18: Kompletacja - Mig 4004i Pulse (w)
B19: 9a | C19: Kompletacja - Aristo Mig 500ix
B20: 12 | C20: Kompletacja - AristoMig U4000i, 5000i, U5000i
B21: 13 | C21: Kompletacja - AristoTig 4000iw DC
B22: 14 | C22: Kompletacja - OrigoTig 4300i AC/DC
B23: 14a | C23: Kompletacja - Heliarc 283i, 353i AC/DC
B24: 15 | C24: Kompletacja uchwytów do urządzeń spawalniczych
B25: 16 | C25: Kompletacja - mechanizacja procesów MIG/MAG
B26: 18 | C26: Kompletacja - automaty A2
B27: 19 | C27: Kompletacja - automaty A6
B28: 21 | C28: Części eksploatacyjne do ucwhytów PSF
B29: 22 | C29: Środki Ochrony Indywidualnej
B30: 23 | C30: Akcesoria spawalnicze
B31: 24 | C31: Produkty - Arcair
C34: Produkty sprzedawane są zgodnie z umowami handlowymi
C35: ESAB zastrzega sobie prawo wprowadzania zmian bez powiadomienia
C36: Ogólne warunki handlowe są dostępne na stronie internetowej: www.esab.pl

Sheet 2-Cennik szczegółowy urządzeń
C1: CENNIK URZĄDZEŃ - kompletny
A2: LP | B2: Numer katalogowy | C2: Typ urządzenia | D2: Wyposażenie - informacje dodatkowe | E2: Cena katalogowa netto [zł]
A3: URZĄDZENIA DO SPAWANIA METODĄ MIG / MAG
A4: Kompaktowe półautomaty spawalnicze 230V/50Hz
A5: 1 | B5: 0349310850 | C5: Caddy® Mig C160i | D5: MIG/MAG, uchwyt MXL180 3m, przeód masowy | E5: 4463
A6: =A5+1 -> 2 | B6: 0349312030 | C6: Caddy® Mig C200i | D6: MIG/MAG, uchwyt MXL180 3m, przeówd masowy | E6: 5817
A7: =A6+1 -> 3 | B7: 0700300985 | C7: Rebel EMP 215ic | D7: MIG/MAG, MMA, TIG Lift, uchwyt MXL 201 3m, przewód masowy i elektrodowy | E7: 9924
A8: =A7+1 -> 4 | B8: 0700300989 | C8: Rebel EMP 235ic | D8: MIG/MAG, MMA, TIG Lift, uchwyt MXL 271 3m, przewód masowy i elektrodowy | E8: 12990
A9: =A8+1 -> 5 | B9: 0700300998 | C9: Rebel EMP 205ic AC/DC | D9: MIG/MAG, MMA, TIG HF AC/DC, uchwyt MXL 271 3m, Uchwyt TIG SR-B 26 4 m, przewód masowy i elektrodowy | E9: 24154
A10: Kompaktowe półautomaty spawalnicze 230V/50Hz / skokowa regulacja napięcia /
A11: =A9+1 -> 6 | B11: 0349311170 | C11: Origo™ Mig C141 | D11: MIG/MAG, uchwyt MXL151V 3m, przeód masowy | E11: 2797
A12: =A11+1 -> 7 | B12: 0349311180 | C12: Origo™ Mig C151 | D12: MIG/MAG, uchwyt MXL151V 3m, przeód masowy | E12: 3666
A13: =A12+1 -> 8 | B13: 0349311280 | C13: Origo™ Mag C171 | D13: MIG/MAG, uchwyt MXL 201 3m, przeód masowy | E13: 5580
A14: Kompaktowe półautomaty spawalnicze 400V/50Hz
A15: =A13+1 -> 9 | B15: 0349308670 | C15: Origo™ Mig C170 3ph | D15: MIG/MAG, uchwyt MXL 201 3m, przewód masowy | E15: 5581
A16: =A15+1 -> 10 | B16: 0349308290 | C16: Origo™ Mig C200 3ph | D16: MIG/MAG, uchwyt MXL 201 3m, przewód masowy | E16: 6152
A17: 11 | B17: 0349307840 | C17: Origo™ Mig C250 3ph | D17: MIG/MAG, uchwyt MXL 271 3m, przewód masowy | E17: 6929
A18: 12 | B18: 0349303989 | C18: Origo™ Mig C280 PRO | D18: MIG/MAG, podajnik 2-rolkowy, przewód masowy | E18: 7677
A19: 13 | B19: 0349303992 | C19: Origo™ Mig C280 PRO 4WD | D19: MIG/MAG, podajnik 4-rolkowy, przewód masowy | E19: 9121
A20: 14 | B20: 0349303999 | C20: Origo™ Mig C340 PRO 4WD | D20: MIG/MAG, podajnik 4-rolkowy, mierniki V/A, przewód masowy | E20: 10410
A21: 15 | B21: 0700300991 | C21: Rebel EMP 320ic | D21: MIG/MAG, MMA, TIG Lift, przewód masowy | E21: 14338
A22: 16 | B22: 0349312590 | C22: Origo™ Mig C420w PRO 4WD M/V | D22: MIG/MAG, podajnik 4-rolkowy, mierniki V/A, uchwyt PSF420w 4m, przewód masowy | E22: 19471
A23: Półautomaty spawalnicze z wydzielonym podajnikiem / skokowa regulacja napięcia /
A24: =A22+1 -> 17 | B24: wg kompletacji - 5 | C24: Origo™ Mig 430 | D24: MIG/MAG, miernik A/V | E24: 17405
A25: =A24+1 -> 18 | B25: wg kompletacji - 5 | C25: Origo™ Mig 430w | D25: MIG/MAG, chłodnica, miernik A/V | E25: 19962
A26: =A25+1 -> 19 | B26: wg kompletacji - 5 | C26: Origo™ Mig 510w | D26: MIG/MAG, chłodnica, miernik A/V | E26: 22845
A27: Komplet – źródło prądu, podajnik Origo™ Feed 30 (w) zespół przewodów 5 m, masowy 5 m
A28: Półautomaty spawalnicze z wydzielonym podajnikiem / płynna regulacja napięcia/ inwertor
A29: =A26+1 -> 20 | B29: wg kompletacji - 6 | C29: Warrior™ Mig 400i + Robust Feed PRO | D29: MIG/MAG MMA, TIG-lift, | E29: 24931
A30: =A29+1 -> 21 | B30: wg kompletacji - 6 | C30: Warrior™ Mig 500i + Robust Feed PRO | D30: MIG/MAG MMA, TIG-lift, | E30: 26204
A31: =A30+1 -> 22 | B31: wg kompletacji - 6 | C31: Warrior™ Mig 400iw + Robust Feed PRO | D31: MIG/MAG MMA, TIG-lift, chłodnica | E31: 28676
A32: =A31+1 -> 23 | B32: wg kompletacji - 6 | C32: Warrior™ Mig 500iw + Robust Feed PRO | D32: MIG/MAG MMA, TIG-lift, chłodnica | E32: 29960
A33: =A32+1 -> 24 | B33: wg kompletacji - 6a | C33: Warrior™ Mig 400i + Warrior Feed 304 | D33: MIG/MAG MMA, TIG-lift, | E33: 20209
A34: 25 | B34: wg kompletacji - 6a | C34: Warrior™ Mig 500i + Warrior Feed 304 | D34: MIG/MAG MMA, TIG-lift, | E34: 21428
A35: 26 | B35: wg kompletacji - 6a | C35: Warrior™ Mig 400iw + Warrior Feed 304w | D35: MIG/MAG MMA, TIG-lift, chłodnica | E35: 23688
A36: 27 | B36: wg kompletacji - 6a | C36: Warrior™ Mig 500iw + Warrior Feed 304w | D36: MIG/MAG MMA, TIG-lift, chłodnica | E36: 24943
A37: Komplet – źródło prądu, podajnik drutu (w), zespół przewodów 2 m, masowy 5m
A38: Wieloprocesowe inwertorowe półautomaty spawalnicze CC/CV
A39: =A36+1 -> 28 | B39: wg kompletacji - 9 | C39: Aristo® Mig 4004i Pulse | D39: MIG/MAG, MMA, Puls, wózek | E39: 33963
A40: =A39+1 -> 29 | B40: wg kompletacji - 9 | C40: Aristo® Mig 4004iw Pulse | D40: MIG/MAG, MMA, Puls, chłodnica, wózek | E40: 37534
A41: =A40+1 -> 30 | B41: wg kompletacji - 9a | C41: Aristo Mig 500ix Air | D41: MIG/MAG, MMA, Puls, wózek | E41: 37822
A42: 31 | B42: wg kompletacji - 9a | C42: Aristo Mig 500ix water | D42: MIG/MAG, MMA, Puls, chłodnica, wózek | E42: 40901
A43: 32 | B43: wg kompletacji - 12 | C43: Aristo® Mig U4000iw | D43: MIG/MAG, MMA, TIG HF, Puls, chłodnica, wózek | E43: 44227
A44: 33 | B44: wg kompletacji - 12 | C44: Aristo® Mig 5000iw | D44: MIG/MAG, MMA, Puls, chłodnica, wózek | E44: 49832
A45: 34 | B45: wg kompletacji - 12 | C45: Aristo® Mig U5000iw | D45: MIG/MAG, MMA, TIG HF, Puls, chłodnica, wózek | E45: 52876
A46: Komplet – źródło prądu z zestawem kołowym, podajnik Aristo® Feed 3004(w),panel U6 (Aristo 500ix z Robust Feed Pulse), zespół przewodów 1,7m, masowy 5m
A47: URZĄDZENIA DO SPAWANIA METODĄ TIG I MMA /DC/ 230V
A48: =A43+1 -> 33 | B48: 0700500080 | C48: Rogue ET 180i DC | D48: TIG-HF DC, MMA, Uchwyt SR-B 26 4m, przewód masowy | E48: 3966
A49: =A48+1 -> 34 | B49: 0700500081 | C49: Rogue ET 200i PRO | D49: TIG-HF DC, MMA, Uchwyt SR-B 26 4m, przewód masowy | E49: 5923
A50: =A45+1 -> 35 | B50: 0460450880 | C50: Caddy® Tig 1500i DC TA33 | D50: TIG-HF DC, MMA, Uchwyt SR-B 17 4m, przewód masowy i elektrodowy | E50: 8052
A51: =A50+1 -> 36 | B51: 0460450882 | C51: Caddy® Tig 1500i DC TA34 | D51: TIG-HF DC, MMA, Uchwyt SR-B 17 4m, przewód masowy i elektrodowy | E51: 9727
A52: =A51+1 -> 37 | B52: 0460450881 | C52: Caddy® Tig 2200i DC TA33 | D52: TIG-HF DC, MMA, Uchwyt SR-B 26 4m, przewód masowy i elektrodowy | E52: 10317
A53: =A52+1 -> 38 | B53: 0460450883 | C53: Caddy® Tig 2200i DC TA34 | D53: TIG-HF DC, MMA, Uchwyt SR-B 26 4m, przewód masowy i elektrodowy | E53: 12036
A54: =A53+1 -> 39 | B54: 0460450884 | C54: Caddy® Tig 2200iw DC TA33 | D54: TIG-HF DC, MMA, Uchwyt SR-B 20 4m, przewód masowy i elektrodowy | E54: 14432
A55: =A54+1 -> 40 | B55: 0460450885 | C55: Caddy® Tig 2200iw DC TA34 | D55: TIG-HF DC, MMA, Uchwyt SR-B 20 4m, przewód masowy i elektrodowy | E55: 15999
A56: URZĄDZENIA DO SPAWANIA METODĄ TIG I MMA /DC/ 400V
A57: =A55+1 -> 41 | B57: 0445100900 | C57: Renegade ET 300i (1ph 230V / 3ph 230-400V) | D57: TIG-HF DC, MMA, przewód zasiljący 3m, masowy 5m i gazowy 2m | E57: 16724
A58: =A57+1 -> 42 | B58: 0445100920 | C58: Renegade ET 300iP (1ph 230V / 3ph 230-400V) | D58: TIG-HF DC, MMA Pulse, przewód zasiljący 3m, masowy 5m i gazowy 2m | E58: 17871
A59: 43 | B59: wg kompletacji - 13 | C59: Aristo® Tig 4000iw DC TA4 | D59: TIG-HF, MMA, Puls, chłodnica, zestw jezdny | E59: 28631
A60: URZĄDZENIA DO SPAWANIA METODĄ TIG I MMA /AC - DC/ 230V
A61: =A59+1 -> 44 | B61: 0460150882 | C61: Caddy®Tig 2200i AC/DC TA33 | D61: TIG-HF DC, MMA, Uchwyt SR-B 26 4m, przewód masowy i elektrodowy | E61: 14658
A62: =A61+1 -> 45 | B62: 0460150883 | C62: Caddy®Tig 2200i AC/DC TA34 | D62: TIG-HF DC, MMA, Uchwyt SR-B 26 4m, przewód masowy i elektrodowy | E62: 16705
A63: =A62+1 -> 46 | B63: 0460150884 | C63: Caddy®Tig 2200iw AC/DC TA34 | D63: TIG-HF DC, MMA, Uchwyt SR-B 20 4m, przewód masowy i elektrodowy, chłodnica, 2-kołowy wózek 460330880 | E63: 20187
A64: URZĄDZENIA DO SPAWANIA METODĄ TIG I MMA /AC - DC/ 400V
A65: =A63+1 -> 47 | B65: wg kompletacji - 14a | C65: Heliarc® 283i AC/DC | D65: TIG-HF AC/DC, MMA, Puls AC,DC | E65: 20855
A66: =A65+1 -> 48 | B66: 0459735880 | C66: Origo™ Tig 3000i AC/DC TA 24 | D66: TIG-HF AC/DC, MMA, Puls DC | E66: 20781
A67: 49 | B67: wg kompletacji - 14a | C67: Heliarc® 353i AC/DC | D67: TIG-HF AC/DC, MMA, Puls AC, DC | E67: 31508
A68: 50 | B68: wg kompletacji - 14 | C68: Origo™Tig 4300iw AC/DC TA24 | D68: TIG-HF AC/DC, MMA, Puls, DC chłodnica, wózek | E68: 42307
A69: 51 | B69: 0459795882 | C69: Origo™ Tig 3000iw AC/DC TA 24 | D69: TIG-HF AC/DC, MMA, Puls DC, wózek, chłodnica, uchwyt SR-B 20 4m | E69: 30369
A70: 52 | B70: 0479000006 | C70: Heliarc® 283i AC/DC | D70: TIG-HF AC/DC, MMA, Puls, wózek, uchwyt SR-B 26 4m | E70: 23692
A71: 53 | B71: 0479000005 | C71: Heliarc® 283iw AC/DC | D71: TIG-HF AC/DC, MMA, Puls, wózek, chłodnica, płyn Glidex, uchwyt SR-B 20 4m | E71: 28629
A72: 54 | B72: 0479000004 | C72: Heliarc® 353iw AC/DC | D72: TIG-HF AC/DC, MMA, Puls, wózek, chłodnica, płyn Glidex, uchwyt SR-B 18 4m | E72: 40302
A73: URZĄDZENIA DO SPAWANIA METODĄ MMA /DC/ oraz TIG Lift - 230V
A74: =A72+1 -> 55 | B74: 0460445881 | C74: Caddy® Arc 151i A31 | D74: MMA, naramiennik, przewody spawalncize 3m | E74: 5550
A75: =A74+1 -> 56 | B75: 0460445884 | C75: Caddy® Arc 201i A33 | D75: MMA, TIG-lift, naramiennik, przewody spawalncize 3m | E75: 6990
A76: =A74+1 -> 56 | B76: 0700500076 | C76: Rogue ES 150i CE | D76: MMA, TIG-lift, naramiennik, przewody spawalncize 3m | E76: 1566
A77: =A76+1 -> 57 | B77: 0700500077 | C77: Rogue ES 180i CE | D77: MMA, TIG-lift, naramiennik, przewody spawalncize 3m | E77: 1881
A78: =A76+1 -> 57 | B78: 0700500078 | C78: Rogue ES 180i PRO CE | D78: MMA, TIG-lift, naramiennik, przewody spawalncize 3m, zsilanie 230V / 115V | E78: 2091
A79: =A78+1 -> 58 | B79: 0700500079 | C79: Rogue ES 200i PRO CE | D79: MMA, TIG-lift, naramiennik, przewody spawalncize 3m, zsilanie 230V / 115V | E79: 2407
A80: URZĄDZENIA DO SPAWANIA METODĄ MMA /DC/ 400V
A81: =A79+1 -> 59 | B81: 0460300880 | C81: Caddy® Arc 251i A32 | D81: MMA, TIG-lift | E81: 9400
A82: =A81+1 -> 60 | B82: 0460300881 | C82: Caddy® Arc 251i A34 | D82: MMA, TIG-lift, synergia | E82: 10327
A83: =A81+1 -> 60 | B83: 0445100880 | C83: Renegade ES 300i (1ph 230V / 3ph 230-400V) | D83: MMA, TIG-live | E83: 13274
A84: =A83+1 -> 61 | B84: 0445250880 | C84: Renegade ES 300i (1ph 230V / 3ph 230-400V) | D84: MMA, TIG-live (przewódy spawalnicze 5m, naramiennik) | E84: 13951
A85: 62 | B85: 0445555880 | C85: Warrior 750i (380V - 460V) | D85: Żlobienie elektropowietrzne, MMA, TIG-live | E85: 43250
A86: GENERATORY SPAWALNICZO-PRĄDOTWÓRCZE
A87: =A85+1 -> 63 | B87: 0794005884 | C87: KHM 2X400 PS/CC 40 kVA | D87: MMA, silnik Perkins 1103C - 33TG3 | E87: 208965
A88: =A87+1 -> 64 | B88: 0794021880 | C88: KHM 525 PS/CC 16 kVA | D88: MMA, silnik Perkins 404C-22G | E88: 115016
A89: =A88+1 -> 65 | B89: 0794003883 | C89: KHM 595 PS/CC 30 kVA | D89: MMA, silnik Perkins 1103C - 33G3 | E89: 132658
A90: =A89+1 -> 66 | B90: 0794000880 | C90: KHM 190 HS/CC 6 kVA | D90: MMA, silnik benzynowy Honda GX390 | E90: 25462
A91: =A88+1 -> 65 | B91: 0794000882 | C91: KHM 190 YS/CC 6 kVA | D91: MMA, silnik diesla YANMAR / L 100 AE-DEG | E91: 35732
A92: URZĄDZENIA DO RĘCZNEGO CIĘCIA PLAZMOWEGO Z SERII CUTMASTER
A93: =A91+1 -> 66 | B93: 0559160135 | C93: Handy Plasma 35 12mm | D93: inwertor, uchwyt HD-60 5m m 230V - 1ph | E93: 5650
A94: =A93+1 -> 67 | B94: 0559160145 | C94: Handy Plasma 45 16mm | D94: inwertor, uchwyt HD-60 5m m 230V - 1ph | E94: 6990
A95: =A93+1 -> 67 | B95: 0559140004 | C95: CUTMASTER 40 SL60 5m 16mm | D95: inwertor, uchwyt SL-60 5m m 230V - 1ph | E95: 12597
A96: 68 | B96: 0559156304 | C96: CUTMASTER 60i SL60QD 6,1m 38mm | D96: Inwertor, uchwyt SL- 60QD 6,1 m 75° | E96: 16751
A97: =A96+1 -> 69 | B97: 0559156314 | C97: CUTMASTER 60i SL60QD 15,2m 38mm | D97: Inwertor, uchwyt SL- 60QD 15,2 m 75° | E97: 17651
A98: 70 | B98: 0559356304 | C98: CUTMASTER 60i bez uchwytu 38mm | D98: Inwertor (bez uchwytu plazmowego) | E98: 14550
A99: 71 | B99: 0559113304 | C99: CUTMASTER 80 SL60 6,1m 38mm | D99: inwertor, uchwyt SL-60 6,1 m | E99: 18810
A100: 72 | B100: 0559113314 | C100: CUTMASTER 80 SL60 15,2m 38mm | D100: inwertor, uchwyt SL-60 15,2 m | E100: 19755
A101: 73 | B101: 0559117304 | C101: CUTMASTER 100 SL 100 6,1m 45mm | D101: inwertor, uchwyt SL-100 6,1 m | E101: 25906
A102: 74 | B102: 0559117314 | C102: CUTMASTER 100 SL100 15,2m 45mm | D102: inwertor, uchwyt SL-100 15,2 m | E102: 26853
A103: 75 | B103: 0559119304 | C103: CUTMASTER 120 SL100 6,1m 55mm | D103: inwertor, uchwyt SL-100 6,1 m | E103: 29453
A104: 76 | B104: 0559119314 | C104: CUTMASTER 120 SL100 15,2m 55mm | D104: inwertor, uchwyt SL-100 15,2 m | E104: 30401
A105: URZĄDZENIA DO MECHANIZACJI PROCESÓW SPAWANIA METODĄ MG/MAG
A106: Systemy do spawania wzdłużnego w pozycji PA/PB
A107: =A104+1 -> 77 | B107: wg kompletacji - 16 | C107: Miggytrac B501 | D107: Standard | E107: 10420.7
A108: =A107+1 -> 78 | B108: wg kompletacji - 16 | C108: Railtrac B42V | D108: Standard | E108: 53766.4
A109: WYPOSAŻENIE DODATKOWE DO URZĄDZEŃ
A110: =A108+1 -> 79 | B110: 0414191881 | C110: Uniwersalna chłodnica OCE 2 | D110: Ogólnego zastosowania, 230V | E110: 6290
A111: 84 | B111: 0460685881 | C111: Zestaw przyłączeniowy do Cool Midi 1000i | D111: OrigoTig 3001i, Mig 3001i | E111: 1177
A112: =A110+1 -> 80 | B112: 0462300880 | C112: Chłodnica Cool 1 | D112: OrigoMig 4004i, 5004i | E112: 3003
A113: 85 | B113: 0459840880 | C113: Chłodnica Cool Midi 1800 (z przewodem ster.) | D113: Mig C3000i, Tig 3000i AC/DC | E113: 5724
A114: 81 | B114: 0460144880 | C114: Chłodnica Cool Mini | D114: Caddy Tig 2200i AC/DC, Caddy 2200i DC | E114: 3458
A115: 86 | B115: 0460509880 | C115: Zestaw przyłączeniowy do Cool™ Mini | D115: Caddy Tig 2200i DC | E115: 99.6628
A116: 82 | B116: 0700300703 | C116: Chłodnica Cool Heliarc | D116: Heliarc 283i, 353i AC/DC | E116: 5096
A117: 87 | B117: 0445045880 | C117: Chłodnica EC 1000 | D117: Renegade ET 300i oraz ET 300iP | E117: 6024
A118: 83 | B118: 0349302598 | C118: Miernika uniwersalny V/A | D118: OrigoMig C280/C170/C200/C250/C171/C201 | E118: 968
A119: 88 | B119: 0459366885 | C119: Zestaw jezdny 2-kołowy (butla 5-10l) | D119: Caddy Tig 2200i AC/DC, 1500i DC, 2200i DC | E119: 1342
A120: 84 | B120: 0460330880 | C120: Zestaw jezdny 2-kołowy (butla 20-50l) | D120: Caddy Tig 2200i AC/DC, 1500i DC, 2200i DC | E120: 1876
A121: 89 | B121: 0459366887 | C121: Zestaw jezdny 2-kołowy (butla 5-10l) | D121: Caddy Tig 2200i AC/DC, 1500i DC, 2200i DC, C160/200 | E121: 2258
A122: 85 | B122: 0460564880 | C122: Zestaw jezdny 2-kołowy | D122: OrigoTig 3001i | E122: 3796
A123: 90 | B123: 0460330881 | C123: Zestaw jezdny 2-kołowy | D123: Renegade 300i | E123: 2147
A124: 86 | B124: 0460565880 | C124: Zestaw jezdny 4-kołowy | D124: OrigoTig 3001i, Mig 3001i, Mig 4001i | E124: 2722
A125: 91 | B125: 0459366890 | C125: Zestaw jezdny 2-kołowy | D125: Mig C3000i, TIG 3000i AC/DC | E125: 3534
A126: 87 | B126: 0460060880 | C126: Zestaw jezdny 4-kołowy | D126: Mig C3000i, TIG 3000i AC/DC | E126: 4038
A127: 92 | B127: 0462151880 | C127: Zestaw jezdny 4-kołowy | D127: OrigoMig 4004iw, 5004iw, 4004iw Pulse | E127: 1755
A128: 88 | B128: 0558101702 | C128: Zestaw jezdny 4-kołowy | D128: Heliarc 283i, 353i AC/DC | E128: 2312
A129: 93 | B129: 0700300872 | C129: Zestaw jezdny 2-kołowy | D129: Rebel | E129: 1933
A130: 89 | B130: 0463125880 | C130: Wspornik do zestawu jezdnego bez Cool 1 | D130: OrigoMig 4004i, 5004i, 4004i Pulse | E130: 222
A131: 94 | B131: 0458707880 | C131: Zestaw jezdny do podajnika | D131: Podajniki OrigoFeed / AristoFeed | E131: 447.9367
A132: 90 | B132: 0349493903 | C132: Zestaw jezdny do podajnika | D132: OrigoFeed 30 / 30w | E132: 148.8762
A133: 95 | B133: 0349305151 | C133: Transformator podgrzewacza gazu | D133: Uniwersalne zastosowanie (24V) | E133: 190.7457
A134: 91 | B134: 0465720002 | C134: Płyn do chłodnic Glidex Extra II 10l | D134: Płyn do wszystkich typów chłodnic | E134: 175

Sheet 4-Cennik cześci
A1: Numer katalogowy | B1: Nazwa | C1: Cena katalogowa netto [zł] | D1: Minimalna ilość zamówienia
A2: 0000103588 | B2: Return clamp JK 3 | C2: 381.9034 | D2: 1
A3: 0000134716 | B3: Universal Top Tool | C3: 55.8672 | D3: 1
A4: 0000138408 | B4: Hand spray bottle 0,65 l | C4: 59.6267 | D4: 12
A5: 0000139054 | B5: Universal Top Tool Mini | C5: 51.7678 | D5: 1
A6: 0000139931 | B6: Fillet gauge KL-1 Laser | C6: 625 | D6: 1
A7: 0000139932 | B7: Fillet gauge KL-2 Laser | C7: 799 | D7: 1
A8: 0000419450 | B8: MK450 Earth Clamp 450a (35%) | C8: 74.1394 | D8: 1
A9: 0000500225 | B9: HANDLE SAMSON 500 | C9: 67.8976 | D9: 2
A10: 0000500270 | B10: INSULATING HEAD OPT.4/5/600 | C10: 36.2354 | D10: 6
A11: 0000500282 | B11: INSULATING HEAD OPTIMUS 300 | C11: 30.4365 | D11: 2
A12: 0000500415 | B12: Magnetic return clamp 400 | C12: 51.0777 | D12: 1
A13: 0000500416 | B13: Magnetic return clamp 600 | C13: 77.7444 | D13: 1
A14: 0000515077 | B14: DRYING CABINET FCW, LK10 | C14: 24967 | D14: 1
A15: 0000593268 | B15: Filarc fillet gauge | C15: 346.5847 | D15: 1
A16: 0000593720 | B16: INOX fillet gauge | C16: 1055 | D16: 1
A17: 0000595133 | B17: Rotating coupling NKK 400 | C17: 2178 | D17: 1
A18: 0000595319 | B18: Inspection mirror | C18: 72.0279 | D18: 1
A19: 0000663000 | B19: Chipping hammer SH2 | C19: 51.0365 | D19: 1
A20: 0000701981 | B20: Adapter szpuli B300 ESAB 15kg | C20: 63.1802 | D20: 1
A21: 0030467001 | B21: Tulejka kryzy chłodzącej- A9-350 | C21: 147.6299 | D21: 1
A22: 0030467401 | B22: Rurka kontaktowa (PKB315) - A9 | C22: 184.4318 | D22: 5
A23: 0040991301 | B23: Dysza gazowa 22mm (PKB) - A9/3 | C23: 62.4592 | D23: 1
A24: 0040991401 | B24: Pier®cie sprynujcy -PKB315 | C24: 122.2404 | D24: 1
A25: 0041051606 | B25: Osłona złącza LAF 800 | C25: 42.3948 | D25: 5
A26: 012P381330 | B26: TBi AUT 240-3m-Euro-45 | C26: 1212 | D26: 1
A27: 0146967881 | B27: Korpus szpuli OrigoFeed 30, MM-163 kpl (piasta, sworzeń - wersja zatrzaskowa) | C27: 119.2225 | D27: 2
A28: 0147866001 | B28: PrzeŁącznik DPDT 3 | C28: 94.4407 | D28: 1
A29: 0147866002 | B29: PrzeŁącznik 3-pozycyjny | C29: 111.4254 | D29: 2
A30: 0147866008 | B30: Łącznik 2 poz. Yard Feed | C30: 18.3443 | D30: 5
A31: 0147866009 | B31: Osłona łącznika panel M13 | C31: 20.2395 | D31: 10
A32: 014P281315 | B32: TBi AUT 360-1.5m-Euro-22 | C32: 1769 | D32: 1
A33: 0151287001 | B33: Prowadnik teflonowy, niecity | C33: 16.5521 | D33: 100
A34: 0151564001 | B34: Tulejka izolacyjna - A9315/400 | C34: 40.3142 | D34: 5
A35: 0151574009 | B35: Tungsten Pure 1,6x175 mm | C35: 15.5427 | D35: 10
A36: 0151574010 | B36: Tungsten Pure 2,4x175 mm | C36: 25.4204 | D36: 10
A37: 0151574011 | B37: Tungsten Pure 3,2x175 mm | C37: 34.3711 | D37: 10
A38: 0151574037 | B38: Tungsten WC20 1,6x175 mm | C38: 19.9408 | D38: 10
A39: 0151574038 | B39: Tungsten WC20 2,4x175 mm | C39: 33.8046 | D39: 10
A40: 0151574039 | B40: Tungsten WC20 3,2x175 mm | C40: 55.7539 | D40: 10
A41: 0151574050 | B41: Tungsten WL15 1,0x175 mm Gold | C41: 12.9986 | D41: 10
A42: 0151574051 | B42: Tungsten WL15 1,6x175 mm Gold | C42: 19.9408 | D42: 10
A43: 0151574052 | B43: Tungsten WL15 2,4x175 mm Gold | C43: 33.269 | D43: 10
A44: 0151574053 | B44: Tungsten WL15 3,2x175 mm Gold | C44: 58.1229 | D44: 10
A45: 0151574054 | B45: Tungsten WL15 4,0x175 mm Gold | C45: 85.0265 | D45: 10
A46: 0151574055 | B46: Tungsten WL15 4,8x175 mm Gold | C46: 116.1325 | D46: 100
A47: 0151574232 | B47: Tungsten electr. 2,4 Gold Plus | C47: 30.3335 | D47: 10
A48: 0151574238 | B48: Tungsten WC20 2,4x150 mm | C48: 30.9 | D48: 10
A49: 0151574242 | B49: Tungsten WC20 2,0x150 mm | C49: 21.3828 | D49: 10
A50: 0151574246 | B50: Tungsten elec Gold Plus2.0/175 | C50: 28.5207 | D50: 10
A51: 0151576881 | B51: Obudowa uchwytu spawalniczego | C51: 837 | D51: 1
A52: 0151729016 | B52: Szczotki do silnika PKE | C52: 304.6431 | D52: 1
A53: 0152450880 | B53: Regulator prędkości (PKB | C53: 99.2405 | D53: 2
A54: 0152451001 | B54: Gniazdo zaworu (PKB) - A9PKB 400L | C54: 56.9281 | D54: 5
A55: 0152454880 | B55: Płaszcz chodzcy (PKB) - A9 P | C55: 238.4759 | D55: 1
A56: 0152470881 | B56: Uchwyt MIG/MAG - MIG PKB 400 A9A typu p | C56: 12044 | D56: 1
A57: 0152475001 | B57: Waek przekadni planetarnej ( | C57: 983 | D57: 1
A58: 0152475014 | B58: Cylinder PKB - A9 PKB400L | C58: 1002 | D58: 1
A59: 0152475018 | B59: Sprężyna zaworu (PKB) - A9 PKB | C59: 8.0031 | D59: 2
A60: 0152475023 | B60: Izolacja (PKB) - A9 PKB400L | C60: 43.7441 | D60: 4
A61: 0152475025 | B61: Zawór (PKB) - A9 PKB400L | C61: 245.0267 | D61: 1
A62: 0152475033 | B62: Sito(PKB)-A9 PKB 400L | C62: 50.8923 | D62: 5
A63: 0152475034 | B63: Obudowa, komplet - A9 PKB400L | C63: 713 | D63: 1
A64: 0152475035 | B64: Smarowniczka PKBowa A9 (MLC) | C64: 129.7594 | D64: 1
A65: 0152475036 | B65: Waek przekadni planetarnej | C65: 974 | D65: 1
A66: 0152475040 | B66: Przekadnia planetarna A9front | C66: 2465 | D66: 1
A67: 0152475041 | B67: Przekadnia planetarna A9 rear | C67: 2543 | D67: 1
A68: 0152700881 | B68: Uchwyt MIG/MAG - MIG PKB 250 | C68: 11714 | D68: 1
A69: 0152767001 | B69: Tuleja - A9 PKB400L | C69: 130.4289 | D69: 1
A70: 0152773880 | B70: Przewód powietrzny (PKB)- A9 P | C70: 146.9604 | D70: 1
A71: 0153043002 | B71: Podkadka izolacyjna - A10-MVC | C71: 3.9243 | D71: 10
A72: 0153093003 | B72: Fan OCE-2H | C72: 173.9258 | D72: 1
A73: 0153501002 | B73: Contact tip W0.8 M6x38 | C73: 9.9498 | D73: 10
A74: 0153501004 | B74: Contact tip W1.0 M6x38 | C74: 9.9498 | D74: 10
A75: 0153501005 | B75: Końcówka prądowa M6 1,2mm | C75: 15.347 | D75: 1
A76: 0153501006 | B76: Końcówka prądowa M6x38 1,4mm | C76: 15.347 | D76: 1
A77: 0153501007 | B77: Contact tip W1.6 M6x38 | C77: 9.9498 | D77: 10
A78: 0153501008 | B78: Końcówka prądowa prdowa 1.6 /A6/ | C78: 15.2337 | D78: 500
A79: 0153501009 | B79: Końcówka prądowa prądowa 2.0 /A6/ | C79: 15.2337 | D79: 10
A80: 0153501010 | B80: Końcówka prądowa M6 2.4-2.5 | C80: 15.347 | D80: 10
A81: 0154352015 | B81: Hose 45 mm, 2,5 m CarryVac 2 | C81: 262.6912 | D81: 2
A82: 0154697880 | B82: Opaska zaciskowa (PKB315) - A9 | C82: 161.8542 | D82: 2
A83: 0155716880 | B83: Tester przepływu gazu - rotametr | C83: 42.8377 | D83: 2
A84: 0156388001 | B84: Handle | C84: 44.8153 | D84: 2
A85: 0156597001 | B85: Przyącze, gaz - A10-MEC44 | C85: 26.4916 | D85: 1
A86: 0156602001 | B86: Tulejka prowadząca, wejściowa 0,8-1,6 - MED 30/44 | C86: 7.9207 | D86: 2
A87: 0156602002 | B87: Tulejka prowadząca, wej«ciowa | C87: 33.6192 | D87: 1
A88: 0156603002 | B88: Prowadnik wewnętrzny 2,0-2,4 | C88: 75.499 | D88: 1
A89: 0156626001 | B89: Nut, collet | C89: 150.1431 | D89: 10
A90: 0156626004 | B90: Impact piston complete for HCB | C90: 1059 | D90: 5
A91: 0156626006 | B91: REAR BUSHING | C91: 57.9066 | D91: 9999
A92: 0156626007 | B92: Housing middle for HCB | C92: 486.5102 | D92: 5
A93: 0156626008 | B93: Front spring for HCB | C93: 23.5973 | D93: 5
A94: 0156626009 | B94: O-ring 29,5x5,7 mm for HCB | C94: 43.7029 | D94: 1
A95: 0156626010 | B95: Ring for HCB | C95: 37.6568 | D95: 5
A96: 0156626011 | B96: O-ring 25x8 mm for HCB | C96: 56.1453 | D96: 1
A97: 0156626012 | B97: Middle lock washer for HCB | C97: 81.3906 | D97: 10
A98: 0156626013 | B98: Balancing piston for HCB | C98: 594 | D98: 5
A99: 0156626014 | B99: Housing rear for HCB | C99: 848 | D99: 1
A100: 0156626015 | B100: Air inlet tube complete HCB | C100: 146.1055 | D100: 5
A101: 0156626016 | B101: Trigger for HCB | C101: 51.0365 | D101: 10
A102: 0156626017 | B102: Middle spring for HCB | C102: 29.2932 | D102: 5
A103: 0156626018 | B103: O-ring 7,66x1,78 mm for HCB | C103: 14.1522 | D103: 20
A104: 0156626019 | B104: O-ring 5,3x2,4 mm for HCB | C104: 14.1522 | D104: 1
A105: 0156626020 | B105: Valve pin for HCB | C105: 57.2474 | D105: 5
A106: 0156626021 | B106: O-ring 5,1x1,6 mm for HCB | C106: 14.1522 | D106: 1
A107: 0156626022 | B107: Ball retainer for HCB | C107: 22.9278 | D107: 5
A108: 0156626023 | B108: Cover for HCB | C108: 73.1403 | D108: 1
A109: 0156626024 | B109: Rubber washer for HCB | C109: 16.8611 | D109: 1
A110: 0156626025 | B110: Rear lock washer for HCB | C110: 17.5306 | D110: 10
A111: 0156626026 | B111: Rear spring for HCB | C111: 20.2292 | D111: 10
A112: 0156626027 | B112: NIPPLE HCA/HCB | C112: 154.1807 | D112: 5
A113: 0156626028 | B113: Sleeve for HCB | C113: 22.9278 | D113: 5
A114: 0156626029 | B114: O-ring 13,3x2,4 mm for HCB | C114: 14.8217 | D114: 5
A115: 0156626031 | B115: VALVEBALL HCA/HCB | C115: 18.8799 | D115: 5
A116: 0156626032 | B116: SCREW HCA/HCB | C116: 38.2336 | D116: 5
A117: 0156626033 | B117: O-ring 9,3x2,4 mm for HCB | C117: 14.1522 | D117: 10
A118: 0156626034 | B118: Clamping ring for HCB | C118: 40.9631 | D118: 1
A119: 0156627001 | B119: Chisel 15x100 mm for HCB | C119: 363.1368 | D119: 1
A120: 0156627002 | B120: Chisel 35x100 mm for HCB | C120: 450.0791 | D120: 1
A121: 0156627004 | B121: Chisel sound damping for HCB | C121: 875 | D121: 1
A122: 0156627005 | B122: Chisel Extension for HCB | C122: 438.2856 | D122: 1
A123: 0156627006 | B123: Chisel 15x200 mm for HCB | C123: 399.5679 | D123: 1
A124: 0156627007 | B124: Chisel 15x300 mm for HCB | C124: 412.5665 | D124: 1
A125: 0156633003 | B125: Osłona drutu na szpuli Feed 304 | C125: 48.1937 | D125: 1
A126: 0156706001 | B126: Zestaw przewodów | C126: 95.8724 | D126: 20
A127: 0156707001 | B127: Element dystansowy (MED/MEH) - | C127: 16.5109 | D127: 2
A128: 0156707002 | B128: Podkładka regulacyjna - A10-MEC | C128: 31.4665 | D128: 10
A129: 0156728010 | B129: Silnik z prądnicą tachometryczną (MEH - 12V | C129: 860 | D129: 1
A130: 0156728011 | B130: Silnik podajnika KSV 5035/288 12V DC MEH44 | C130: 941 | D130: 1
A131: 0156728012 | B131: Silnik z generatoremimpulsów | C131: 1008 | D131: 1
A132: 0156743907 | B132: Przewód masowy OKC 50 50mm 300A 4,5 m | C132: 557 | D132: 1
A133: 0156868880 | B133: Gniazdo prądowe wysokonapięciowe OKC 50 TIG 3000i, Tigaid, F400, F315 | C133: 204.2593 | D133: 2
A134: 0157121016 | B134: TXH 120/250w Soczewka zac. 1,0 | C134: 28.9945 | D134: 10
A135: 0157121017 | B135: TXH 120/250w Soczewka zac. 1,6 | C135: 28.9945 | D135: 10
A136: 0157121018 | B136: TXH 120/250w Soczewka zac. 2,4 | C136: 28.9945 | D136: 10
A137: 0157121032 | B137: TXH 120/250w Dysza S (4) 6,4mm | C137: 3.6977 | D137: 10
A138: 0157121033 | B138: TXH 120/250w Dysza S (5) 8,0mm | C138: 3.6977 | D138: 10
A139: 0157121034 | B139: TXH 120/250w Dysza S (6) 9,8mm | C139: 3.6977 | D139: 10
A140: 0157121039 | B140: TXH 120/250w Dysza S (7)11,2mm | C140: 4.1921 | D140: 10
A141: 0157121040 | B141: TXH 120/250w Dysza S (8)12,7mm | C141: 4.1921 | D141: 10
A142: 0157121041 | B142: TXH 120/250w Soczewka zac. 3,2 | C142: 28.8606 | D142: 10
A143: 0157123010 | B143: TXH 150/200/400w Zacisk 1,0 | C143: 6.077 | D143: 5
A144: 0157123011 | B144: TXH 150/200/400w Zacisk 1,6 | C144: 6.077 | D144: 5
A145: 0157123012 | B145: TXH 150/200 Zacisk 2,4 | C145: 6.077 | D145: 5
A146: 0157123013 | B146: TXH 150/200 Zacisk 3,2 | C146: 6.077 | D146: 5
A147: 0157123014 | B147: TXH 150/200 Zacisk 4,0 | C147: 6.2521 | D147: 5
A148: 0157123015 | B148: TXH 150/200 Korpus zacisk 1,0 | C148: 12.4012 | D148: 5
A149: 0157123016 | B149: TXH 150/200 Korpus zacisk 1,6 | C149: 12.4012 | D149: 5
A150: 0157123017 | B150: TXH 150/200 Korpus zacisk 2,4 | C150: 12.4012 | D150: 5
A151: 0157123018 | B151: TXH 150/200 Korpus zacisk 3,2 | C151: 12.4012 | D151: 5
A152: 0157123019 | B152: TXH 150/200 Korpus zac.4,0-4,8 | C152: 12.2879 | D152: 5
A153: 0157123021 | B153: TXH 150/200 Soczewka zaciskowa 1,0 | C153: 31.2914 | D153: 5
A154: 0157123022 | B154: TXH 150/200 Soczewka zac. 1,6 | C154: 31.0236 | D154: 5
A155: 0157123023 | B155: TXH 150/200 Soczewka zac. 2,4 | C155: 31.2914 | D155: 10
A156: 0157123024 | B156: TXH 150/200 Soczewka zac. 3,2 | C156: 31.0236 | D156: 5
A157: 0157123025 | B157: TXH 150/200 Soczewka zac. 4,0 | C157: 31.0236 | D157: 5
A158: 0157123028 | B158: Zatyczka uchwytu HW17/18/26- k | C158: 13.2046 | D158: 2
A159: 0157123029 | B159: TXH 150/200/400w Korek długi | C159: 15.7075 | D159: 2
A160: 0157123047 | B160: Adapter gazowy 1/8" - BTD | C160: 46.9371 | D160: 1
A161: 0157123052 | B161: TXH 150/200 Dysza (4) 6,4mm | C161: 4.7483 | D161: 10
A162: 0157123053 | B162: TXH 150/200 Dysza (5) 8,0mm | C162: 4.7483 | D162: 10
A163: 0157123054 | B163: TXH 150/200 Dysza (6) 9,8mm | C163: 4.7483 | D163: 10
A164: 0157123055 | B164: TXH 150/200 Dysza (7) 11,2mm | C164: 4.7483 | D164: 10
A165: 0157123056 | B165: TXH 150/200 Dysza (8) 12,7mm | C165: 4.7483 | D165: 10
A166: 0157123057 | B166: TXH 400w Dysza (4) 6,4mm | C166: 5.7783 | D166: 10
A167: 0157123058 | B167: TXH 150/200/400w Dysza S 8,0mm | C167: 5.7783 | D167: 10
A168: 0157123059 | B168: TXH 150/200/400w Dysza S 9,8mm | C168: 5.7783 | D168: 10
A169: 0157123060 | B169: TXH 150/200/400w Dysza S11,2mm | C169: 5.7783 | D169: 10
A170: 0157123061 | B170: TXH 150/200/400w Dysza S12,7mm | C170: 5.7783 | D170: 10
A171: 0157123074 | B171: TXH 400w Zacisk 4,8 | C171: 37.1933 | D171: 5
A172: 0157123077 | B172: TXH 400w Zacisk 2,4 | C172: 13.905 | D172: 5
A173: 0157123078 | B173: TXH 400w Zacisk 3,2 | C173: 13.905 | D173: 5
A174: 0157123079 | B174: TXH 400w Zacisk 4,0 | C174: 13.8432 | D174: 5
A175: 0157123081 | B175: TXH 400w Korpus zacisk 1,0-2,4 | C175: 29.767 | D175: 5
A176: 0157123082 | B176: TXH 400w Korpus zacisk 3,2-4,8 | C176: 30.4056 | D176: 5
A177: 0157123084 | B177: Extra large gas lens 1,6mm | C177: 49.4915 | D177: 5
A178: 0157123085 | B178: TXH 150/200 Soczewka XL 2,4 | C178: 48.616 | D178: 5
A179: 0157123086 | B179: TXH 150/200 Soczewka XL 3,2 | C179: 48.616 | D179: 5
A180: 0157123088 | B180: TXH 150/200/400w Dysza XL 9,8 | C180: 11.2373 | D180: 10
A181: 0157123089 | B181: TXH 150/200/400w Dysza XL 12,7 | C181: 11.2785 | D181: 10
A182: 0157123092 | B182: TXH 400 łącznik prądowy 1,6mm | C182: 45.6393 | D182: 5
A183: 0157123093 | B183: TXH 400w Soczewka zacisk. 2,4 | C183: 45.9277 | D183: 10
A184: 0157123094 | B184: TXH 400w Soczewka zaciskowa 3,2 | C184: 45.9277 | D184: 5
A185: 0157123095 | B185: TXH 400w soczewka gaz 4,0 | C185: 45.6393 | D185: 5
A186: 0157123098 | B186: TXH 150/200/400w Dysza XL 19,0 | C186: 11.1652 | D186: 10
A187: 0157349001 | B187: Tulejka wej«ciowa, prowadzenie | C187: 16.3667 | D187: 2
A188: 0157467880 | B188: Regulator filtra | C188: 943 | D188: 1
A189: 0157482880 | B189: Reel cover D=300mm MLC/MED/MEK | C189: 682 | D189: 1
A190: 0160288001 | B190: Return clamp EG 600 | C190: 81.5966 | D190: 1
A191: 0160360880 | B191: OKC connector male 25mm2 | C191: 19.5906 | D191: 4
A192: 0160360881 | B192: OKC connector male 50mm2 | C192: 32.2287 | D192: 4
A193: 0160360882 | B193: OKC connector male 95mm2 | C193: 38.8001 | D193: 4
A194: 0160360883 | B194: OKC connector male 120mm2 | C194: 267.1202 | D194: 5
A195: 0160361880 | B195: Gniazdo prądowe OKC żeńskie 10-25mm | C195: 20.9193 | D195: 4
A196: 0160361881 | B196: OKC connector female 50mm2 | C196: 29.7258 | D196: 4
A197: 0160361882 | B197: OKC connector female 95mm2 | C197: 30.7043 | D197: 4
A198: 0160361883 | B198: OKC connector female 120mm2 | C198: 224.2722 | D198: 5
A199: 0160362025 | B199: Gniazdo prądowe OKC 50 Caddy TIG/ARC 151i, 201i, 1500i, 2200i | C199: 26.2444 | D199: 1
A200: 0160362026 | B200: OKC50 gniazdo prądowe CaddyArc | C200: 48.0907 | D200: 2
... 2537 more rows

Sheet 5-OrigoMig 320_430_510
A1: Origo™ MIG 430/430w/510 w
A4: Nazwa | B4: Gin | C4: Cena katalogowa netto [zł]
A5: Origo™ MIG 430
A6: Origo™ MIG 430 zródło prądu z p.masowym | B6: 0349304558 | C6: 12247
A7: Origo™ Feed 30w | B7: 0349304548 | C7: 4146
A8: Zespół przewodów 5mb | B8: 0349490624 | C8: 1012
C9: =SUM(C6:C8) -> 17405
A10: Origo™ MIG 430w
A11: Origo™ MIG 430w zródło prądu z p.masowym | B11: 0349304557 | C11: 14510
A12: Origo™ Feed 30w | B12: 0349304548 | C12: 4146
A13: Zespół przewodów 5mb | B13: 0349304640 | C13: 1306
C14: =SUM(C11:C13) -> 19962
A15: Origo™ MIG 510w
A16: Origo™ MIG 510w zródło prądu z p.masowym | B16: 0349304567 | C16: 17278
A17: Origo™ Feed 30w | B17: 0349304548 | C17: 4146
A18: Zespół przewodów 5mb | B18: 0349304641 | C18: 1421
C19: =SUM(C16:C18) -> 22845
A22: Zespoły przewodów
A24: Zespół przewodów 5mb OrigoMig 430 | B24: 0349490624 | C24: 1012
A25: Zespół przewodów 10mb OrigoMig 430 | B25: 0349490608 | C25: 1648
A26: Zespół przewodów 15mb OrigoMig 430 | B26: 0349490607 | C26: 2273
A27: Zespół przewodów 25mb OrigoMig 430 | B27: 0349490606 | C27: 3576
A29: Zespół przewodów 5mb OrigoMig 430w | B29: 0349304640 | C29: 1306
A30: Zespół przewodów 10mb OrigoMig 430w | B30: 0349305157 | C30: 1980
A31: Zespół przewodów 15mb OrigoMig 430w | B31: 0349305200 | C31: 2591
A32: Zespół przewodów 20mb OrigoMig 430w | B32: 0349305294 | C32: 3282
A33: Zespół przewodów 25mb OrigoMig 430w | B33: 0349305730 | C33: 3875
A35: Zespół przewodów 5mb OrigoMig 510w | B35: 0349304641 | C35: 1421
A36: Zespół przewodów 10mb OrigoMig 510w | B36: 0349305295 | C36: 2211
A37: Zespół przewodów 15mb OrigoMig 510w | B37: 0349305296 | C37: 2950
A38: Zespół przewodów 20mb OrigoMig 510w | B38: 0349305297 | C38: 3756

Sheet 6-Warrior 400i_500i+Robust Feed
A1: Warrior™400i_500i (w) + Robust Feed PRO
A4: Nazwa | B4: Gin | C4: Cena katalogowa netto [zł]
A5: Warrior™ 400i
A6: Warrior™ 400i zródło prądu z p. masowym | B6: 0465350884 | C6: 14010
A7: Robust Feed Pro, Air Cooled | B7: 0445800880 | C7: 9634
A8: Zespół przewodów RF 70mm2, 2m | B8: 0446160880 | C8: 1287
C9: =SUM(C6:C8) -> 24931
A10: Warrior™ 500i
A11: Warrior™ 500i zródło prądu z p. masowym | B11: 0465350883 | C11: 15229
A12: Robust Feed Pro, Air Cooled | B12: 0445800880 | C12: 9634
A13: Zespół przewodów RF 95mm2, 2m | B13: 0446160980 | C13: 1341
C14: =SUM(C11:C13) -> 26204
A15: Warrior™ 400iw
A16: Warrior™ 400i zródło prądu z p. masowym | B16: 0465350884 | C16: 14010
A17: Cool 2,chłodnica | B17: 0465427880 | C17: 2974
A18: Robust Feed Pro, Water Cooled | B18: 0445800881 | C18: 10277
A19: Zespół przewodów RF 70mm2/w, 2m | B19: 0446160890 | C19: 1415
C20: =SUM(C16:C19) -> 28676
A21: Warrior™ 500iw
A22: Warrior™ 500i zródło prądu z p. masowym | B22: 0465350883 | C22: 15229
A23: Cool 2,chłodnica | B23: 0465427880 | C23: 2974
A24: Robust Feed Pro, Water Cooled | B24: 0445800881 | C24: 10277
A25: Zespół przewodów RF 95mm2/w, 2m | B25: 0446160990 | C25: 1480
C26: =SUM(C22:C25) -> 29960
A29: Wyposażenie dodatkowe
A30: Zestaw jezdny 4-kołowy Warrior/Aristo 3 in 1 | B30: 0349313450 | C30: 2025
A31: Zestaw jezdny do źródła prądu Warrior 400i / 500i | B31: 0465416880 | C31: 598
A32: Zestaw jezdny podajnika Robust Feed PRO | B32: 0446081880 | C32: 954
A33: Adapter do zestawu jezdnego 0465510880 pod Robust Feed | B33: 0349313100 | C33: 310.7716
A34: Robust Feed PRO water kit | B34: 0446123880 | C34: 590
A35: Robust Feed PRO wspornik uchwytu spawalniczego | B35: 0446082880 | C35: 230.4007
A36: Dławica na zespół przewodów retrofit kit | B36: 0446050880 | C36: 91.0829
A38: Podajniki Robust Feed PRO w wersji Offshore
A39: Robust Feed Pro Air (Rotametr gazu, grzałka) | B39: 0445800882 | C39: 10598
A40: Robust Feed Pro Water Offshore (Rotametr gazu, grzałka) | B40: 0445800883 | C40: 11349
A42: Zespoły przewodów
A43: Zespół przewodów RF 70mm2, 2m | B43: 0446160880 | C43: 1287
A44: Zespół przewodów RF 70mm2, 5m | B44: 0446160881 | C44: 2025
A45: Zespół przewodów RF 70mm2, 10m | B45: 0446160882 | C45: 3017
A46: Zespół przewodów RF 70mm2, 15m | B46: 0446160883 | C46: 3923
A47: Zespół przewodów RF 70mm2, 20m | B47: 0446160887 | C47: 4850
A48: Zespół przewodów RF 70mm2, 25m | B48: 0446160884 | C48: 5852
A49: Zespół przewodów RF 70mm2, 35m | B49: 0446160885 | C49: 7919
A51: Zespół przewodów RF 70mm2/w, 2m | B51: 0446160890 | C51: 1415
A52: Zespół przewodów RF 70mm2/w, 5m | B52: 0446160891 | C52: 1844
A53: Zespół przewodów RF 70mm2/w, 10m | B53: 0446160892 | C53: 2465
A54: Zespół przewodów RF 70mm2/w, 15m | B54: 0446160893 | C54: 4276
A55: Zespół przewodów RF 70mm2/w, 25m | B55: 0446160894 | C55: 6419
A56: Zespół przewodów RF 70mm2/w, 35m | B56: 0446160895 | C56: 8562
A58: Zespół przewodów RF 95mm2, 2m | B58: 0446160980 | C58: 1341
A59: Zespół przewodów RF 95mm2, 5m | B59: 0446160981 | C59: 2133
A60: Zespół przewodów RF 95mm2, 10m | B60: 0446160982 | C60: 3430
A61: Zespół przewodów RF 95mm2, 15m | B61: 0446160983 | C61: 4716
A62: Zespół przewodów RF 95mm2, 25m | B62: 0446160984 | C62: 7234
A63: Zespół przewodów RF 95mm2, 35m | B63: 0446160985 | C63: 9634
A65: Zespół przewodów RF 95mm2/w, 2m | B65: 0446160990 | C65: 1480
A66: Zespół przewodów RF 95mm2/w, 5m | B66: 0446160991 | C66: 2400
A67: Zespół przewodów RF 95mm2/w, 10m | B67: 0446160992 | C67: 3719
A68: Zespół przewodów RF 95mm2/w, 15m | B68: 0446160993 | C68: 5059
A69: Zespół przewodów RF 95mm2/w, 25m | B69: 0446160994 | C69: 7716
A70: Zespół przewodów RF 95mm2/w, 35m | B70: 0446160995 | C70: 10203
A75: Części eksploatacyjne podajnika Robust Feed PRO
A76: Rolka podająca V 0.6 0.8 | B76: 0445850001 | C76: 55.723
A77: Rolka podająca V 0.8 1.0 | B77: 0445850002 | C77: 55.723
A78: Rolka podająca V 1.0 1.0 | B78: 0445850003 | C78: 55.723
A79: Rolka podająca V 1.0 1.2 | B79: 0445850004 | C79: 55.723
A80: Rolka podająca V 1.2 1.2 | B80: 0445850005 | C80: 55.723
A81: Rolka podająca V 1.4 1.6 | B81: 0445850006 | C81: 55.723
A82: Rolka podająca V 2.0 2.0 | B82: 0445850007 | C82: 55.723
A83: Rolka podająca V-K 1.0 1.2 | B83: 0445850030 | C83: 63.2214
A84: Rolka podająca V-K 1.2 1.2 | B84: 0445850031 | C84: 63.2214
A85: Rolka podająca V-K 1.2 1.4 | B85: 0445850032 | C85: 63.2214
A86: Rolka podająca V-K 1.6 1.6 | B86: 0445850033 | C86: 63.2214
A87: Rolka podająca V-K 1.8 1.8 | B87: 0445850034 | C87: 63.2214
A88: Rolka podająca V-K 2.0 2.0 | B88: 0445850035 | C88: 63.2214
A89: Rolka podająca V-K 2.4 2.4 | B89: 0445850036 | C89: 63.2214
A90: Rolka podająca U 0.8 1.0 | B90: 0445850050 | C90: 61.079
A91: Rolka podająca U 1.0 1.2 | B91: 0445850051 | C91: 61.079
A92: Rolka podająca U 1.2 1.6 | B92: 0445850052 | C92: 61.079
A94: Prowadnik pośredni Aluminium - 2mm (druty 1,0-1,6mm) | B94: 0446080881 | C94: 38.5735
A95: Prowadnik pośredni Stal - 2mm (druty 0,6-1,6mm) | B95: 0446080882 | C95: 38.5735
A96: Prowadnik pośredni Stal - 3mm (druty 2,0-2,4mm) | B96: 0446080883 | C96: 38.5735
A98: Prowadnik wewnętrzny - 2mm (druty 0,6-1,6mm) | B98: 0445822001 | C98: 4.8204
A99: Prowadnik wewnętrzny - 3mm (druty 2,0-2,4mm) | B99: 0445822002 | C99: 4.8204
A101: Prowadnik w EURO Aluminium - 2mm (druty 1,0-1,6mm) | B101: 0445830885 | C101: 23.4737
A102: Prowadnik w EURO Stal - 2mm (druty 0,6-1,6mm) | B102: 0445830881 | C102: 23.4737
A103: Prowadnik w EURO Stal - 3mm (druty 2,0-2,4mm) | B103: 0445830882 | C103: 23.4737

Sheet 6a-Warrior 400i_500i+Feed 304
A1: Warrior™400i_500i (w) + Warrior Feed 304
A4: Nazwa | B4: Gin | C4: Cena katalogowa netto [zł]
A5: Warrior™ 400i
A6: Warrior™ 400i zródło prądu z p. masowym | B6: 0465350884 | C6: 14010
A7: Warrior™ Feed 304 | B7: 0465250880 | C7: 4918
A8: Zespół przewodów 1.7mb | B8: 0459836880 | C8: 1281
C9: =SUM(C6:C8) -> 20209
A10: Warrior™ 500i
A11: Warrior™ 500i zródło prądu z p. masowym | B11: 0465350883 | C11: 15229
A12: Warrior™ Feed 304 | B12: 0465250880 | C12: 4918
A13: Zespół przewodów 1.7mb | B13: 0459836980 | C13: 1281
C14: =SUM(C11:C13) -> 21428
A15: Warrior™ 400iw
A16: Warrior™ 400i zródło prądu z p. masowym | B16: 0465350884 | C16: 14010
A17: Warrior™ Feed 304w | B17: 0465250881 | C17: 5375
A18: Cool 2,chłodnica | B18: 0465427880 | C18: 2974
A19: Zespół przewodów 1.7mb | B19: 0459836890 | C19: 1329
C20: =SUM(C16:C19) -> 23688
A21: Warrior™ 500iw
A22: Warrior™ 500i zródło prądu z p. masowym | B22: 0465350883 | C22: 15229
A23: Warrior™ Feed 304w | B23: 0465250881 | C23: 5375
A24: Cool 2,chłodnica | B24: 0465427880 | C24: 2974
A25: Zespół przewodów 1.7mb | B25: 0459836990 | C25: 1365
C26: =SUM(C22:C25) -> 24943
A29: Wyposażenie dodatkowe
A31: Zestaw jezdny 4-kołowy Warrior/Aristo 3 in 1 | B31: 0349313450 | C31: 2025
A32: Zestaw jezdny do źródła prądu | B32: 0465416880 | C32: 598
A33: Zestaw jezdny do podajnika - podstawowy | B33: 0458707880 | C33: 447.9367
A34: Zestaw jezdny do podajnika - koła skrętne | B34: 0458707881 | C34: 598
A35: Mocowanie przewodów w podajniku (dławica) | B35: 0459234880 | C35: 199.3153
A36: Adapter Myggytrac i Railtrac do podajników Warrior | B36: 0465451881 | C36: 1196
A37: Adapter do szpul 440mm / 30kg | B37: 0459233880 | C37: 869
A38: Wieszak do podajnika | B38: 0458706880 | C38: 285.8765
A39: Wisięgnik do uchwytu (wędka) | B39: 0458705880 | C39: 2317
A40: Dodatkowe mocowanie uchwytu spawalniczego | B40: 0457341881 | C40: 537
A42: Podajniki Warrior Yard Feed 200 / 200w
A43: Warrior YardFeed 200 | B43: 0459906900 | C43: 7421
A44: Warrior YardFeed 200w | B44: 0459906901 | C44: 7870
A46: Zespoły przewodów
A48: Zespół przewodów 1,7 m Warrior 400i | B48: 0459836880 | C48: 1281
A49: Zespół przewodów 5 m Warrior 400i | B49: 0459836881 | C49: 1751
A50: Zespół przewodów 10 m Warrior 400i | B50: 0459836882 | C50: 2377
A51: Zespół przewodów 15 m Warrior 400i | B51: 0459836883 | C51: 3003
A52: Zespół przewodów 25 m Warrior 400i | B52: 0459836884 | C52: 4320
A53: Zespół przewodów 35 m Warrior 400i | B53: 0459836885 | C53: 5582
A55: Zespół przewodów 1,7 m/w Warrior 400iw | B55: 0459836890 | C55: 1329
A56: Zespół przewodów 5 m/w Warrior 400iw | B56: 0459836891 | C56: 2012
A57: Zespół przewodów 10 m/w Warrior 400iw | B57: 0459836892 | C57: 2691
A58: Zespół przewodów 15 m/w Warrior 400iw | B58: 0459836893 | C58: 3326
A59: Zespół przewodów 25 m/w Warrior 400iw | B59: 0459836894 | C59: 4644
A61: Zespół przewodów 1,7 m Warrior 500i | B61: 0459836980 | C61: 1281
A62: Zespół przewodów 5 m Warrior 500i | B62: 0459836981 | C62: 1853
A63: Zespół przewodów 10 m Warrior 500i | B63: 0459836982 | C63: 2586
A64: Zespół przewodów 15 m Warrior 500i | B64: 0459836983 | C64: 3277
A65: Zespół przewodów 25 m Warrior 500i | B65: 0459836984 | C65: 4644
A66: Zespół przewodów 35 m Warrior 500i | B66: 0459836985 | C66: 6202
A68: Zespół przewodów 1,7 m/w Warrior 500iw | B68: 0459836990 | C68: 1365
A69: Zespół przewodów 5 m/w Warrior 500iw | B69: 0459836991 | C69: 2128
A70: Zespół przewodów 10 m/w Warrior 500iw | B70: 0459836992 | C70: 2805
A71: Zespół przewodów 15 m/w Warrior 500iw | B71: 0459836993 | C71: 3479
A72: Zespół przewodów 25 m/w Warrior 500iw | B72: 0459836994 | C72: 5094

Sheet 9-Mig 4004i Pulse
A1: Mig 4004i Pulse (w)
A4: Nazwa | B4: Gin | C4: Cena katalogowa
A5: Mig 4004i Pulse
A6: Aristo Mig 4004i Pulse 380-460V z p. masowym | B6: 0465152883 | C6: 18520
A7: Aristo™ Feed 3004 U6 | B7: 0460526886 | C7: 12185
A8: Zespół przewodów 1,7m | B8: 0459528780 | C8: 1281
A9: Zestaw jezdny 4-kołowy | B9: 0462151880 | C9: 1755
A10: Wspornik do zestawu kołowego bez chłodnicy Cool1 | B10: 0463125880 | C10: 222
C11: =SUM(C6:C10) -> 33963
A12: Mig 4004iw Pulse
A13: Aristo Mig 4004i Pulse 380-460V z p. masowym | B13: 0465152883 | C13: 18520
A14: Chłodnica Cool 1 | B14: 0462300880 | C14: 3003
A15: Aristo™ Feed 3004w U6 | B15: 0460526896 | C15: 12477
A16: Zespół przewodów 1,7m w | B16: 0459528790 | C16: 1779
A17: Zestaw jezdny 4-kołowy | B17: 0462151880 | C17: 1755
C18: =SUM(C13:C17) -> 37534
A21: Wyposażenie dodatkowe
A23: Wyposażenie dodatkowe
A24: Chłodnica Cool 1 | B24: 0462300880 | C24: 3003
A25: Zestaw jezdny 4-kołowy | B25: 0462151880 | C25: 1755
A26: Wspornik do zestawu kołowego bez chłodnicy Cool1 | B26: 0463125880 | C26: 222
A27: Filtr wlotu powietrza (źródło prądu) | B27: 0462197001 | C27: 58.8336
A28: Czujnik przepływu cieczy | B28: 0456855881 | C28: 1084
A29: Uchwyt TIG - SR-B 26V- 4m | B29: 0700025522 | C29: 595
A30: Uchwyt TIG - SR-B 26V- 8m | B30: 0700025523 | C30: 876
A31: Uchwyt elektrodowy 300A - 5m | B31: 0700006888 | C31: 359.3052
A34: Zespoły przewodów
A36: Zespół przewodów 1,7 m urządzenia CAN 10-pin | B36: 0459528780 | C36: 1281
A37: Zespół przewodów 5 m urządzenia CAN 10-pin | B37: 0459528781 | C37: 2596
A38: Zespół przewodów 10 m urządzenia CAN 10-pin | B38: 0459528782 | C38: 3479
A39: Zespół przewodów 15 m urządzenia CAN 10-pin | B39: 0459528783 | C39: 4357
A40: Zespół przewodów 25 m urządzenia CAN 10-pin | B40: 0459528784 | C40: 7171
A41: Zespół przewodów 35 m urządzenia CAN 10-pin | B41: 0459528785 | C41: 9632
A43: Zespół przewodów 1,7 m/w urządzenia CAN 10-pin (w) | B43: 0459528790 | C43: 1779
A44: Zespół przewodów 5 m/w urządzenia CAN 10-pin (w) | B44: 0459528791 | C44: 2792
A45: Zespół przewodów 10 m/w urządzenia CAN 10-pin (w) | B45: 0459528792 | C45: 3896
A46: Zespół przewodów 15 m/w urządzenia CAN 10-pin (w) | B46: 0459528793 | C46: 4749
A49: Podajniki drutu
A51: Podajniki z panelem MA25 - Funkcja Puls, Qset, Linie syn. 53/30, 3 indywidualne programy
A52: Feed 3004 MA25 Aluminium | B52: 0460526670 | C52: 9510
A53: Feed 3004w MA25 Aluminium | B53: 0460526671 | C53: 9975
A54: Feed 3004 MA25 Steel | B54: 0460526672 | C54: 9510
A55: Feed 3004w MA25 Steel | B55: 0460526673 | C55: 9975
A57: Podajniki z panelem U6 - Funkcja Puls, Qset, Linie syn. 60, 10 indywidualnych programów
A58: Aristo™ Feed 3004 U6 | B58: 0460526886 | C58: 12185
A59: Aristo™ Feed 3004w U6 | B59: 0460526896 | C59: 12477
A60: Aristo™ Feed 4804w U6 | B60: 0460526996 | C60: 13962
A62: Podajniki z panelem U82 / U82 Plus - Linie syn. >236, QSet, Super Pulse i rejestracja parametrów
A63: Aristo™ Feed 3004 M0 (bez sterownika) | B63: 0460526881 | C63: 6703
A64: Aristo™ Feed 3004w M0 (bez sterownika) | B64: 0460526891 | C64: 7006
A65: Sterownik zewnętrzny U-82 do podajnika M0 | B65: 0460820880 | C65: 8054
A66: Sterownik zewnętrzny U-82 Plus do podajnika M0 | B66: 0460820881 | C66: 10697

Sheet 9a-Aristo 500ix
A1: Aristo Mig 500ix
A4: Nazwa | B4: Gin | C4: Cena katalogowa
A5: Aristo Mig 500ix
A6: Aristo 500ix CE, (380-460V) | B6: 0446200880 | C6: 19952
A7: Robust Feed Pulse W basic | B7: 0445800894 | C7: 14184
A8: Zespół przewodów Air 70mm2 - 2m | B8: 0446255880 | C8: 1661
A9: Zestaw jezdny 4-kołowy (pod butlę) Warrior/Aristo 3 in 1 | B9: 0349313450 | C9: 2025
C10: =SUM(C6:C9) -> 37822
A11: Aristo Mig 500ix z chłodnicą
A12: Aristo 500ix CE, (380-460V) | B12: 0446200880 | C12: 19952
A13: Chłodnica cieczy Cool 2 | B13: 0465427880 | C13: 2974
A14: Robust Feed Pulse W basic | B14: 0445800894 | C14: 14184
A15: Zespół przewodów Water 70mm2 - 2m | B15: 0446255890 | C15: 1766
A16: Zestaw jezdny 4-kołowy (pod butlę) Warrior/Aristo 3 in 1 | B16: 0349313450 | C16: 2025
C17: =SUM(C12:C16) -> 40901
A20: Podajniki drutu z serii Robust Feed Pulse oraz U6 (10pin)
A21: Robust Feed Pulse W Basic 12pin | B21: 0445800894 | C21: 14184
A22: Robust Feed Pulse W (Rotametr gazu, gniazdo MMA, grzałka) 12pin | B22: 0445800891 | C22: 14972
A23: Robust Feed Pulse W (Rotametr gazu, gniazdo MMA, grzałka, ELP, Push-Pull) 23pin | B23: 0445800892 | C23: 15707
A24: Robust feed U6 W Basic 12pin | B24: 0445800897 | C24: 15234
A25: Robust feed U6 W (Rotametr gazu, gniazdo MMA, grzałka) 12pin | B25: 0445800887 | C25: 16022
A26: Robust feed U6 W (Rotametr gazu, gniazdo MMA, grzałka, ELP, Push-Pull) 23pin | B26: 0445800888 | C26: 16758
A28: W- chłodzenie cieczą uchwytów MIG/MAG
A31: Wyposażenie dodatkowe
A32: Chłodnica cieczy Cool 2 | B32: 0465427880 | C32: 2974
A33: Zestaw jezdny 4-kołowy (pod butlę) Warrior/Aristo 3 in 1 | B33: 0349313450 | C33: 2025
A34: Zestaw jezdny do źródła prądu Warrior 400i / 500i | B34: 0465416880 | C34: 598
A35: Zestaw jezdny podajnika Robust Feed Pulse / U6 | B35: 0446081880 | C35: 954
A36: Adapter do zestawu jezdnego 0465510880 pod Robust Feed | B36: 0349313100 | C36: 310.7716
A37: Robust Feed wspornik uchwytu spawalniczego | B37: 0446082880 | C37: 230.4007
A38: Dławica na zespół przewodów retrofit kit | B38: 0446050880 | C38: 91.0829
A39: Zestaw do przedłużenia trzpienia pod podajnik z kołami | B39: 0465508880 | C39: 367.71
A42: Zespoły przewodów do podajników Robust Feed Pulse i U6
A43: Zespół przewodów Air 70mm2 - 2m | B43: 0446255880 | C43: 1661
A44: Zespół przewodów Air 70mm2 - 5m | B44: 0446255881 | C44: 2617
A45: Zespół przewodów Air 70mm2 - 10m | B45: 0446255882 | C45: 3499
A46: Zespół przewodów Air 70mm2 - 15m | B46: 0446255883 | C46: 4379
A47: Zespół przewodów Air 70mm2 - 20m | B47: 0446255884 | C47: 7192
A48: Zespół przewodów Air 70mm2 - 25m | B48: 0446255885 | C48: 9653
A49: Zespół przewodów Air 70mm2 - 35m | B49: 0446255886 | C49: 13438
A50: Zespół przewodów Water 70mm2 - 2m | B50: 0446255890 | C50: 1766
A51: Zespół przewodów Water 70mm2 - 5m | B51: 0446255891 | C51: 2722
A52: Zespół przewodów Water 70mm2 - 10m | B52: 0446255892 | C52: 3604
A53: Zespół przewodów Water 70mm2 - 15m | B53: 0446255893 | C53: 4484
A54: Zespół przewodów Water 70mm2 - 20m | B54: 0446255894 | C54: 7297
A55: Zespół przewodów Water 70mm2 - 25m | B55: 0446255895 | C55: 9758
A56: Zespół przewodów Water 70mm2 - 35m | B56: 0446255896 | C56: 13543
A59: Opcjonalnie - Standardowe Podajniki drutu
A61: Podajniki z panelem MA25 - Funkcja Puls, Qset, Linie syn. 53/30, 3 indywidualne programy
A62: Feed 3004 MA25 Aluminium | B62: 0460526670 | C62: 9510
A63: Feed 3004w MA25 Aluminium | B63: 0460526671 | C63: 9975
A64: Feed 3004 MA25 Steel | B64: 0460526672 | C64: 9510
A65: Feed 3004w MA25 Steel | B65: 0460526673 | C65: 9975
A67: Podajniki z panelem U6 - Funkcja Puls, Qset, Linie syn. 60, 10 indywidualnych programów
A68: Aristo™ Feed 3004 U6 | B68: 0460526886 | C68: 12185
A69: Aristo™ Feed 3004w U6 | B69: 0460526896 | C69: 12477
A70: Aristo™ Feed 4804w U6 | B70: 0460526996 | C70: 13962
A72: Podajniki z panelem U82 / U82 Plus - Linie syn. >236, QSet, Super Pulse i rejestracja parametrów
A73: Aristo™ Feed 3004 M0 (bez sterownika) | B73: 0460526881 | C73: 6703
A74: Aristo™ Feed 3004w M0 (bez sterownika) | B74: 0460526891 | C74: 7006
A75: Sterownik zewnętrzny U-82 do podajnika M0 | B75: 0460820880 | C75: 8054
A76: Sterownik zewnętrzny U-82 Plus do podajnika M0 | B76: 0460820881 | C76: 10697
A78: Zespoły przewodów do Standardowych podajników drutu
A80: Zespół przewodów 1,7 m urządzenia CAN 10-pin | B80: 0459528780 | C80: 1281
A81: Zespół przewodów 5 m urządzenia CAN 10-pin | B81: 0459528781 | C81: 2596
A82: Zespół przewodów 10 m urządzenia CAN 10-pin | B82: 0459528782 | C82: 3479
A83: Zespół przewodów 15 m urządzenia CAN 10-pin | B83: 0459528783 | C83: 4357
A84: Zespół przewodów 25 m urządzenia CAN 10-pin | B84: 0459528784 | C84: 7171
A85: Zespół przewodów 35 m urządzenia CAN 10-pin | B85: 0459528785 | C85: 9632
A87: Zespół przewodów 1,7 m/w urządzenia CAN 10-pin (w) | B87: 0459528790 | C87: 1779
A88: Zespół przewodów 5 m/w urządzenia CAN 10-pin (w) | B88: 0459528791 | C88: 2792
A89: Zespół przewodów 10 m/w urządzenia CAN 10-pin (w) | B89: 0459528792 | C89: 3896
A90: Zespół przewodów 15 m/w urządzenia CAN 10-pin (w) | B90: 0459528793 | C90: 4749

Sheet 12-Aristo U4000i_5000i _U5000i
A1: Aristo™ Mig U4000i / 5000i / U5000i (w)
A4: Nazwa | B4: GIN | C4: Cena katalogowa
A5: Aristo™ Mig U4000iw
A6: Aristo™ Mig U4000iw zródło prądu z p. masowym | B6: 0458625885 | C6: 28252
A7: Aristo™ Feed 3004w U6 | B7: 0460526896 | C7: 12477
A8: Zespół przewodów 1,7 m/w | B8: 0459528970 | C8: 1646
A9: Wózek jezdny 4 - kołowy z trzpieniem | B9: 0458530880 | C9: 1852
C10: =SUM(C6:C9) -> 44227
A11: Aristo™ Mig 5000iw
A12: Aristo™ Mig 5000iw zródło prądu z p. masowym | B12: 0459230881 | C12: 33857
A13: Aristo™ Feed 3004w U6 | B13: 0460526896 | C13: 12477
A14: Zespół przewodów 1,7 m/w | B14: 0459528970 | C14: 1646
A15: Wózek jezdny 4 - kołowy z trzpieniem | B15: 0458530880 | C15: 1852
C16: =SUM(C12:C15) -> 49832
A17: Aristo™ Mig U5000iw
A18: Aristo™ Mig U5000iw zródło prądu z p. masowym | B18: 0459230883 | C18: 36901
A19: Aristo™ Feed 3004w U6 | B19: 0460526896 | C19: 12477
A20: Zespół przewodów 1,7 m/w | B20: 0459528970 | C20: 1646
A21: Wózek jezdny 4 - kołowy z trzpieniem | B21: 0458530880 | C21: 1852
C22: =SUM(C18:C21) -> 52876
A25: Wyposażenie dodatkowe
A27: Zasilacz wielo-napięciowy 208V - 575V | B27: 0459145880 | C27: 6031
A28: Czujnik przepływu cieczy | B28: 0456855880 | C28: 1173
A31: Proponowane uchwyty spawalnicze TIG do urządzeń w wersji U
A33: Uchwyt TIG SR-B 21- 4m | B33: 0700025544 | C33: 1220
A34: Uchwyt TIG SR-B 21- 8m | B34: 0700025545 | C34: 1524
A35: Uchwyt TIG SR-B 21- 12m | B35: 0700025546 | C35: 3415
A36: Uchwyt TIG SR-B 21- 16m | B36: 0700025547 | C36: 4088
A37: Uchwyt TIG XCT-B 400W - 4m | B37: 0700025540 | C37: 1461
A38: Uchwyt TIG XCT-B 400W - 8m | B38: 0700025541 | C38: 1944
A39: Uchwyt TIG XCT-B 400W - 12m | B39: 0700025542 | C39: 3730
A40: Uchwyt TIG XCT-B 400W - 16m | B40: 0700025543 | C40: 4360
A41: Uchwyt TIG SR-B 400 - 4m | B41: 0700025538 | C41: 1461
A42: Uchwyt TIG SR-B 400 - 8m | B42: 0700025539 | C42: 1934
A45: Zespoły przewodów
A47: Zespoły przewodów - amphenol 10-pin / Burndy 12-pin
A48: Zespół przewodów 1,7 m/w | B48: 0459528970 | C48: 1646
A49: Zespół przewodów 5 m/w | B49: 0459528971 | C49: 2827
A50: Zespół przewodów 10 m/w | B50: 0459528972 | C50: 3873
A51: Zespół przewodów 15 m/w | B51: 0459528973 | C51: 5021
A53: Podajniki drutu
A56: Podajniki z panelem U6 - dodatko Qset, Puls i indywidulane programy
A57: Aristo™ Feed 3004 U6 | B57: 0460526886 | C57: 12185
A58: Aristo™ Feed 3004w U6 | B58: 0460526896 | C58: 12477
A59: Aristo™ Feed 4804w U6 | B59: 0460526996 | C59: 13962
A61: Podajniki z panelem U82 / U82 Plus - dodatko QSet, Super Pulse i rejestracja parametrów
A62: Aristo™ Feed 3004 M0 (bez sterownika) | B62: 0460526881 | C62: 6703
A63: Aristo™ Feed 3004w M0 (bez sterownika) | B63: 0460526891 | C63: 7006
A64: Sterownik zewnętrzny U-82 do podajnika M0 | B64: 0460820880 | C64: 8054
A65: Sterownik zewnętrzny U-82 Plus do podajnika M0 | B65: 0460820881 | C65: 10697
A71: Zestaw AristoMig 5000iw z dwoma podajnikami i jednym sterownikiem | C71: Cena katalogowa netto
A72: Aristo™ Mig 5000iw zródło prądu z p. masowym | B72: 0459230881 | C72: =C12 -> 33857
A73: Zestaw jezdny 4-kołowy do 2-podajników | B73: 0458603880 | C73: 6607
A74: Aristo™ Feed 3004w M0 (bez sterownika) | B74: 0460526891 | C74: =C63 -> 7006
A75: Aristo™ Feed 3004w M0 (bez sterownika) | B75: 0460526891 | C75: =C63 -> 7006
A76: Sterownik zewnętrzny U-82 Plus do podajnika M 0 | B76: 0460820881 | C76: =C65 -> 10697
A77: Zestaw do podłączenia 2 podajników z panelem U8 | B77: 0459546880 | C77: 1146
A78: Zespół przewodów 1,7 m/w | B78: 0459528970 | C78: =C8 -> 1646
A79: Zespół przewodów 1,7 m/w | B79: 0459528970 | C79: =C8 -> 1646
C80: =SUM(C72:C79) -> 69611

Sheet 13-AristoTig 4000iw DC
A1: AristoTig 4000i DC (w)
A4: Nazwa | B4: GIN | C4: Cena katalogowa
A5: Aristo™ Tig 4000i TA4
A6: Aristo™ Tig 4000iw TA4 | B6: 0458630881 | C6: 26867
A7: Wózek jezdny 4 - kołowy | B7: 0458530881 | C7: 1764
C8: =SUM(C6:C7) -> 28631
A11: Wyposażenie dodatkowe
A13: Czujnik przepływu cieczy KIT | B13: 0456855880 | C13: 1173
A16: TIG/MMA DC - Opcjonalne zródła prądu i panele sterowania
A17: Aristo™ Tig 4000iw TA6 | B17: 0458630885 | C17: 34217
A20: Proponowane uchwyty spawalnicze TIG
A22: Uchwyt TIG SR-B 21- 4m | B22: 0700025544 | C22: 1220
A23: Uchwyt TIG SR-B 21- 8m | B23: 0700025545 | C23: 1524
A24: Uchwyt TIG SR-B 21- 12m | B24: 0700025546 | C24: 3415
A25: Uchwyt TIG SR-B 21- 16m | B25: 0700025547 | C25: 4088
A26: Uchwyt TIG XCT-B 400W - 4m | B26: 0700025540 | C26: 1461
A27: Uchwyt TIG XCT-B 400W - 8m | B27: 0700025541 | C27: 1944
A28: Uchwyt TIG XCT-B 400W - 12m | B28: 0700025542 | C28: 3730
A29: Uchwyt TIG XCT-B 400W - 16m | B29: 0700025543 | C29: 4360
A30: Uchwyt TIG SR-B 400 - 4m | B30: 0700025538 | C30: 1461
A31: Uchwyt TIG SR-B 400 - 8m | B31: 0700025539 | C31: 1934

Sheet 14-OrigoTig 4300 AC_DC
A1: OrigoTig 4300iw AC/DC TA24
A4: Nazwa | B4: GIN | C4: Cena katalogowa
A5: Origo™ Tig 4300iw TA24
A6: Origo™ Tig 4300iw TA24 | B6: 0460100880 | C6: 40543
A7: Wózek jezdny 4 - kołowy | B7: 0458530881 | C7: 1764
C8: =SUM(C6:C7) -> 42307
A10: Wyposażenie dodatkowe
A12: Czujnik przepływu cieczy KIT | B12: 0456855880 | C12: 1173
A15: Proponowane uchwyty spawalnicze TIG
A17: Uchwyt TIG SR-B 21- 4m | B17: 0700025544 | C17: 1220
A18: Uchwyt TIG SR-B 21- 8m | B18: 0700025545 | C18: 1524
A19: Uchwyt TIG SR-B 21- 12m | B19: 0700025546 | C19: 3415
A20: Uchwyt TIG SR-B 21- 16m | B20: 0700025547 | C20: 4088
A21: Uchwyt TIG XCT-B 400W - 4m | B21: 0700025540 | C21: 1461
A22: Uchwyt TIG XCT-B 400W - 8m | B22: 0700025541 | C22: 1944
A23: Uchwyt TIG XCT-B 400W - 12m | B23: 0700025542 | C23: 3730
A24: Uchwyt TIG XCT-B 400W - 16m | B24: 0700025543 | C24: 4360
A25: Uchwyt TIG SR-B 400 - 4m | B25: 0700025538 | C25: 1461
A26: Uchwyt TIG SR-B 400 - 8m | B26: 0700025539 | C26: 1934

Sheet 14a-Heliarc 283i_352i
A1: Heliarc 283i / 353i AC/DC
A4: Nazwa | B4: GIN | C4: Cena katalogowa
A5: Heliarc 283i AC/DC | B5: 0700300701 | C5: 20855
A6: Heliarc 353i AC/DC | B6: 0700300702 | C6: 31508
A8: Wyposażenie dodatkowe
A10: Zestaw jezdny 4-kołowy | B10: 0558101702 | C10: 2312
A11: Chłodnica cieczy Heliarc | B11: 0700300703 | C11: 5096
A12: Płyn chłodzący Glidex II 10 l. | B12: 0465720002 | C12: 175
A13: Przewód elektrodowy 5 m, 35mm2 | B13: 0700006888 | C13: 359.3052
A14: Nożna regulacja pądu spawania – FC-5 | B14: 0558004234 | C14: 1000
A16: Proponowane uchwyty spawalnicze TIG z chłodzenie powietrzem
A18: Uchwyt TIG SR-B 9 - 4m | B18: 0700025500 | C18: 742
A19: Uchwyt TIG SR-B 9 - 8m | B19: 0700025501 | C19: 1154
A20: Uchwyt TIG SR-B 9FX - 4m | B20: 0700025506 | C20: 780
A21: Uchwyt TIG SR-B 9FX - 8m | B21: 0700025507
A22: Uchwyt TIG SR-B 26 - 4m | B22: 0700025518 | C22: 946
A23: Uchwyt TIG SR-B 26 - 8m | B23: 0700025519 | C23: 1629
A24: Uchwyt TIG SR-B 26FX - 4m | B24: 0700025524 | C24: 1283
A25: Uchwyt TIG SR-B 26FX - 8m | B25: 0700025525 | C25: 1598
A27: Proponowane uchwyty spawalnicze TIG z chłodzenie cieczą
A29: Uchwyt TIG SR-B 21- 4m | B29: 0700025544 | C29: 1220
A30: Uchwyt TIG SR-B 21- 8m | B30: 0700025545 | C30: 1524
A31: Uchwyt TIG SR-B 21- 12m | B31: 0700025546 | C31: 3415
A32: Uchwyt TIG SR-B 21- 16m | B32: 0700025547 | C32: 4088
A33: Uchwyt TIG XCT-B 400W - 4m | B33: 0700025540 | C33: 1461
A34: Uchwyt TIG XCT-B 400W - 8m | B34: 0700025541 | C34: 1944
A35: Uchwyt TIG XCT-B 400W - 12m | B35: 0700025542 | C35: 3730
A36: Uchwyt TIG XCT-B 400W - 16m | B36: 0700025543 | C36: 4360
A37: Uchwyt TIG SR-B 400 - 4m | B37: 0700025538 | C37: 1461
A38: Uchwyt TIG SR-B 400 - 8m | B38: 0700025539 | C38: 1934
A41: Proponowane uchwyty spawalnicze TIG z regulacją prądu spawania w rękojeści
A43: Uchwyt TIG SR-B 21 - 8m z potencjometrem | B43: 0700025577 | C43: 3457
A44: Uchwyt TIG SR-B 21FX - 8m z potencjometrem | B44: 0700025578 | C44: 3562
A45: Uchwyt TIG SR-B 400 - 8m z potencjometrem | B45: 0700025579 | C45: 5243

Sheet 15-Kompletacja uchwytów
A1: Nazwa urzadzenia | B1: GIN | C1: Cena netto | D1: Nazwa Uchwytu
B2: 0700025220 | C2: =VLOOKUP(B2,'Cennik numeryczny'!A:E,5,FALSE) -> 331 | D2: Uchwyt MIG/MAG - MXL 201 3m EURO
A3: Origo™ Mig C280 PRO | B3: 0700025221 | C3: =VLOOKUP(B3,'Cennik numeryczny'!A:E,5,FALSE) -> 375 | D3: Uchwyt MIG/MAG - MXL 201 4m EURO
B4: 0700025230 | C4: =VLOOKUP(B4,'Cennik numeryczny'!A:E,5,FALSE) -> 475 | D4: Uchwyt MIG/MAG - MXL 271 3m EURO
B5: 0700025231 | C5: =VLOOKUP(B5,'Cennik numeryczny'!A:E,5,FALSE) -> 521 | D5: Uchwyt MIG/MAG - MXL 271 4m EURO
B6: 0700025220 | C6: =VLOOKUP(B6,'Cennik numeryczny'!A:E,5,FALSE) -> 331 | D6: Uchwyt MIG/MAG - MXL 201 3m EURO
A7: Origo™ Mig C280 PRO 4WD | B7: 0700025221 | C7: =VLOOKUP(B7,'Cennik numeryczny'!A:E,5,FALSE) -> 375 | D7: Uchwyt MIG/MAG - MXL 201 4m EURO
B8: 0700025230 | C8: =VLOOKUP(B8,'Cennik numeryczny'!A:E,5,FALSE) -> 475 | D8: Uchwyt MIG/MAG - MXL 271 3m EURO
B9: 0700025231 | C9: =VLOOKUP(B9,'Cennik numeryczny'!A:E,5,FALSE) -> 521 | D9: Uchwyt MIG/MAG - MXL 271 4m EURO
B10: 0700025240 | C10: =VLOOKUP(B10,'Cennik numeryczny'!A:E,5,FALSE) -> 708 | D10: Uchwyt MIG/MAG - MXL 341 3m EURO
B11: 0700025241 | C11: =VLOOKUP(B11,'Cennik numeryczny'!A:E,5,FALSE) -> 773 | D11: Uchwyt MIG/MAG - MXL 341 4m EURO
B12: 0700025242 | C12: =VLOOKUP(B12,'Cennik numeryczny'!A:E,5,FALSE) -> 872 | D12: Uchwyt MIG/MAG - MXL 341 5m EURO
B13: 0700025230 | C13: =VLOOKUP(B13,'Cennik numeryczny'!A:E,5,FALSE) -> 475 | D13: Uchwyt MIG/MAG - MXL 271 3m EURO
A14: Origo™ Mig C340 PRO | B14: 0700025231 | C14: =VLOOKUP(B14,'Cennik numeryczny'!A:E,5,FALSE) -> 521 | D14: Uchwyt MIG/MAG - MXL 271 4m EURO
B15: 0700025240 | C15: =VLOOKUP(B15,'Cennik numeryczny'!A:E,5,FALSE) -> 708 | D15: Uchwyt MIG/MAG - MXL 341 3m EURO
B16: 0700025241 | C16: =VLOOKUP(B16,'Cennik numeryczny'!A:E,5,FALSE) -> 773 | D16: Uchwyt MIG/MAG - MXL 341 4m EURO
B17: 0700025242 | C17: =VLOOKUP(B17,'Cennik numeryczny'!A:E,5,FALSE) -> 872 | D17: Uchwyt MIG/MAG - MXL 341 5m EURO
B18: 0700025240 | C18: =VLOOKUP(B18,'Cennik numeryczny'!A:E,5,FALSE) -> 708 | D18: Uchwyt MIG/MAG - MXL 341 3m EURO
A19: Origo™ Mig C340 PRO 4WD | B19: 0700025241 | C19: =VLOOKUP(B19,'Cennik numeryczny'!A:E,5,FALSE) -> 773 | D19: Uchwyt MIG/MAG - MXL 341 4m EURO
A20: Origo™ Mig 430 | B20: 0700025242 | C20: =VLOOKUP(B20,'Cennik numeryczny'!A:E,5,FALSE) -> 872 | D20: Uchwyt MIG/MAG - MXL 341 5m EURO
B21: 0700025031 | C21: =VLOOKUP(B21,'Cennik numeryczny'!A:E,5,FALSE) -> 1169 | D21: Uchwyt MIG/MAG - PSF 315, 4m
B22: 0700025032 | C22: =VLOOKUP(B22,'Cennik numeryczny'!A:E,5,FALSE) -> 1308 | D22: Uchwyt MIG/MAG - PSF 315, 5m
A23: Warrior 400i / 500i | B23: 0700025040 | C23: =VLOOKUP(B23,'Cennik numeryczny'!A:E,5,FALSE) -> 1200 | D23: Uchwyt MIG/MAG - PSF 415, 3m
A24: Aristo™ Mig 5000i | B24: 0700025041 | C24: =VLOOKUP(B24,'Cennik numeryczny'!A:E,5,FALSE) -> 1308 | D24: Uchwyt MIG/MAG - PSF 415, 4m
B25: 0700025042 | C25: =VLOOKUP(B25,'Cennik numeryczny'!A:E,5,FALSE) -> 1415 | D25: Uchwyt MIG/MAG - PSF 415, 5m
B26: 0700025050 | C26: =VLOOKUP(B26,'Cennik numeryczny'!A:E,5,FALSE) -> 1308 | D26: Uchwyt MIG/MAG - PSF 515, 3m
B27: 0700025051 | C27: =VLOOKUP(B27,'Cennik numeryczny'!A:E,5,FALSE) -> 1490 | D27: Uchwyt MIG/MAG - PSF 515, 4m
B28: 0700025052 | C28: =VLOOKUP(B28,'Cennik numeryczny'!A:E,5,FALSE) -> 1704 | D28: Uchwyt MIG/MAG - PSF 515, 5m
A29: Warrior 400i / 500i | B29: 0700025250 | C29: =VLOOKUP(B29,'Cennik numeryczny'!A:E,5,FALSE) -> 1044 | D29: Uchwyt MIG/MAG - MXL 411 3m EURO
A30: wersje z chodnicą cieczy | B30: 0700025251 | C30: =VLOOKUP(B30,'Cennik numeryczny'!A:E,5,FALSE) -> 1127 | D30: Uchwyt MIG/MAG - MXL 411 4m EURO
B31: 0700025252 | C31: =VLOOKUP(B31,'Cennik numeryczny'!A:E,5,FALSE) -> 1270 | D31: Uchwyt MIG/MAG - MXL 411 5m EURO
A32: Origo™ Mig 430w | B32: 0700025260 | C32: =VLOOKUP(B32,'Cennik numeryczny'!A:E,5,FALSE) -> 1060 | D32: Uchwyt MIG/MAG - MXL 511 3m EURO
A33: Origo™ Mig 510w | B33: 0700025261 | C33: =VLOOKUP(B33,'Cennik numeryczny'!A:E,5,FALSE) -> 1171 | D33: Uchwyt MIG/MAG - MXL 511 4m EURO
B34: 0700025262 | C34: =VLOOKUP(B34,'Cennik numeryczny'!A:E,5,FALSE) -> 1303 | D34: Uchwyt MIG/MAG - MXL 511 5m EURO
B35: 0700025060 | C35: =VLOOKUP(B35,'Cennik numeryczny'!A:E,5,FALSE) -> 1522 | D35: Uchwyt MIG/MAG - PSF 420w, 3m
B36: 0700025061 | C36: =VLOOKUP(B36,'Cennik numeryczny'!A:E,5,FALSE) -> 1662 | D36: Uchwyt MIG/MAG - PSF 420w, 4m
B37: 0700025062 | C37: =VLOOKUP(B37,'Cennik numeryczny'!A:E,5,FALSE) -> 1791 | D37: Uchwyt MIG/MAG - PSF 420w, 5m
B38: 0700025070 | C38: =VLOOKUP(B38,'Cennik numeryczny'!A:E,5,FALSE) -> 1844 | D38: Uchwyt MIG/MAG - PSF 520w, 3m
B39: 0700025071 | C39: =VLOOKUP(B39,'Cennik numeryczny'!A:E,5,FALSE) -> 1983 | D39: Uchwyt MIG/MAG - PSF 520w, 4m
B40: 0700025072 | C40: =VLOOKUP(B40,'Cennik numeryczny'!A:E,5,FALSE) -> 2122 | D40: Uchwyt MIG/MAG - PSF 520w, 5m
B41: 0700025020 | C41: =VLOOKUP(B41,'Cennik numeryczny'!A:E,5,FALSE) -> 879 | D41: Uchwyt MIG/MAG - PSF 260, 3m
A42: Origo™ Mig C3000i | B42: 0700025021 | C42: =VLOOKUP(B42,'Cennik numeryczny'!A:E,5,FALSE) -> 986 | D42: Uchwyt MIG/MAG - PSF 260, 4m
A43: Aristo™ Mig C3000i | B43: 0700025022 | C43: =VLOOKUP(B43,'Cennik numeryczny'!A:E,5,FALSE) -> 1093 | D43: Uchwyt MIG/MAG - PSF 260, 5m
A44: Mig 3001i | B44: 0700025030 | C44: =VLOOKUP(B44,'Cennik numeryczny'!A:E,5,FALSE) -> 1019 | D44: Uchwyt MIG/MAG - PSF 315, 3m
A45: Mig 4001i | B45: 0700025031 | C45: =VLOOKUP(B45,'Cennik numeryczny'!A:E,5,FALSE) -> 1169 | D45: Uchwyt MIG/MAG - PSF 315, 4m
B46: 0700025032 | C46: =VLOOKUP(B46,'Cennik numeryczny'!A:E,5,FALSE) -> 1308 | D46: Uchwyt MIG/MAG - PSF 315, 5m
B47: 0700025060 | C47: =VLOOKUP(B47,'Cennik numeryczny'!A:E,5,FALSE) -> 1522 | D47: Uchwyt MIG/MAG - PSF 420w, 3m
A48: Aristo™ Mig 5000iw | B48: 0700025061 | C48: =VLOOKUP(B48,'Cennik numeryczny'!A:E,5,FALSE) -> 1662 | D48: Uchwyt MIG/MAG - PSF 420w, 4m
A49: Origo™ Mig C3000iw | B49: 0700025062 | C49: =VLOOKUP(B49,'Cennik numeryczny'!A:E,5,FALSE) -> 1791 | D49: Uchwyt MIG/MAG - PSF 420w, 5m
A50: Aristo™ Mig C3000iw | B50: 0700025070 | C50: =VLOOKUP(B50,'Cennik numeryczny'!A:E,5,FALSE) -> 1844 | D50: Uchwyt MIG/MAG - PSF 520w, 3m
A51: Mig 3001iw | B51: 0700025071 | C51: =VLOOKUP(B51,'Cennik numeryczny'!A:E,5,FALSE) -> 1983 | D51: Uchwyt MIG/MAG - PSF 520w, 4m
A52: Mig 4001iw | B52: 0700025072 | C52: =VLOOKUP(B52,'Cennik numeryczny'!A:E,5,FALSE) -> 2122 | D52: Uchwyt MIG/MAG - PSF 520w, 5m
A53: Aristo™ Mig U4000iw | B53: 0700025060 | C53: =VLOOKUP(B53,'Cennik numeryczny'!A:E,5,FALSE) -> 1522 | D53: Uchwyt MIG/MAG - PSF 420w, 3m
A54: Aristo™ Mig U5000iw | B54: 0700025061 | C54: =VLOOKUP(B54,'Cennik numeryczny'!A:E,5,FALSE) -> 1662 | D54: Uchwyt MIG/MAG - PSF 420w, 4m
B55: 0700025062 | C55: =VLOOKUP(B55,'Cennik numeryczny'!A:E,5,FALSE) -> 1791 | D55: Uchwyt MIG/MAG - PSF 420w, 5m
B56: 0700025070 | C56: =VLOOKUP(B56,'Cennik numeryczny'!A:E,5,FALSE) -> 1844 | D56: Uchwyt MIG/MAG - PSF 520w, 3m
B57: 0700025071 | C57: =VLOOKUP(B57,'Cennik numeryczny'!A:E,5,FALSE) -> 1983 | D57: Uchwyt MIG/MAG - PSF 520w, 4m
B58: 0700025072 | C58: =VLOOKUP(B58,'Cennik numeryczny'!A:E,5,FALSE) -> 2122 | D58: Uchwyt MIG/MAG - PSF 520w, 5m
B59: 0700025544 | C59: =VLOOKUP(B59,'Cennik numeryczny'!A:E,5,FALSE) -> 1220 | D59: Uchwyt TIG SR-B 21- 4m
B60: 0700025545 | C60: =VLOOKUP(B60,'Cennik numeryczny'!A:E,5,FALSE) -> 1524 | D60: Uchwyt TIG SR-B 21- 8m
B61: 0700025538 | C61: =VLOOKUP(B61,'Cennik numeryczny'!A:E,5,FALSE) -> 1461 | D61: Uchwyt TIG SR-B 400 - 4m
B62: 0700025539 | C62: =VLOOKUP(B62,'Cennik numeryczny'!A:E,5,FALSE) -> 1934 | D62: Uchwyt TIG SR-B 400 - 8m
B63: 0700025500 | C63: =VLOOKUP(B63,'Cennik numeryczny'!A:E,5,FALSE) -> 742 | D63: Uchwyt TIG SR-B 9 - 4m
A64: Origo™ Tig 3001i | B64: 0700025501 | C64: 980 | D64: Uchwyt TIG SR-B 9 - 8m
B65: 0700025518 | C65: =VLOOKUP(B65,'Cennik numeryczny'!A:E,5,FALSE) -> 946 | D65: Uchwyt TIG SR-B 26 - 4m
B66: 0700025519 | C66: =VLOOKUP(B66,'Cennik numeryczny'!A:E,5,FALSE) -> 1629 | D66: Uchwyt TIG SR-B 26 - 8m
B67: 0700025544 | C67: =VLOOKUP(B67,'Cennik numeryczny'!A:E,5,FALSE) -> 1220 | D67: Uchwyt TIG SR-B 21- 4m
A68: Origo™ Tig 3001iw | B68: 0700025545 | C68: =VLOOKUP(B68,'Cennik numeryczny'!A:E,5,FALSE) -> 1524 | D68: Uchwyt TIG SR-B 21- 8m
A69: Origo™ Tig 4300iw | B69: 0700025538 | C69: =VLOOKUP(B69,'Cennik numeryczny'!A:E,5,FALSE) -> 1461 | D69: Uchwyt TIG SR-B 400 - 4m
A70: Aristo™ Tig 4000iw | B70: 0700025539 | C70: =VLOOKUP(B70,'Cennik numeryczny'!A:E,5,FALSE) -> 1934 | D70: Uchwyt TIG SR-B 400 - 8m

Sheet 16-Mechanizacja MIGMAG
A1: Opis | B1: Uwagi | C1: Nr katalog.
A3: Uwaga: poniższe urządzenia przeznaczone są do mechanizacji spawania metodą MIG/MAG
A4: i powinny współpracować z typowym półautomatem spawalniczym.
A5: Wskazane jest zastosowanie półautomatu z wydzielonym podajnikiem drutu i płynną regulacją param.
A7: TRAKTOR DO SPAWANIA MIG/MAG: MIGGYTRAC B501 Zmech MIG/MAG | C7: Zmech. - MIG/MAG
A9: Miggytrac B501 | B9: Uwaga! Należy zakupić baterię i ładowarkę - patrz poniżej akcesoria | C9: 0457357882 | E9: 10420.7
A10: Miggytrac B5001 | B10: Uwaga! Należy zakupić baterię i ładowarkę - patrz poniżej akcesoria | C10: 0459990645 | E10: 18024.7
A11: Ekran ochronny | B11: Miggytrac | C11: 0457463880 | E11: 1662.4
A12: Ekran ochronny | B12: Miggytrac | C12: 0457463881 | E12: 1658.7
A13: WÓZEK SZYNOWY RAILTRAC | C13: Zmech. - MIG/MAG
A14: W skład urządzenia Railtrac B42V wchodzi: wózek z wbudowanym kontrolerem i przewodem sterowniczym (pilot), uchwyt uniwersalny palnika Ø 10-22mm
A16: Railtrac B42V | B16: Uwaga! Należy zakupić baterię i ładowarkę - patrz poniżej akcesoria | C16: 0398146016 | E16: 53766.4
A17: *W skład urządzeń Railtrac 1000 FW wchodzi: wózek z przewodem sterowniczym, układ kontrolny, uchwyt przewodów i
A18: uniwersalny uchwyt palnika fi 12 - 36 mm z suportem regulacyjnym
A19: Urządzenia typu FW (z oscylacją) posiadają ponadto: zespół oscylacyjny oraz układ zdalnego
A20: sterowania z przewodem.
A21: Szyna jezdna + mocowania (szyny można łączyć):
A22: Wspornik (mocowanie) szyny | B22: magnetyczny | C22: 0398146100 | E22: 552.2
A23: Wspornik (mocowanie) szyny | B23: podciśnieniowy (przyssawka) | C23: 0398146104 | E23: 3168.9
A24: Szyna jezdna dł. 2,5m + 8 wsp. magn. | B24: alumiowa, elastyczna | C24: 0398146112 | E24: 4759.2
A25: Szyna jezdna dł. 2,5m + 4 wsp. podciś. | B25: alumiowa, elastyczna | C25: 0398146113 | E25: 11913.9
A26: Szyna jezdna dł. 2,5m | B26: alumiowa, elastyczna | C26: 0398146115 | E26: 822.7
A27: Szyna jezdna dł. 5m | B27: alumiowa, elastyczna | C27: 0398146119 | E27: 5377.2
A28: Łącznik szyn | C28: 0398146120 | E28: 448.8
A30: Akcesoria Railtrac1000FW:
A31: Kątowy wspornik uchwytu | B31: umożliwia zmianę kąta palnika | C31: 0398145215 | E31: 1291.1
A32: Wychylne mocowanie zesp. oscylacyjn. | B32: do spoin pachwinowych | C32: 0398145200 | E32: 1622.1
A33: Obrotowe mocowanie zesp. oscylacyjn. | C33: 0398145201 | E33: 1300.1
A34: Głowica "pływająca" | C34: 0398145211 | E34: 3694.6
A35: AKCESORIA PRZYŁĄCZENIOWE DLA RAILTRAC 1000FW B42V | C35: Zmech. - MIG/MAG
A37: Kabel sterowniczy z wtyczką BURNDY 23, dł. 5m | C37: 0457360880 | E37: 1431.7
A39: Kabel sterowniczy uniwersalny bez wtyczki, dł. 5m | C39: 0457360881 | E39: 804.2
A41: Transformator zasilający 220/36V z kablem sterowniczym, dł. 5m | C41: 0457467880 | E41: 1884.7
A43: Zestaw adapt. z gniazdem BURNDY 23 | B43: tylko dla podajnika AristoFeed | C43: 0459681880 | E43: 1805
A45: Zestaw adaptaptacyjny Warrior 12pin Burndy | B45: dla podajnika Warrior | C45: 0465451881 | E45: 1196
A47: AKCESORIA DLA Miggytrac B501
A49: Bateria MIGGYTRAC B501 | C49: 0457468070 | E49: 3145
A50: Ładowarka MIGGYTRAC B501 | C50: 0457468072 | E50: 2962.6
A51: Bateria z ładowarka, zestaw | C51: 0457468073 | E51: 3452.7
A52: Zestaw magnesów MIGGYTRAC B501 | C52: 0457357131 | E52: 2506.9
A54: AKCESORIA dla Miggytrac B42V
A55: Bateria 18V, 5Ah Li-on Makita® | C55: 0457468074 | E55: 3878.7
A56: Uchwyt uniwersalny planika Ø 15-30mm | C56: 0398145106 | E56: 1270.4
A57: Uchwyt uniwersalny planika PSF | C57: 0398145101 | E57: 935.2
A58: Suport uchylny mocowania palnika | C58: 0398145202 | E58: 2607.2
A59: Suport obrotowy mocowania palnika | C59: 0398145203 | E59: 2607.2
A60: Ładowarka MIGGYTRAC B501/B42V | C60: 0457468072 | E60: 2962.6

Sheet 18-Automaty A2
A1: Opis | B1: Uwagi | C1: Nr katalog. | E1: Cena
E2: PLN
A3: AUTOMATY A2
A4: UWAGA 1: Przy kompletowaniu automatu należy uwzględnić części eksploatacyjne tj. rolki napędowe i
A5: końcówki kontaktowe na konkretną średnicę drutu oraz adapter szpuli.
A6: Przykładowe zestawienia komponentów podane są na końcu rozdziału.
A8: UWAGA 2: Przy ofertowaniu / zamawianiu automatu należy uprzedzić klienta o konieczności zakupu (poza ESAB)
A9: przewodu zasilającego źródło LAF 4x16mm2 oraz węża gumowego sprężonego powietrza 1/2'' o odpowiednich długościach
A11: Traktory A2 Multitrac z zespołem sterującym PEI
A12: A2TF I1 Multitrac SAW Single | B12: drut pojedynczy | C12: 0449360880 | E12: 39561
A13: A2TF I1 Multitrac SAW Twin | B13: drut podwójny | C13: 0449360881 | E13: 42913.4
A14: A2TG I1 Multitrac GMAW | B14: spawanie MIG/MAG | C14: 0449361880 | E14: 43337.8
A16: Traktory A2 Multitrac z zespołem sterującym PEK
A17: A2TF J1 Multitrac SAW Single | B17: drut pojedynczy | C17: 0461233880 | E17: 44929.1
A18: A2TF J1 Multitrac SAW Twin | B18: drut podwójny | C18: 0461233881 | E18: 46584.1
A19: A2TG J1 Multitrac GMAW | B19: spawanie MIG/MAG | C19: 0461234880 | E19: 47019.1
A20: A2TG J1 Multitrac GMAW MTW 600 | B20: spawanie MIG/MAG, 4WD | C20: 0461234881 | E20: 51252.1
A22: Traktory trójkołowe A2 Tripletrac
A23: A2TF K1 Tripletrac ze sterownikiem PEK | B23: PEK | C23: 0461236880 | E23: 76660.6
A24: A2T Tripletrac ze sterownikiem PEI | B24: PEI | C24: 0449430881 | E24: 73170.3
A26: Głowice A2S - stacjonarne z zespołem sterującym PEI
A27: A2SF I1 Mini Master, SAW | B27: łuk kryty | C27: 0449370880 | E27: 31996.7
A28: A2SG I1 Mini Master, GMAW | B28: spawanie MIG/MAG | C28: 0449380880 | E28: 33959.4
A30: Głowice A2S - stacjonarne z zespołem sterującym PEK
A31: A2SF Mini Master, SAW | B31: łuk kryty, suporty ręczne | C31: 0449170900 | E31: 36558.6
A32: A2SF Mini Master, SAW PAV | B32: łuk kryty, joystick | C32: 0449170901 | E32: 79928.2
A33: A2SF Mini Master, SAW GMH | B33: łuk kryty, ukł. śledzenia GMH | C33: 0449170902 | E33: 97889.2
A34: A2SF Mini Master, SAW Twin | B34: jw., drut podwójny | C34: 0449171900 | E34: 37417.9
A35: A2SF Mini Master, SAW Twin PAV | B35: jw., drut podwójny | C35: 0449171901 | E35: 81742.3
A36: A2SF Mini Master, SAW Twin GMH | B36: jw., drut podwójny | C36: 0449171902 | E36: 99660.9
A37: A2SG Mini Master, GMAW | B37: spaw. MIG/MAG, sup. ręczne | C37: 0449180900 | E37: 37630.1
A38: A2SG Mini Master, GMAW PAV | B38: spaw. MIG/MAG, joystick | C38: 0449180901 | E38: 81859
A39: A2SG Mini Master, GMAW GMH | B39: spaw. MIG/MAG, ukł. śl. GMH | C39: 0449180902 | E39: 93338
A40: A2SG Mini Master, GMAW MTW 600 | B40: spaw. MIG/MAG, 4WD | C40: 0449181900 | E40: 43910.7
A41: A2SG Mini Master, GMAW MTW 600 PAV | B41: spaw. MIG/MAG, 4WD joyst. | C41: 0449181901 | E41: 92362
A42: A2SG Mini Master, GMAW MTW 600 GMH | B42: spaw. MIG/MAG, 4WD GMH | C42: 0449181902 | E42: 106684.1
A44: UWAGA : Pozostałe typy głowic A2 - oferowane na życzenie
A46: Gotowe pakiety A2:
A47: A2T Multitrac SAW LAF631 | C47: 0460656980 | E47: 64523.9
A48: A2T Multitrac SAW LAF1001 | C48: 0460657980 | E48: 87089.3
A49: A2T Multitrac SAW Twin LAF1001 | C49: 0460658980 | E49: na żądanie
A50: A2T Multitrac GMAW LAF631 | C50: 0460659980 | E50: na żądanie
A51: A2S Mini Master SAW LAF1001 | C51: 0460660980 | E51: na żądanie
A53: Pakiet przewodów dla LAF631 dł. 15m | C53: 0460662980 | E53: 6916.5
A54: Pakiet przewodów dla LAF631 dł. 24m | C54: 0460662981 | E54: 8727
A55: Pakiet przewodów dla LAF1001 dł. 15m | C55: 0460663980 | E55: 8631
A56: Pakiet przewodów dla LAF1001 dł. 24m | C56: 0460663981 | E56: 10937.9
A57: Pakiet przewodów dla LAF1001 dł. 35m | C57: 0460663982 | E57: 14046.3
A59: Montaż, uruchomienie traktora, szkolenie | B59: cena nie podlega upustowi | E59: 3000
A61: Samojezdny portal spawalniczy MechTrac (bez wyposażenia)
A62: MechTrac 1730x1500 DUAL | B62: napęd przy obu podporach | C62: 0809670881 | E62: 71388
A63: MechTrac 2100x1500 DUAL | B63: napęd przy obu podporach | C63: 0809670882 | E63: 71536.5
A64: MechTrac 2500x1500 DUAL | B64: napęd przy obu podporach | C64: 0809670883 | E64: 71494.1
A65: MechTrac 3000x1500 DUAL | B65: napęd przy obu podporach | C65: 0809670884 | E65: 71865.4
A66: Podtorze dla MechTrac
A67: szyna podstawowa 3m | C67: 0806707880 | E67: 3877.6
A68: szyna przedłużająca 3m | B68: z łącznikiem | C68: 0806707881 | E68: 4527.9
A70: ŹRÓDŁA PRĄDU (bez przewodu zasilającego)
A71: Prostowniki LAF
A72: LAF 631 | B72: 400V, 50 Hz | C72: 0460512880 | E72: 26607.4
A73: LAF 1001 | B73: 400V, 50 Hz | C73: 0460513880 | E73: 54445.4
A74: OKABLOWANIE
A75: Kable sterownicze LAF - PEK (do nowych źródeł prądu LAF 631, 1001, 1251, 1601)
A76: Kabel sterowniczy 15m | B76: LAF-PEK | C76: 0460910881 | E76: 4605.4
A77: Kabel sterowniczy 25m | B77: LAF-PEK | C77: 0460910882 | E77: 5734.2
A78: Kabel sterowniczy 35m | B78: LAF-PEK | C78: 0460910883 | E78: 6916.5
A80: Kable sterownicze LAF - PEH (do źródeł prądu z gniazdem burndy 28 pin)
A81: Kabel sterowniczy 15m | B81: PEH | C81: 0449449880 | E81: 6371.2
A82: Kabel sterowniczy 25m | B82: PEH | C82: 0449449881 | E82: 8771
A83: Kabel sterowniczy 35m | B83: PEH | C83: 0449449882 | E83: 11288
A85: Kable sterownicze LAF - PEI (do źródeł prądu z gniazdem burndy 28 pin)
A86: Kabel sterowniczy 15m | B86: PEI | C86: 0449500880 | E86: 5258.4
A87: Kabel sterowniczy 25m | B87: PEI | C87: 0449500881 | E87: 7072.5
A89: Kable sterownicze LAF - PEH (do źródeł prądu z gniazdem burndy 12 pin)
A90: Kabel sterowniczy 15m | B90: PEH (kpl. kabel + adapter) | C90: 0456500880 | E90: 4664.3
A91: Kabel sterowniczy 25m | B91: PEH (kpl. kabel + adapter) | C91: 0456500881 | E91: 5823.3
A92: Kabel sterowniczy 35m | B92: PEH (kpl. kabel + adapter) | C92: 0456500882 | E92: 7023.2
A94: Kable spawalnicze/masowe (z końcówkami pod śrubę)
A95: Kabel spawalniczy/masowy 1x120mm2 | B95: długość 5m | C95: 0413768894 | E95: 858.3
A96: Kabel spawalniczy/masowy 1x120mm2 | B96: długość 10m | C96: 0413768895 | E96: 1315
A97: Kabel spawalniczy/masowy 1x120mm2 | B97: długość 15m | C97: 0413768896 | E97: 1740.4
A98: Kabel spawalniczy/masowy 1x120mm2 | B98: długość 24m | C98: 0413768889 | E98: 2754.6
A99: Kabel spawalniczy/masowy 1x120mm2 | B99: długość 34m | C99: 0413768892 | E99: 3866.5
A100: Kabel spawalniczy/masowy 1x95mm2 | B100: długość 5m | C100: 0413768897 | E100: 562.8
A101: Kabel spawalniczy/masowy 1x95mm2 | B101: długość 10m | C101: 0413768898 | E101: 1023.8
A102: Kabel spawalniczy/masowy 1x95mm2 | B102: długość 15m | C102: 0413768899 | E102: 1480.5
A103: Kabel spawalniczy/masowy 1x95mm2 | B103: długość 24m | C103: 0413768882 | E103: 2235.9
A104: Kabel spawalniczy/masowy 1x95mm2 | B104: długość 34m | C104: 0413768885 | E104: 3109.5
A106: MODUŁY A2 PEK
A107: Układ podawania drutu SAW pojedynczy | B107: z zasobnikiem topnika | C107: 0449150900 | E107: 12921.8
A108: Układ podawania drutu SAW podwójny | B108: z zasobnikiem topnika | C108: 0449150901 | E108: 14863.2
A109: Układ podawania drutu GMAW | C109: 0449150902 | E109: 14629.8
A110: Układ podawania drutu GMAW 4WD | B110: palnik MTW 600 | C110: 0449150904 | E110: 19361.4
A111: Zestaw przewodów T 1,6 m | B111: traktor A2T | C111: 0449153900 | E111: 807.3
A112: Zestaw przewodów S 5,0 m | B112: głowica A2S | C112: 0449153905 | E112: 905.5
A113: Zestaw suportów ręcznych 90 x 90 mm | B113: z suportem obrotowym | C113: 0449152880 | E113: 4238.8
A114: Zestaw suportów zmech. 180 x 180 mm | B114: z suportem obrotowym | C114: 0449151880 | E114: 28379.1
A115: Zestaw przewodów PAV/GMH | B115: do silników suportów | C115: 0461215880 | E115: 802
A116: Układ sterowania suportami zmech. PAV | C116: 0460697880 | E116: 20369.3
A117: Układ śledzenia złącza GMH | C117: 0460884880 | E117: 40728
A118: Zestaw wsporników z piastą hamulcową | B118: traktor A2T | C118: 0449154880 | E118: 2265.6
A119: Wspornik szpuli drutu z piastą hamulc. | B119: głowica A2S | C119: 0449155880 | E119: 1398.8
A120: Wózek dla PEK | B120: traktor A2T | C120: 0449100883 | E120: 12094.3
A121: Skrzynka kontrolna PEK | C121: 0460504880 | E121: 16093.9
A124: AKCESORIA
A125: Akcesoria dla topnika
A126: Układ odciągu topnika OPC - Basic | B126: części ekspl. patrz poniżej | C126: 0148140880 | E126: 4782.5
A127: Zasobnik topnika | B127: plastikowy | C127: 0332994883 | E127: 1386.6
A128: Zasobnik topnika | B128: siluminowy | C128: 0413315881 | E128: 2997
A129: Centryczny lejek topnika D20 LD | B129: kompletny z tulejką izolac. | C129: 0145221881 | E129: 477.4
A130: Tulejka izolacyjna dla lejka D20 LD | B130: z tworzywa | C130: 0333667001 | E130: 84.8
A132: Suporty
A133: Suport wzdłużny 90mm | B133: ręczny | C133: 0413518880 | E133: 2395.5
A134: Suport obrotowy ORB40 | B134: ręczny | C134: 0413506880 | E134: 1541.5
A136: Akcesoria do prowadzenia
A137: Zespół kółek prowadzących w rowku | B137: dla A2 Multitrac | C137: 0413542880 | E137: 2382.3
A138: Rolka prowadząca | C138: 0333164880 | E138: 294.9
A140: Szyna prowadząca, 3m | B140: mocowana magnetycznie | C140: 0154203880 | E140: 5852.5
A141: Koło prowadzące po szynie | B141: z rowkiem "V" (A2 Multitrac) | C141: 0333098881 | E141: 842.9
A143: Żarówka lampki prowadzącej | B143: 6V, 5W | C143: 0157172001 | E143: 29.7
A144: Lampka prowadząca - laserowa | B144: kabel 2m, PEK, PEH | C144: 0821440880 | E144: 4510.4
A145: Lampka prowadząca - laserowa | B145: kabel 7m, PEK, PEH | C145: 0821440883 | E145: 4307.8
A147: Adaptery szpuli
A148: Adapter szpuli drutu 30 kg - plastikowy | C148: 0153872880 | E148: 1310.7
A150: Akcesoria dla spawania SAW TWIN (drut podwójny)
A151: Zestaw do konwersji | B151: z A2 SAW na A2 SAW TWIN | C151: 0413541882 | E151: 8737.6
A153: Akcesoria dla spawania MIG/MAG
A154: Zestaw do konwersji | B154: z A2 SAW na A2 MIG/MAG | C154: 0413526881 | E154: 5374
A155: Osłona przed łukiem A2 | C155: 0334689880 | E155: 537.9
A157: CZĘŚCI EKSPLOATACYJNE
A158: Gotowe zestawy części eksploatacyjnych dla A2 SAW zawierające:
A159: 15 końcówek kontaktowych, 2 rolki podające, 2 rolki dociskowe, 1 rurkę prądową
A160: Zestaw części ekspl. A2 SAW | B160: dla drutu fi 2.5mm | C160: 0810123880 | E160: 2817.9
A161: Zestaw części ekspl. A2 SAW | B161: dla drutu fi 3.0mm | C161: 0810123881 | E161: 2689.63
A162: Zestaw części ekspl. A2 SAW | B162: dla drutu fi 3.2mm | C162: 0810123882 | E162: 2868.4
A163: Zestaw części ekspl. A2 SAW | B163: dla drutu fi 4.0mm | C163: 0810123883 | E163: 2689.63
A165: Gotowe zestawy części eksploatacyjnych dla A2 SAW TWIN zawierające:
A166: 20 końcówek kontaktowych, 1 rolkę podającą, 1 rolkę dociskową, 1 adapter końcówek kontakt.
A167: Zestaw części ekspl. A2 SAW TWIN | B167: dla drutu 2 x fi 1.2mm | C167: 0810124880 | E167: 2742.66
A168: Zestaw części ekspl. A2 SAW TWIN | B168: dla drutu 2 x fi 1.6mm | C168: 0810124881 | E168: 1920.52
A169: Zestaw części ekspl. A2 SAW TWIN | B169: dla drutu 2 x fi 2.0mm | C169: 0810124882 | E169: 1920.52
A171: Gotowe zestawy części eksploatacyjnych dla A2 SAW MIG/MAG zawierające:
A172: 10 końcówek kontaktowych, 1 rolkę podającą, 1 rolkę dociskową, 1 rurkę prądową,
A173: 1 dyszę gazową, 2 tulejki izolacyjne, 1 gwintowaną tulejkę centrującą,
A174: 1 adapter końcówki kontaktowej M10/M6, 1 zestaw O-rigów.
A175: Zestaw części ekspl. A2 MIG/MAG | B175: dla drutu 1.0mm | C175: 0810125880 | E175: 3037.58
A176: Zestaw części ekspl. A2 MIG/MAG | B176: dla drutu 1.2mm | C176: 0810125881 | E176: 3037.58
A177: Zestaw części ekspl. A2 MIG/MAG | B177: dla drutu 1.6mm | C177: 0810125882 | E177: 3037.58
A178: Zestaw części ekspl. A2 MIG/MAG | B178: dla drutu 2.0mm | C178: 0810125883 | E178: 3037.58
A180: Rolki podające A2, drut pojedynczy
A181: 0,8 mm | C181: 0145538881 | E181: 494.4
A182: 1,0 mm | C182: 0145538882 | E182: 759.02
A183: 1,2 mm | C183: 0145538883 | E183: 725.18
A184: 1,6 mm | C184: 0218510281 | E184: 398.45
A185: 2,0 mm | C185: 0218510282 | E185: 398.45
A186: 2,4-2,5 mm | C186: 0218510283 | E186: 398.45
A187: 3,0-3,2 mm | C187: 0218510298 | E187: 398.45
A188: 4,0 mm | C188: 0218510286 | E188: 398.45
A189: Rolka dociskowa A2, drut pojedynczy | B189: do powyższych rolek | C189: 0153148880 | E189: 392.39
A191: Rolki podające A2, drut podwójny:
A192: 2x1,2 mm | C192: 0218522486 | E192: 507.53
A193: 2x1,6 mm | C193: 0218522488 | E193: 484.3
A194: 2x2,0 mm | C194: 0218522484 | E194: 484.3
A195: 2x2,4-2,5mm | C195: 0218522480 | E195: 484.3
A196: Rolka dociskowa A2, drut podwójny | B196: do powyższych rolek | C196: 0218524580 | E196: 649.94
A198: Rolki podające moletowane A2, drut rdzeniowy:
A199: 0,8-1,6 mm | C199: 0146024880 | E199: 1260.48
A200: 2,0-4,0 mm | C200: 0146024881 | E200: 1260.48
A202: Rolki dociskowe moletowane A2, drut rdzeniowy:
A203: 0,8-1,6 mm | C203: 0146025880 | E203: 1296.84
A204: 2,0-4,0 mm | C204: 0146025881 | E204: 1238.26
A205: Wałek (oś) rolki | C205: 0212901101 | E205: 984.5
A206: Rurka kontaktowa, A2 SAW | B206: fi = 20 mm, L=260 mm | C206: 0413510001 | E206: 438.34
A207: Rurka kontaktowa zagięta, A2 SAW | B207: fi = 20 mm, L=260 mm | C207: 0413511001 | E207: 1018.5
A209: Element kontaktowy D35, SAW drut podwójny (komplet)
A210: Element kontaktowy dla A2 SAW TWIN | B210: fi = 35 mm, L= 275 mm | C210: 0333852881 | E210: 4324.8
A212: Element kontaktowy D20, MIG/MAG drut pojedynczy (komplet)
A213: Element kontaktowy dla A2 GMAW | B213: fi = 20 mm, L=90 mm | C213: 0030465389 | E213: 3477.6
A215: Dysza gazowa MIG/MAG (D20)
A216: Dysza gazowa | C216: 0145227882 | E216: 635.5
A217: Tulejka izolacyjna | C217: 0145226001 | E217: 181.4
A218: O-ring 22,2 x 3 | C218: 0190680405 | E218: 26.9
A219: Rurka prądowa | C219: 0145534882 | E219: 950.6
A220: O-ring 15,3 x 2,4 | C220: 0190680313 | E220: 23.8
A222: Element kontaktowy MTW600, MIG/MAG drut pojedynczy (komplet)
A223: Element kontaktowy dla A2 MTW600 | B223: L=250 mm | C223: 0457460881 | E223: 9168.3
A225: Dysza gazowa MIG/MAG (MTW600)
A226: Dysza gazowa | C226: 0457451001 | E226: 314.6
A227: Osłona przed rozpryskiem | C227: 0457452001 | E227: 415.9
A229: Końcówki kontaktowe M12 - SAW drut pojedynczy:
A230: dla drutu 1,6 mm, M12 | C230: 0154623008 | E230: 52.4
A231: dla drutu 2,0 mm, M12 | C231: 0154623007 | E231: 52.4
A232: dla drutu 2,5 mm, M12 | C232: 0154623006 | E232: 52.4
A233: dla drutu 3,0 mm, M12 | C233: 0154623005 | E233: 52.4
A234: dla drutu 3,2 mm, M12 | C234: 0154623004 | E234: 52.4
A235: dla drutu 4,0 mm, M12 | C235: 0154623003 | E235: 52.4
A237: Końcówki kontaktowe M10 - MIG/MAG:
A238: dla drutu 0,8 M10 | C238: 0258000914 | E238: 166.65
A239: dla drutu 1,0 M10 | C239: 0258000913 | E239: 95.3
A240: dla drutu 1,2 M10 | C240: 0258000908 | E240: 95.49
... 89 more rows

Sheet 19-Automaty A6
A1: Opis | C1: Nr katalog. | E1: Cena
E2: PLN
A3: AUTOMATY A6
A4: UWAGA: Przy kompletowaniu automatu należy uwzględnić części eksploatacyjne tj. rolki napędowe i
A5: końcówki kontaktowe na konkretną średnicę drutu oraz adapter szpuli.
A7: UWAGA 2: Przy ofertowaniu / zamawianiu automatu należy uprzedzić klienta o konieczności zakupu (poza ESAB)
A8: przewodu zasilającego źródło LAF / TAF oraz węża gumowego sprężonego powietrza 1/2'' o odpowiednich długościach
A10: Traktor A6 Mastertrac z zespołem sterującym PEK
A11: A6 TF Mastertrac SAW | C11: 0461235880 | E11: 81859
A13: Głowice A6S Arc Master - stacjonarne z zespołem sterującym PEK
A14: A6SF Arc Master, SAW (1:156) | B14: łuk kryty, suporty ręczne | C14: 0449270900 | E14: 51782.5
A15: A6SF Arc Master, SAW PAV (1:156) | B15: łuk kryty, joystick | C15: 0449270901 | E15: 85826.8
A16: A6SF Arc Master, SAW GMH (1:156) | B16: łuk kryty, ukł. śledzenia GMH | C16: 0449270902 | E16: 120009
A17: A6SF Arc Master, SAW Twin (1:156) | B17: jw., drut podwójny | C17: 0449271900 | E17: 53819.5
A18: A6SF Arc Master, SAW Twin PAV (1:156) | B18: jw., drut podwójny | C18: 0449271901 | E18: 92839.4
A19: A6SF Arc Master, SAW Twin GMH (1:156) | B19: jw., drut podwójny | C19: 0449271902 | E19: 122385.4
A20: A6SG Arc Master, GMAW | B20: spaw. MIG/MAG, sup. ręczne | C20: 0456564903 | E20: 53745.2
A21: A6SG Arc Master, GMAW PAV | B21: spaw. MIG/MAG, joystick | C21: 0456564905 | E21: 95396.1
A22: A6SG Arc Master, GMAW GMH | B22: spaw. MIG/MAG, ukł. śl. GMH | C22: 0456564907 | E22: 123605.5
A23: UWAGA : Pozostałe typy głowic A6 - oferowane na życzenie
A25: Gotowe pakiety A6:
A26: A6T Mastertrac SAW LAF1001 | C26: 0460661980 | E26: 128655.3
A28: Montaż, uruchomienie traktora, szkolenie | B28: cena nie podlega upustowi | E28: 3000
A30: Pakiet przewodów dla LAF1001 dł. 15m | C30: 0460663980 | E30: 8631
A31: Pakiet przewodów dla LAF1001 dł. 24m | C31: 0460663981 | E31: 10937.9
A32: Pakiet przewodów dla LAF1001 dł. 35m | C32: 0460663982 | E32: 14046.3
A34: ŹRÓDŁA PRĄDU (bez przewodu zasilającego) | E34: 0
A35: Prostowniki LAF | E35: 0
A36: LAF 631 | B36: 400V, 50 Hz | C36: 0460512880 | E36: 26607.4
A37: LAF 1001 | B37: 400V, 50 Hz | C37: 0460513880 | E37: 54445.4
A38: LAF 1251 | B38: 400V, 50 Hz | C38: 0460514880 | E38: 71197
A39: LAF 1601 | B39: 400V, 50 Hz | C39: 0460515880 | E39: 100764.3
A40: Transformatory TAF
A41: TAF 801 | B41: 400V, 50 Hz | C41: 0460516880 | E41: 79259.8
A42: TAF 1251 | B42: 400V, 50 Hz | C42: 0460517880 | E42: 110163.9
A44: OKABLOWANIE
A45: Kable sterownicze LAF - PEK (do nowych źródeł prądu LAF 631, 1001, 1251, 1601)
A46: Kabel sterowniczy 15m | B46: LAF-PEK | C46: 0460910881 | E46: 4605.4
A47: Kabel sterowniczy 25m | B47: LAF-PEK | C47: 0460910882 | E47: 5734.2
A48: Kabel sterowniczy 35m | B48: LAF-PEK | C48: 0460910883 | E48: 6916.5
A49: Kabel sterowniczy 50m | B49: LAF-PEK | C49: 0460910884 | E49: 8583.7
A51: Kable sterownicze LAF/TAF - PEH (do źródeł prądu z gniazdem burndy 28 pin)
A52: Kabel sterowniczy 15m | B52: PEH | C52: 0449449880 | E52: 6371.2
A53: Kabel sterowniczy 25m | B53: PEH | C53: 0449449881 | E53: 8771
A54: Kabel sterowniczy 35m | B54: PEH | C54: 0449449882 | E54: 11288
A55: Kabel sterowniczy 50m | B55: PEH | C55: 0449449883 | E55: 15181.5
A56: Kabel sterowniczy 75m | B56: PEH | C56: 0449449884 | E56: 22639.6
A58: Kable sterownicze LAF/TAF - PEH (do źródeł prądu z gniazdem burndy 12 pin)
A59: Kabel sterowniczy 15m | B59: PEH (kpl. kabel + adapter) | C59: 0456500880 | E59: 4664.3
A60: Kabel sterowniczy 25m | B60: PEH (kpl. kabel + adapter) | C60: 0456500881 | E60: 5823.3
A61: Kabel sterowniczy 35m | B61: PEH (kpl. kabel + adapter) | C61: 0456500882 | E61: 7023.2
A62: Kabel sterowniczy 50m | B62: PEH (kpl. kabel + adapter) | C62: 0456500883 | E62: 8725.9
A63: Kabel sterowniczy 100m | B63: PEH (kpl. kabel + adapter) | C63: 0456500885 | E63: 18353.6
A65: Kable spawalnicze/masowe (z końcówkami pod śrubę)
A66: Kabel spawalniczy/masowy 1x120mm2 | B66: długość 5m | C66: 0413768894 | E66: 858.3
A67: Kabel spawalniczy/masowy 1x120mm2 | B67: długość 10m | C67: 0413768895 | E67: 1315
A68: Kabel spawalniczy/masowy 1x120mm2 | B68: długość 15m | C68: 0413768896 | E68: 1740.4
A69: Kabel spawalniczy/masowy 1x120mm2 | B69: długość 24m | C69: 0413768889 | E69: 2754.6
A70: Kabel spawalniczy/masowy 1x120mm2 | B70: długość 34m | C70: 0413768892 | E70: 3866.5
A71: Kabel spawalniczy/masowy 1x95mm2 | B71: długość 5m | C71: 0413768897 | E71: 562.8
A72: Kabel spawalniczy/masowy 1x95mm2 | B72: długość 10m | C72: 0413768898 | E72: 1023.8
A73: Kabel spawalniczy/masowy 1x95mm2 | B73: długość 15m | C73: 0413768899 | E73: 1480.5
A74: Kabel spawalniczy/masowy 1x95mm2 | B74: długość 24m | C74: 0413768882 | E74: 2235.9
A75: Kabel spawalniczy/masowy 1x95mm2 | B75: długość 34m | C75: 0413768885 | E75: 3109.5
A77: MODUŁY A6
A78: Ukł. podaw drutu VEC 156:1 SAW single | B78: z zasobnikiem topnika | C78: 0449250880 | E78: 20761.8
A79: Ukł. podaw drutu VEC 156:1 SAW twin | B79: z zasobnikiem topnika | C79: 0449250881 | E79: 23117
A80: Ukł. podaw drutu VEC 74:1 SAW single | B80: z zasobnikiem topnika | C80: 0449250890 | E80: 20708.8
A81: Ukł. podaw drutu VEC 74:1 SAW twin | B81: z zasobnikiem topnika | C81: 0449250891 | E81: 23201.9
A82: Zestaw przewodów T 1,6 m | B82: traktor A6T | C82: 0449253900 | E82: 598.9
A83: Zestaw przewodów S 5,0 m | B83: głowica A6S | C83: 0449253902 | E83: 1178.7
A84: Zestaw suportów ręcznych 90 x 90 mm | B84: z suportem obrotowym, A6T | C84: 0449252880 | E84: 12762.6
A85: Zestaw suportów ręcznych 210x210 mm | B85: z suportem obrotowym, A6S | C85: 0449252881 | E85: 13632.6
A86: Zestaw suportów zmech. 300x300 mm | B86: z suportem obrotowym, A6S | C86: 0449251884 | E86: 34829.3
A87: Zestaw przewodów PAK/GMD | B87: do silników suportów | C87: 0449153882 | E87: 1376
A88: Zestaw przewodów PAV/GMH | B88: do silników suportów | C88: 0461215880 | E88: 802
A89: Układ sterowania suportami zmech. PAV | C89: 0460697880 | E89: 20369.3
A90: Układ śledzenia złącza GMH | C90: 0460884880 | E90: 40728
A91: Zestaw wsporników z piastą hamulcową | B91: traktor A6T | C91: 0449254880 | E91: 5374
A92: Wspornik szpuli drutu z piastą hamulc. | B92: głowica A6S z sup. zmech. | C92: 0449255880 | E92: 1688.4
A93: Wspornik szpuli drutu z piastą hamulc. | B93: głowica A6S | C93: 0449255881 | E93: 1929.8
A94: Wózek | B94: traktor A6T | C94: 0449490881 | E94: 32463.5
A95: Skrzynka kontrolna PEK | C95: 0460504880 | E95: 16093.9
A97: AKCESORIA
A98: Akcesoria dla topnika
A99: Układ odciągu topnika OPC - Basic | C99: 0148140880 | E99: 4782.5
A100: Układ odciągu topnika OPC - Super | B100: wzmocniona konstrukcja | C100: 0339719880 | E100: 8764.6
A101: Centryczny lejek topnika D20 LD | B101: kompletny z tulejką izolac. | C101: 0145221881 | E101: 477.4
A102: Tulejka izolacyjna dla lejka D20 LD | B102: z tworzywa | C102: 0333667001 | E102: 84.8
A103: Centryczny lejek topnika D35 HD | B103: kompletny z końc. krótką | C103: 0254900880 | E103: 536.3
A104: Końcówka lejka D35, krótka | C104: 0254900302 | E104: 87.8
A105: Końcówka lejka D35, długa | C105: 0254900301 | E105: 68.3
A106: Zasobnik topnika 1,0L | C106: 0153856882 | E106: 2432.1
A107: Zasobnik topnika 9,5L | C107: 0147649881 | E107: 3749.8
A108: Mocowanie zasobnika topnika 9,5L | C108: 0148487881 | E108: 819
A110: Suporty
A111: Suport wzdłużny 210mm | B111: ręczny | C111: 0154465881 | E111: 5308.7
A112: Suport wzdłużny 300mm | B112: zmechanizowany | C112: 0334333884 | E112: 19435.7
A113: Suport obrotowy A6 | B113: ręczny | C113: 0671171580 | E113: 2766.8
A114: Izolator montażowy | B114: potrzebne 4 szt. / 1 głowicę | C114: 0278300180 | E114: 262
A116: Adaptery szpuli
A117: Adapter szpuli drutu 30 kg - plastikowy | B117: 30 kg | C117: 0153872880 | E117: 1310.7
A118: Piasta hamulca | C118: 0146967880 | E118: 145.9
A120: Żarówka lampki prowadzącej | B120: 6V, 5W | C120: 0157172001 | E120: 29.7
A121: Lampka prowadząca - laserowa | B121: PEK, PEH | C121: 0821440980 | E121: 4510.4
A123: CZĘŚCI EKSPLOATACYJNE
A125: Gotowe zestawy części eksploatacyjnych dla A6 SAW zawierające: 8 szczęk kontaktowych,
A126: 2 rolki podające, 2 rolki dociskowe, 5 wkładek lejka topnika, 3 klucze ampolowe
A127: Zestaw części ekspl. A6 SAW | B127: dla drutu fi 3.0mm | C127: 0449158880 | E127: 4071.82
A128: Zestaw części ekspl. A6 SAW | B128: dla drutu fi 4.0mm | C128: 0449159880 | E128: 4082.3
A130: Rolki podające A6, drut pojedynczy:
A131: SAW: A6 LD = średn. 1,6 - 4,0; A6 HD = średn. 3,0 - 6,0
A132: GMAW: A6 = średn. 0,8 - 3,2
A133: 0,8 mm | C133: 0145538881 | E133: 494.4
A134: 1,0 mm | C134: 0145538882 | E134: 759.02
A135: 1,2 mm | C135: 0145538883 | E135: 725.18
A136: 1,6 mm | C136: 0218510281 | E136: 398.45
A137: 2,0 mm | C137: 0218510282 | E137: 398.45
A138: 2,4-2,5 mm | C138: 0218510283 | E138: 398.45
A139: 3,0-3,2 mm | C139: 0218510298 | E139: 398.45
A140: 4,0 mm | C140: 0218510286 | E140: 398.45
A141: 5,0 mm | C141: 0218510287 | E141: 417.64
A142: 6,0 mm | C142: 0218510288 | E142: 417.13
A143: Rolka dociskająca | B143: do powyższych rolek | C143: 0153148880 | E143: 392.39
A145: Rolki podające A6, drut podwójny:
A146: A6 LD = średn. 1,2 - 2,0; A6 HD = średn. 2,0 - 3,2
A147: 2x1,2 mm | C147: 0218522486 | E147: 507.53
A148: 2x1,6 mm | C148: 0218522488 | E148: 484.3
A149: 2x2,0 mm | C149: 0218522484 | E149: 484.3
A150: 2x2,5 mm | C150: 0218522480 | E150: 484.3
A151: 2x3,0-3,2 mm | C151: 0218522481 | E151: 484.3
A152: Rolka dociskająca | B152: do powyższych rolek | C152: 0218524580 | E152: 649.94
A153: Wałek (oś) rolki dociskającej | C153: 0146253001 | E153: 154.4
A155: Końcówki kontaktowe M12 - SAW drut pojedynczy A6 LD = średnica 1,6 - 4,0:
A156: dla drutu 1,6 mm, M12 | C156: 0154623008 | E156: 52.4
A157: dla drutu 2,0 mm, M12 | C157: 0154623007 | E157: 52.4
A158: dla drutu 2,5 mm, M12 | C158: 0154623006 | E158: 52.4
A159: dla drutu 3,0 mm, M12 | C159: 0154623005 | E159: 52.4
A160: dla drutu 3,2 mm, M12 | C160: 0154623004 | E160: 52.4
A161: dla drutu 4,0 mm, M12 | C161: 0154623003 | E161: 52.4
A163: Szczęki kontaktowe SAW drut pojedynczy A6 HD = średnica 3,0 - 6,0:
A164: dla drutu 3,0 mm | B164: komplet | C164: 0265900880 | E164: 270.68
A165: dla drutu 3,2 mm | B165: komplet | C165: 0265900881 | E165: 270.68
A166: dla drutu 4,0 mm | B166: komplet | C166: 0265900882 | E166: 270.68
A167: dla drutu 5,0 mm | B167: komplet | C167: 0265900883 | E167: 283.81
A168: dla drutu 6,0 mm | B168: komplet | C168: 0265900884 | E168: 376.73
A170: Końcówki kontaktowe M10 - MIG/MAG:
A171: dla drutu 1,6 M10 | C171: 0258000909 | E171: 95.49
A172: dla drutu 2,0 M10 | C172: 0258000910 | E172: 91.15
A173: dla drutu 2,4 M10 | C173: 0258000911 | E173: 95.49
A174: dla drutu 3,2 M10 | C174: 0258000915 | E174: 95.49
A176: Szczęki kontaktowe SAW drut podwójny A6 HD = średnica 2 x 1,6 - 3,0:
A177: dla drutu 2 x 1,6 mm | B177: komplet | C177: 0265902882 | E177: 498.94
A178: dla drutu 2 x 2,0 mm | B178: komplet | C178: 0265902881 | E178: 327.75
A179: dla drutu 2 x 2,5 - 3,0 mm | B179: komplet | C179: 0265902880 | E179: 327.75
A181: Części eksploatacyjne do układu zasypu i odciągu topnika OPC Basic
A182: Worek filtracyjny OPC | B182: papierowy | C182: 0155966001 | E182: 84.06
A183: Worek filtracyjny OPC | B183: polyestrowy | C183: 0332448001 | E183: 128.4
A184: Taśma zaciskowa do montażu worka filtr. | C184: 0192855002 | E184: 22.7
A185: Sito zasypu topnika | C185: 0020301780 | E185: 104.5
A186: Rura zasypu topnika - na metry | B186: cena z 1 mb | C186: 0443383001 | E186: 199.5
A187: Rura zasypu topnika | B187: L = 500 mm | C187: 0443383002 | E187: 102.9
A188: Rura odciągu topnika (czarna, zbrojona) | B188: cena z 1 mb | C188: 0191813801 | E188: 252
A189: Obudowa separatora OPC | C189: 0148141001 | E189: 89.8
A190: Gumowa wykładzina separatora OPC | C190: 0145073001 | E190: 210.1
A191: Lejek separatora OPC | C191: 0148142001 | E191: 65.6
A192: Gumowa wykładzina lejka separatora OPC | C192: 0145565001 | E192: 145.9
A193: Pierścień sprężynujący (zabezpieczający) | C193: 0145815001 | E193: 36.7
A194: Eżektor | C194: 0147640880 | E194: 730.4
A195: Zawór powietrza | C195: 0145824881 | E195: 261
A196: O-ring | C196: 0215201345 | E196: 42
A197: Dysza ssąca płaska mała | B197: spoina doczołowa | C197: 0145501001 | E197: 352.2
A198: Dysza ssąca płaska duża | B198: spoina doczołowa | C198: 0145502001 | E198: 352.2
A199: Dysza ssąca kątowa lewostronna | B199: spoina pachwinowa | C199: 0145504001 | E199: 352.2
A200: Dysza ssąca kątowa prawostronna | B200: spoina pachwinowa | C200: 0145505001 | E200: 352.2

Sheet 21-Uchwyty PSF
A1: Wklady do drutow Fe | B1: PSF 250, 250C 3,0m-4,5m | C1: PSF 305, 315, 410w, 410cw 3,0m-4,5m | D1: PSF 405, 405C, 510w 3,0m-4,5m | E1: PSF 505 3,0m-4,5m | G1: Końcówki prądowe CuCrZr | H1: Średnica drutu | I1: Gin | J1: Typ drutu | K1: Srednica otworu
A2: 0,6mm - 0,8mm | B2: 0366 549 882 - 883 | C2: 0366 549 882 - 883 | G2: M6x27mm | H2: 0,6mm | I2: 0468 500 001 | J2: Fe, Ss | K2: 0,8mm
A3: 0,9mm - 1,0mm | B3: 0366 549 884 - 885 | C3: 0366 549 884 - 885 | D3: 0366 549 884 - 885 | E3: 0366 549 884 - 885 | G3: M6x27mm | H3: 0,8mm | I3: 0468 500 002 | J3: Fe, Ss | K3: 0,9mm
A4: 1,2mm | B4: 0366 549 886 - 887 | C4: 0366 549 886 - 887 | D4: 0366 549 886 - 887 | E4: 0366 549 886 - 887 | G4: M6x27mm | H4: 0,8mm | I4: 0468 500 003 | J4: Fe, Ss | K4: 1,0mm
A5: 1,4mm | C5: 0366 549 888 - 889 | D5: 0366 549 888 - 889 | E5: 0366 549 888 - 889 | G5: M6x27mm | H5: 0,9mm | I5: 0468 500 004 | J5: Fe, Ss | K5: 1,1mm
A6: 1,6mm | D6: 0366 549 890 - 891 | E6: 0366 549 890 - 891 | G6: M6x27mm | H6: 1,0mm | I6: 0468 500 005 | J6: Fe, Ss, Rd | K6: 1,2mm
A7: 2,0mm | D7: 0366 549 898 (4,5m) | E7: 0366 549 898 (4,5m) | G7: M6x27mm Al. | H7: 1,0mm Al. | I7: 0468 500 005 | J7: Al. | K7: 1,2mm
A8: 2,4mm | D8: 0366 549 899 (4,5m) | E8: 0366 549 899 (4,5m) | G8: M6x27mm | H8: 1,2mm | I8: 0468 500 006 | J8: Fe, Ss, Rd | K8: 1,4mm
G9: M6x27mm Al. | H9: 1,2mm Al. | I9: 0468 500 007 | J9: Al. | K9: 1,5mm
A10: Wklady do drutow Ss
A11: 0,6mm | B11: 0366 550 880 - 881 | G11: M8x37mm | H11: 0,8mm | I11: 0468 502 003 | J11: Fe, Ss | K11: 1,0mm
A12: 0,8mm | B12: 0366 550 882 - 883 | C12: 0366 550 882 - 883 | D12: 0366 550 882 - 883 | G12: M8x37mm | H12: 0,9mm | I12: 0468 502 004 | J12: Fe, Ss | K12: 1,1mm
A13: 0,9mm - 1,0mm | B13: 0366 550 884 - 885 | C13: 0366 550 884 - 885 | D13: 0366 550 884 - 885 | E13: 0366 550 884 - 885 | G13: M8x37mm | H13: 1,0mm | I13: 0468 502 004 | J13: Fe, Ss, Rd | K13: 1,1mm
A14: 1,2mm | B14: 0366 550 886 - 887 | C14: 0366 550 886 - 887 | D14: 0366 550 886 - 887 | E14: 0366 550 886 - 887 | G14: M8x37mm Al. | H14: 1,0mm Al. | I14: 0468 502 005 | J14: Al. | K14: 1,2mm
A15: 1,4mm | C15: 0366 550 888 - 889 | D15: 0366 550 888 - 889 | E15: 0366 550 888 - 889 | G15: M8x37mm | H15: 1,2mm | I15: 0468 502 006 | J15: Fe, Ss, Rd | K15: 1,4mm
A16: 1,6mm | C16: 0366 550 890 - 891 | D16: 0366 550 890 - 891 | E16: 0366 550 890 - 891 | G16: M8x37mm Al. | H16: 1,2mm Al. | I16: 0468 502 007 | J16: Al. | K16: 1,5mm
A17: 2,0mm | D17: 0366 550 892 - 893 | E17: 0366 550 892 - 893 | G17: M8x37mm | H17: 1,4mm | I17: 0468 502 008 | J17: Fe, Ss, Rd | K17: 1,7mm
A18: 2,4mm | D18: 0366 550 892 - 893 | E18: 0366 550 892 - 893 | G18: M8x37mm | H18: 1,6mm | I18: 0468 502 009 | J18: Fe, Ss, Rd | K18: 1,9mm
G19: M8x37mm Al. | H19: 1,6mm Al. | I19: 0468 502 010 | J19: Al. | K19: 2,1mm
A20: Wklady do drutow Al. PTFE CER - beżowe
A21: 0,9mm - 1,0mm | B21: 0457 969 882 -883 | C21: 0457 969 882 -883 | D21: 0457 969 882 -883 | E21: 0457 969 882 -883
A22: 1,2mm | B22: 0457 969 882 -883 | C22: 0457 969 882 -883 | D22: 0457 969 882 -883 | E22: 0457 969 882 -883
A23: 1,4mm | B23: 0457 969 884 | C23: 0457 969 884 | D23: 0457 969 884 | E23: 0457 969 884
A24: 1,6mm | B24: 0457 969 884 | C24: 0457 969 884 | D24: 0457 969 884 | E24: 0457 969 884
A26: Wklady do drutow Al. PTFE biały z zakończeniem stalowym | F26: Zakończenie PTFE (czarne)
A27: 0,9mm - 1,0mm | B27: 0366 550 884 - 885 | C27: 0366 550 884 - 885 | D27: 0366 550 884 - 885 | E27: 0457 969 882 -883 | F27: 0368 742 880
A28: 1,2mm | B28: 0366 550 886 - 887 | C28: 0366 550 886 - 887 | D28: 0366 550 886 - 887 | E28: 0457 969 882 -883 | F28: 0368 742 883
A29: 1,4mm | C29: 0366 550 888 - 889 | D29: 0366 550 888 - 889 | E29: 0457 969 884 | F29: 0368 742 881
A30: 1,6mm | C30: 0366 550 890 - 891 | D30: 0366 550 890 - 891 | E30: 0457 969 884 | F30: 0368 742 881
A33: Wklady do drutow Al. PA-LF czarny z zakończeniem mosiężnym
A34: 1,0mm - 1,2mm | B34: 0460 233 890 / 891 | C34: 0460 233 890 / 891 | D34: 0460 233 890 / 891 | E34: 0460 233 890 / 891

Sheet 22-Środki Ochrony Indywidualnej
A1: Nr katalogowy | B1: Opis | C1: Cena Katalogowa | D1: Minimalna ilośc zamówienia
B2: PRZYŁBICE SAMOŚCIEMNIAJĄCE
B3: SENTINEL A50 klasa optyczna 1/1/1/2 EN379
A4: 0700000800 | B4: Sentinel A50 | C4: 1454 | D4: 1
A5: 0700000801 | B5: Sentinel A50 AIR przystosowana do nawiewu | C5: 1678 | D5: 1
A6: 0700002301 | B6: PAPR Air - system nawiewowy z filtrem, rurą 100cm, baterią i ładowarką | C6: 2090 | D6: 1
B7: SENTINEL A50 CZĘŚCI EKSPLOATACYJNE
A8: 0700000799 | B8: Adapter kit AIR do przyłbicy A50 (0700000800) | C8: 375.0642 | D8: 1
A9: 0700000802 | B9: Przednia szybka ochronna "Clear" | C9: 19.5082 | D9: 5
A10: 0700000803 | B10: Przednia szybka ochronna "Amber" | C10: 26.0281 | D10: 5
A11: 0700000823 | B11: Przednia szybka ochronna "Clear" wersja wzmocniona HD | C11: 38.8619 | D11: 5
A12: 0700000824 | B12: Przednia szybka ochronna "Amber" wersja wzmocniona HD | C12: 43.4866 | D12: 5
A13: 0700000804 | B13: Skorupa przyłbicy Sentinel A50 | C13: 224.7254 | D13: 1
A14: 0700000806 | B14: Filtr auto do przyłbicy Sentinel | C14: 1173 | D14: 1
A15: 0700000808 | B15: Wewnętrzna szybka ochronna - Sentinel A50 | C15: 6.5199 | D15: 5
A16: 0700000809 | B16: Nagłowie z opaską przeciwpotną Sentinel A50 | C16: 130.1199 | D16: 1
A17: 0700000805 | B17: Nagłowie z opaską przeciwpotną Sentinel A50 Air | C17: 164.1202 | D17: 1
A18: 0700000814 | B18: Uszczelnienie twarzy Sentinel A50 Air | C18: 150.3285 | D18: 1
A19: 0700000810 | B19: Przednia opaska przeciwpotna Sentinel A50 | C19: 17.7469 | D19: 2
A20: 0700000811 | B20: Nagłowie - Sentinel A50 | C20: 88.7242 | D20: 1
A21: 0700000812 | B21: Tylna opaska przeciwpotna - Sentinel A50 | C21: 14.2037 | D21: 2
A22: 0700000619 | B22: Adapter do kasku ochronnego Concept | C22: 91.8451 | D22: 1
A23: 0700000821 | B23: Sentinel Bandana | C23: 49.1928 | D23: 1
A24: 0700000827 | B24: Worek na przyłbicę Sentinel A50 | C24: 72.4914 | D24: 1
A25: 0367951001 | B25: Wkładka korekcyjna +1,0 dioptrii | C25: 35.2569 | D25: 1
A26: 0367951002 | B26: Wkładka korekcyjna +1,5 dioptrii | C26: 35.2569 | D26: 1
A27: 0367951003 | B27: Wkładka korekcyjna +2,0 dioptrii | C27: 35.2569 | D27: 1
A28: 0367951004 | B28: Wkładka korekcyjna +2,5 dioptrii | C28: 35.2569 | D28: 1
B29: SAVAGE A40 klasa optyczna 1/1/1/2 EN379
A30: 0700000490 | B30: SavageA40 9-13 czarna (wymienna bateria) | C30: 615 | D30: 1
A31: 0700000491 | B31: SavageA40 9-13 żółta (wymienna bateria) | C31: 615 | D31: 1
A32: 0700500400 | B32: SavageA40 9-13 Air czarna (wymienna bateria) pod nawiew PAPR | C32: 990 | D32: 1
B33: SAVAGE A40 CZĘŚCI EKSPLOATACYJNE
A34: 0700000010 | B34: Przednia szybka ochronna (115 x 93 x 1,35) | C34: 7.9928 | D34: 10
A35: 0700000482 | B35: Wewnętrzna szybka ochronna (104,6 x 54,0 x 1,0) | C35: 5.7474 | D35: 10
A36: 0700000414 | B36: Opaska przeciwpotna | C36: 6.0976 | D36: 2
A37: 0700000483 | B37: Nagłowie przyłbicy | C37: 36.2869 | D37: 1
A38: 0700000063 | B38: Skórzana ochrona karku i głowy | C38: 741 | D38: 1
A39: 0700000418 | B39: Ramka filtra ADF | C39: 5.9431 | D39: 1
A40: 0700000419 | B40: Ramka szybki korekcyjnej | C40: 4.532 | D40: 1
A41: 0700001005 | B41: Adapter do kasku ochronnego Concept | C41: 143.4481 | D41: 1
A42: 0700000084 | B42: Wkładka korekcyjna +1,0 dioptrii do przyłbic NEW-TECH, ARISTO-TECH, SAVAGE | C42: 66.0024 | D42: 1
A43: 0700000085 | B43: Wkładka korekcyjna +1,5 dioptrii do przyłbic NEW-TECH, ARISTO-TECH, SAVAGE | C43: 66.0024 | D43: 1
A44: 0700000086 | B44: Wkładka korekcyjna +2,0 dioptrii do przyłbic NEW-TECH, ARISTO-TECH, SAVAGE | C44: 66.0024 | D44: 1
A45: 0700000087 | B45: Wkładka korekcyjna +2,5 dioptrii do przyłbic NEW-TECH, ARISTO-TECH, SAVAGE | C45: 66.0024 | D45: 1
B46: WARRIOR TECH klasa optyczna 1/2/1/2 EN379
A47: 0700000405 | B47: WARRIOR Tech 9-13, (czarna) przystosowana do nawiewu | C47: 830 | D47: 1
A48: 0700000406 | B48: WARRIOR Tech 9-13, (żółta) przystosowana do nawiewu | C48: 830 | D48: 1
A49: 0700002300 | B49: PAPR Air - system nawiewowy z filtrem, rurą 85cm, baterią i ładowarką | C49: 2025 | D49: 1
B50: WARRIOR TECH CZĘŚCI EKSPLOATACYJNE
A51: 0700000010 | B51: Przednia szybka ochronna (115 x 93 x 1,35) | C51: 7.9928 | D51: 10
A52: 0700000416 | B52: Wewnętrzna szybka ochronna | C52: 5.7474 | D52: 10
A53: 0700000414 | B53: Opaska przeciwpotna | C53: 6.0976 | D53: 2
A54: 0700000415 | B54: Nagłowie przyłbicy | C54: 28.7473 | D54: 1
A55: 0700000062 | B55: Skórzana ochrona szyi | C55: 344.3805 | D55: 1
A56: 0700000063 | B56: Skórzana ochrona karku i głowy | C56: 741 | D56: 1
A57: 0367951001 | B57: Wkładka korekcyjna +1,0 dioptrii do przyłbic Origo, Warrior, Albatros, Sentinel | C57: 35.2569 | D57: 1
A58: 0367951002 | B58: Wkładka korekcyjna +1,5 dioptrii do przyłbic Origo, Warrior, Albatros, Sentinel | C58: 35.2569 | D58: 1
A59: 0367951003 | B59: Wkładka korekcyjna +2,0 dioptrii do przyłbic Origo, Warrior, Albatros, Sentinel | C59: 35.2569 | D59: 1
A60: 0367951004 | B60: Wkładka korekcyjna +2,5 dioptrii do przyłbic Origo, Warrior, Albatros, Sentinel | C60: 35.2569 | D60: 1
B61: NEW-TECH ADC PLUS klasa optyczna 1/1/1/1 EN379
A62: 0700000956 | B62: New-Tech 6-13 ADC Plus (95 x 46.5mm) | C62: 1956 | D62: 1
A63: 0700000957 | B63: New-Tech 9-13 ADC Plus (95 x 46.5mm) | C63: 1710 | D63: 1
A64: 0700000963 | B64: New-Tech 9-13 ADC Plus (95 x 46.5mm) Przystosowany do nawiewu | C64: 2539 | D64: 1
A65: 0700002301 | B65: PAPR Air - system nawiewowy z filtrem, rurą 100cm, baterią i ładowarką | C65: 2090 | D65: 1
B66: NEW-TECH ADC PLUS CZĘŚCI EKSPLOATACYJNE
A67: 0700000139 | B67: Przednia szybka ochronna | C67: 9.0022 | D67: 10
A68: 0700000228 | B68: Wewnętrzna szybka ochronna (95 x 46.5mm) | C68: 4.0891 | D68: 10
A69: 0700000268 | B69: Wewnętrzna szybka ochronna XL (96 x 68.5mm) | C69: 5.7577 | D69: 10
A70: 0700000231 | B70: Opaska przeciwpotna | C70: 14.5951 | D70: 2
A71: 0700000222 | B71: Nagłowie kpl New-Tech | C71: 47.5139 | D71: 1
A72: 0700000062 | B72: Skórzana ochrona szyi | C72: 344.3805 | D72: 1
A73: 0700000063 | B73: Skórzana ochrona karku i głowy | C73: 741 | D73: 1
A74: 0700000084 | B74: Wkładka korekcyjna +1,0 dioptrii do przyłbic NEW-TECH, ARISTO-TECH | C74: 66.0024 | D74: 1
A75: 0700000085 | B75: Wkładka korekcyjna +1,5 dioptrii do przyłbic NEW-TECH, ARISTO-TECH | C75: 66.0024 | D75: 1
A76: 0700000086 | B76: Wkładka korekcyjna +2,0 dioptrii do przyłbic NEW-TECH, ARISTO-TECH | C76: 66.0024 | D76: 1
A77: 0700000087 | B77: Wkładka korekcyjna +2,5 dioptrii do przyłbic NEW-TECH, ARISTO-TECH | C77: 66.0024 | D77: 1
B78: ARISTO TECH HD klasa optyczna 1/1/1/1 EN379
B79: ARISTO TECH HD CZĘŚCI EKSPLOATACYJNE
A80: 0700000010 | B80: Zewnętrzna szybka ochronna (115 x 93 x 1,35) | C80: 7.9928 | D80: 10
A81: 0700000370 | B81: Przednia szybka ochronna wzmocniona | C81: 9.6408 | D81: 10
A82: 0700000455 | B82: Wewnętrzna szybka ochronna (pk5) | C82: 7.7147 | D82: 5
A83: 0700000369 | B83: Opaska przeciwpotna | C83: 16.3976 | D83: 2
A84: 0700000454 | B84: Nagłowie kpl Aristo-Tech 5-13 HD | C84: 216.609 | D84: 1
A85: 0700000062 | B85: Skórzana ochrona szyi | C85: 344.3805 | D85: 1
A86: 0700000063 | B86: Skórzana ochrona karku i głowy | C86: 741 | D86: 1
A87: 0700000084 | B87: Wkładka korekcyjna +1,0 dioptrii do przyłbic NEW-TECH, ARISTO-TECH | C87: 66.0024 | D87: 1
A88: 0700000085 | B88: Wkładka korekcyjna +1,5 dioptrii do przyłbic NEW-TECH, ARISTO-TECH | C88: 66.0024 | D88: 1
A89: 0700000086 | B89: Wkładka korekcyjna +2,0 dioptrii do przyłbic NEW-TECH, ARISTO-TECH | C89: 66.0024 | D89: 1
A90: 0700000087 | B90: Wkładka korekcyjna +2,5 dioptrii do przyłbic NEW-TECH, ARISTO-TECH | C90: 66.0024 | D90: 1
B91: Przyłbica G50 klasa optyczna 1/2/1/2 EN379
A92: 0700000438 | B92: G50 9-13 | C92: 983 | D92: 1
A93: 0700000441 | B93: G50 Air 9-13 przystosowana do nawiewu | C93: 1193 | D93: 1
A94: 0700002301 | B94: PAPR Air - system nawiewowy z filtrem, rurą 100cm, baterią i ładowarką | C94: 2090 | D94: 1
B95: Przyłbica G50 CZĘŚCI EKSPLOATACYJNE
A96: 0700000515 | B96: Korpus przyłbicy G30, G40 & G50 (1) | C96: 141.2439 | D96: 1
A97: 0700000501 | B97: Szybka ochronna G30, G40 & G50 - przeźroczysta (2) | C97: 53.2304 | D97: 1
A98: 0700000517 | B98: Przednia szybka ochronna G40 & G50 (3) | C98: 4.0479 | D98: 10
A99: 0700000518 | B99: Mocowanie szybki ochronnej G40 & G50 (5) | C99: 11.6802 | D99: 50
A100: 0700000523 | B100: Filtr ADF 9-13 G50 (6) | C100: 506.8733 | D100: 1
A101: 0700000519 | B101: Ramka G40 90 x 110 & G50 (7) | C101: 9.4348 | D101: 50
A102: 0700000521 | B102: Uszczelka G40 60 x 110 & 90 x 110 (8) | C102: 8.5284 | D102: 100
A103: 0700000415 | B103: Nagłowie (9) | C103: 28.7473 | D103: 1
A104: 0700000420 | B104: Nagłowie przystosowane do nawiewu (10) | C104: 299.112 | D104: 1
A105: 0700000951 | B105: Osłona zewnętrzna głowy (10) | C105: 101.8258 | D105: 1
A106: 0700000274 | B106: Opaska przeciwpotna pod nagłowie Air (11) | C106: 6.7465 | D106: 2
B107: PASYWNE RZYŁBICE SPAWALNICZE
B108: ECO-ARC II F10
A109: 0700000761 | B109: Przyłbica Eco-Arc II 60x110 | C109: 86.8599 | D109: 1
A110: 0700000760 | B110: Przyłbica Eco-Arc II 60x110 (pakowane po 20 szt) | C110: 66.2599 | D110: 20
A111: 0700000762 | B111: Przyłbica Eco-Arc II 90x110 (pakowane po 20 szt) | C111: 66.2599 | D111: 20
A112: 0700000763 | B112: Przyłbica Eco-Arc II 51x108 (pakowane po 20 szt) | C112: 66.2599 | D112: 20
B113: EC-ARC II CZĘŚCI EKSPLOATACYJNE
A114: 0700000252 | B114: Szybka ochronna wewnętrzna | C114: 6.386 | D114: 10
A115: 0160307001 | B115: Szybka ochronna zewnętrzna 60x110 | C115: 1.4729 | D115: 100
A116: 0160307004 | B116: Szybka ochronna zewnętrzna 90x110 | C116: 2.2866 | D116: 100
A117: 0160307002 | B117: Szybka ochronna zewnętrzna 51x108 | C117: 1.8231 | D117: 100
A118: 0160292003 | B118: Szybka ochronna, filtr 11 DIN 60 x 110 | C118: 2.1527 | D118: 25
A119: 0760031633 | B119: Szybka ochronna, filtr 11 DIN 90 x 110 | C119: 3.605 | D119: 25
A120: 0760031603 | B120: Szybka ochronna, filtr 11 DIN 51 x 108 | C120: 1.9776 | D120: 25
A121: 0700000244 | B121: Opaska przeciwpotna | C121: 4.2642 | D121: 2
A122: 0700000769 | B122: Ramka zabezpieczająca szybkę ochronną 90x110 | C122: 2.4514 | D122: 100
B123: Przyłbica G40
A124: 0700000436 | B124: G40 60 x 110 | C124: 375.2702 | D124: 1
A125: 0700000437 | B125: G40 90 x 110 | C125: 397.3534 | D125: 1
A126: 0700000439 | B126: G40 Air 60 x 110 | C126: 741 | D126: 1
A127: 0700000440 | B127: G40 Air 90 x 110 | C127: 762 | D127: 1
A128: 0700002301 | B128: PAPR Air - system nawiewowy z filtrem, rurą 100cm, baterią i ładowarką | C128: 2090 | D128: 1
B129: Przyłbica G40 CZĘŚCI EKSPLOATACYJNE
A130: 0700000515 | B130: Korpus przyłbicy G30, G40 & G50 (1) | C130: 141.2439 | D130: 1
A131: 0700000501 | B131: Szybka ochronna G30, G40 & G50 - przeźroczysta (2) | C131: 53.2304 | D131: 1
A132: 0700000517 | B132: Przednia szybka ochronna G40 & G50 (3) | C132: 4.0479 | D132: 10
A133: 0160292003 | B133: Szybka ochronna DIN 11 G40 60 x 110 (4) | C133: 2.1527 | D133: 25
A134: 0760031633 | B134: Szybka ochronna DIN 11 G40 90 x 110 (4) | C134: 3.605 | D134: 25
A135: 0700000518 | B135: Mocowanie szybki ochronnej G40 & G50 (5) | C135: 11.6802 | D135: 50
A136: 0700000519 | B136: Ramka G40 90 x 110 & G50 (7) | C136: 9.4348 | D136: 50
A137: 0700000520 | B137: Ramka G40 60 x 110 (7) | C137: 10.1043 | D137: 50
A138: 0700000521 | B138: Uszczelka G40 60 x 110 & 90 x 110 (8) | C138: 8.5284 | D138: 100
A139: 0700000415 | B139: Nagłowie (9) | C139: 28.7473 | D139: 1
A140: 0700000420 | B140: Nagłowie przystosowane do nawiewu (10) | C140: 299.112 | D140: 1
A141: 0700000951 | B141: Osłona zewnętrzna głowy (10) | C141: 101.8258 | D141: 1
A142: 0700000274 | B142: Opaska przeciwpotna pod nagłowie Air (11) | C142: 6.7465 | D142: 2
B143: Przyłbica G30
A144: 0700000430 | B144: G30 Din 10 | C144: 320.0828 | D144: 1
A145: 0700000431 | B145: G30 Din 11 | C145: 320.0828 | D145: 1
A146: 0700000433 | B146: G30 Air Din 10 | C146: 940 | D146: 1
A147: 0700000434 | B147: G30 Air Din 11 | C147: 940 | D147: 1
A148: 0700002301 | B148: PAPR Air - system nawiewowy z filtrem, rurą 100cm, baterią i ładowarką | C148: 2090 | D148: 1
B149: Przyłbica G30 CZĘŚCI EKSPLOATACYJNE
A150: 0700000515 | B150: Korpus przyłbicy G30, G40 & G50 (1) | C150: 141.2439 | D150: 1
A151: 0700000415 | B151: Nagłowie (2) | C151: 28.7473 | D151: 1
A152: 0700000414 | B152: Opaska przeciwpotna (3) | C152: 6.0976 | D152: 2
A153: 0700000508 | B153: Ruchoma przednia osłona z wkrętami (4) | C153: 51.0777 | D153: 1
A154: 0700000501 | B154: Szybka ochronna G30, G40 & G50 - przeźroczysta (5) | C154: 53.2304 | D154: 1
A155: 0700000502 | B155: Szybka ochronna G30 - DIN 2 (5) | C155: 83.9862 | D155: 1
A156: 0700000503 | B156: Szybka ochronna G30 - DIN 3 (5) | C156: 84.0068 | D156: 1
A157: 0700000504 | B157: Szybka ochronna G30 - DIN 5 (5) | C157: 84.0068 | D157: 1
A158: 0700000505 | B158: Zewnętrzna szybka ochronna G30 - DIN 5 (6) | C158: 84.7381 | D158: 1
A159: 0700000506 | B159: Zewnętrzna szybka ochronna G30 - DIN 8 (6) | C159: 84.7381 | D159: 1
A160: 0700000507 | B160: Zewnętrzna szybka ochronna G30 - DIN 10 (6) | C160: 84.7381 | D160: 1
A161: 0700000420 | B161: Nagłowie przystosowane do nawiewu (7) | C161: 299.112 | D161: 1
A162: 0700000512 | B162: Osłona zewnętrzna głowy (8) | C162: 101.2902 | D162: 1
A163: 0700000274 | B163: Opaska przeciwpotna pod nagłowie Air (9) | C163: 6.7465 | D163: 2
B164: Przyłbica F20
A165: 0700000426 | B165: F20 60 x 110 | C165: 253.8641 | D165: 1
A166: 0700000427 | B166: F20 90 x 110 | C166: 275.937 | D166: 1
A167: 0700000428 | B167: F20 Air 60 x 110 | C167: 685 | D167: 1
A168: 0700000429 | B168: F20 Air 90 x 110 | C168: 718 | D168: 1
A169: 0700002301 | B169: PAPR Air - system nawiewowy z filtrem, rurą 100cm, baterią i ładowarką | C169: 2090 | D169: 1
B170: Przyłbica F20 CZĘŚCI EKSPLOATACYJNE
A171: 0700000509 | B171: Korpus przyłbicy F20 (1) | C171: 181.177 | D171: 1
A172: 0700000510 | B172: Ramka Flip F20 60 x 110 (2) | C172: 24.0093 | D172: 1
A173: 0700000511 | B173: Ramka Flip F20 90 x 110 (2) | C173: 23.0411 | D173: 1
A174: 0160307001 | B174: Szybka ochronna F20 60 x 110 (3) | C174: 1.4729 | D174: 100
A175: 0160307004 | B175: Szybka ochronna F20 90 x 110 (3) | C175: 2.2866 | D175: 100
A176: 0700000252 | B176: Wewnętrzna szybka F20, 90 x 110 & 60 x 110 (4) | C176: 6.386 | D176: 1
A177: 0700000256 | B177: Ramka osłony 90 x 110 (5) | C177: 10.4957 | D177: 1
A178: 0700000255 | B178: Ramka osłony 60 x 110 (5) | C178: 17.819 | D178: 10
A179: 0760031633 | B179: Szybka ochronna DIN 11 G40 90 x 110 (6) | C179: 3.605 | D179: 25
A180: 0160292003 | B180: Szybka ochronna DIN 11 G40 60 x 110 (6) | C180: 2.1527 | D180: 25
A181: 0700000415 | B181: Nagłowie (7) | C181: 28.7473 | D181: 1
A182: 0700000414 | B182: Opaska przeciwpotna (8) | C182: 6.0976 | D182: 2
A183: 0700000522 | B183: Osłona zewnętrzna głowy (9) | C183: 101.2902 | D183: 100
A184: 0700000420 | B184: Nagłowie przystosowane do nawiewu (10) | C184: 299.112 | D184: 1
A185: 0700000274 | B185: Opaska przeciwpotna pod nagłowie Air (11) | C185: 6.7465 | D185: 2
B186: EUROMASK
A187: 0000500501 | B187: Przyłbica Euromask DIN 10 (1,7+8) | C187: 492.9374 | D187: 1
A188: 0000500500 | B188: Przyłbica Euromask DIN 11 (1,7+10) | C188: 497.2325 | D188: 1
A189: 0700000901 | B189: Przyłbica Euromask DIN 10 (1,7+8) przystosowana do nawiewu | C189: 1189 | D189: 1
A190: 0700000902 | B190: Przyłbica Euromask DIN 11 (1,7+10) przystosowana do nawiewu | C190: 1143 | D190: 1
A191: 0700002301 | B191: PAPR Air - system nawiewowy z filtrem, rurą 100cm, baterią i ładowarką | C191: 2090 | D191: 1
B192: KASKI OCHRONNE / z możliwością montażu w przyłbicach automatycznych i pasywnych
A193: 0700000135 | B193: Kask ochronny CONCEPT, biały | C193: 179.2715 | D193: 1
A194: 0700000142 | B194: Kask ochronny CONCEPT, pamarańczowy | C194: 167.6531 | D194: 1
A195: 0700001005 | B195: Adapter do montażu w przyłbicach, New-Tech, Aristo-Tech, Warrior-Tech, Globe-Arc, Euromask | C195: 143.4481 | D195: 1
A196: 0700001009 | B196: Słuchawki ochronne - SRN 29dB | C196: 181.9083 | D196: 1
A197: 0700001010 | B197: Słuchawki ochronne - SRN 29dB, z radiem FM | C197: 1413 | D197: 1
B198: HEŁMY OCHRONNE CZĘŚCI EKSPLOATACYJNE
A199: 0700000141 | B199: Nagłowie CONCEPT | C199: 121.1177 | D199: 10
B200: SYSTEMY NAWIEWOWE ECO / Aristo Air - Części zamienne
... 91 more rows

Sheet 23-Akcesoria spawalnicze
A1: Nr katalogowy | B1: Opis | C1: Cena Katalogowa | D1: Minimalna ilośc zamówienia
B2: KURTYNY SPAWALNICZE
A3: 0700008001 | B3: Kurtyna spawalnicza paskowa, ciemnoczerwona, 1.8 x 1.4m | C3: 204.4447 | D3: 1
A4: 0700008002 | B4: Kurtyna spawalnicza paskowa, zielona, 1.8 x 1.4m | C4: 204.4447 | D4: 1
A5: 0700008003 | B5: Kurtyna spawalnicza paskowa, ciemnozielona (9 DIN), 1.8 x 1.4m | C5: 204.4447 | D5: 1
A6: 0700008004 | B6: Kurtyna spawalnicza, ciemnoczerwona, 1.8 x 1.4m | C6: 204.4447 | D6: 1
A7: 0700008005 | B7: Kurtyna spawalnicza, zielona, przezroczysta, 1.8 x 1.4m | C7: 204.4447 | D7: 1
A8: 0700008006 | B8: Kurtyna spawalnicza, ciemnozielona (9 DIN), 1.8 x 1.4m | C8: 204.4447 | D8: 1
A9: 0700008007 | B9: Kółka mocujące PCV w opak 7 szt-cena za szt | C9: 10.5163 | D9: 14
A10: 0700008008 | B10: Kółka mocujące metalowe w opak- 7 szt.cena za szt. | C10: 4.5835 | D10: 7
A11: 0000595315 | B11: Kurtyna spawalnicza przesuwna, bez kółka, ciemnoczerwona, 2x 2m | C11: 1156 | D11: 1
B12: KOCE OCHRONNE, SPAWALNICZE
A13: 0700008023 | B13: Koc spawalniczy 1850 2mx1m | C13: 148.1243 | D13: 1
A14: 0700008024 | B14: Koc spawalniczy 1850 2mx2m | C14: 307.9494 | D14: 1
A15: 0700008025 | B15: Koc spawalniczy 1850 1mx25m | C15: 1078 | D15: 1
A16: 0700008026 | B16: Koc spawalniczy 3001 2mx1m | C16: 162.7503 | D16: 1
A17: 0700008027 | B17: Koc spawalniczy 3001 2mx2m | C17: 346.5847 | D17: 1
A18: 0700008028 | B18: Koc spawalniczy 3001 1mx25m | C18: 1306 | D18: 1
A19: 0700008029 | B19: Koc spawalniczy 906 2mx1m | C19: 326.716 | D19: 1
A20: 0700008030 | B20: Koc spawalniczy 906 2mx2m | C20: 594 | D20: 1
A21: 0700008031 | B21: Koc spawalniczy 906 1mx25m | C21: 3015 | D21: 1
A22: 0700008032 | B22: Koc spawalniczy 2-1900 2mx1m | C22: 380.8013 | D22: 1
A23: 0700008033 | B23: Koc spawalniczy 2-1900 2mx2m | C23: 855 | D23: 1
A24: 0700008034 | B24: Koc spawalniczy 2-1900 1mx25m | C24: 3551 | D24: 1
A25: 0700008035 | B25: Koc spawalniczy 5180 2mx1m | C25: 1001 | D25: 1
A26: 0700008036 | B26: Koc spawalniczy 5180 2mx2m | C26: 1851 | D26: 1
A27: 0700008037 | B27: Koc spawalniczy 5180 1mx25m | C27: 9753 | D27: 1
B28: ŚRODKI ANTYODPRYSKOWE ORAZ CHEMIA SPAWALNICZA
A29: 0700013007 | B29: Środek antyodpryskowy ESAB Eco-Tech 300 ml | C29: 16.274 | D29: 12
A30: 0700013008 | B30: Środek antyodpryskowy ESAB Eco-Tech 10 l | C30: 221.1204 | D30: 1
A31: 0700013009 | B31: Środek antyodpryskowy ESAB Eco-Tech 25 l | C31: 521 | D31: 1
A32: 0760025500 | B32: High-Tech 400 ml | C32: 20.497 | D32: 12
A33: 0760025010 | B33: High-Tech 10 l | C33: 259.3849 | D33: 1
A34: 0760025025 | B34: High-Tech 25 l | C34: 613 | D34: 1
A35: 0700014073 | B35: Środek antyodpryskowy Aristo Advance 500 ml | C35: 33.9797 | D35: 12
A36: 0700013028 | B36: Środek antyodpryskowy Aristo Advance 10 l | C36: 301.3265 | D36: 1
A37: 0700013029 | B37: Środek antyodpryskowy Aristo Advance 25 l | C37: 720 | D37: 1
A38: 0700014017 | B38: Kurek do pojemnika 10 l | C38: 44.5063 | D38: 5
A39: 0700014018 | B39: Kurek do pojemnika 25 l | C39: 44.5063 | D39: 1
A40: 0700013016 | B40: ESAB Jig and Tool protection, 400 ml | C40: 52.8699 | D40: 6
A41: 0365560001 | B41: Pasta spawalnicze CleanWeld 0,5 kg | C41: 61.0584 | D41: 1
B42: WYPOSAŻENIE DODATKOWE ORAZ NARZĘDZIA SPAWALNICZE
A43: 0000139931 | B43: Spoinomierz KL-1 | C43: 625 | D43: 1
A44: 0000139932 | B44: Spoinomierz KL-2 | C44: 799 | D44: 1
A45: 0000593268 | B45: Spoinomierz Filarc | C45: 346.5847 | D45: 1
A46: 0000593720 | B46: Spoinomierz INOX | C46: 1055 | D46: 1
A47: 0000134716 | B47: Universal Tool | C47: 55.8672 | D47: 1
A48: 0000139054 | B48: Universal Tool Mini | C48: 51.7678 | D48: 1
A49: 0760022100 | B49: Fix 1 12-15mm | C49: 166.9733 | D49: 1
A50: 0760022200 | B50: Fix 2 15-18mm | C50: 166.9733 | D50: 1
A51: 0000595319 | B51: Lusterko inspekcyjne 500mm, z magnetyczną podstawą | C51: 72.0279 | D51: 1
A52: 0700014015 | B52: Uchwyt magnetyczny mały | C52: 15.5427 | D52: 1
A53: 0700014016 | B53: Uchwyt magnetyczny duży | C53: 24.2977 | D53: 1
A54: 0760022300 | B54: Uchwyt MIG/MAG | C54: 30.7043 | D54: 1
A55: 0760022400 | B55: Uchwyt TIG | C55: 28.5207 | D55: 1
A56: 0701380220 | B56: Zapalniczka SL3 | C56: 6.5817 | D56: 1
A57: 0701380221 | B57: SL3 Kamienie do zapalniczki Pk 5 | C57: 1.8643 | D57: 5
A58: 0700009026 | B58: TIG PEN | C58: 262.6912 | D58: 1
A59: 0700154807 | B59: Zapalniczka SL2 | C59: 9.3112 | D59: 5
A60: 0700119695 | B60: Kamienie do zapalniczki Pk9 (SL2) | C60: 0.2987 | D60: 100
A61: 0760024200 | B61: Trójrzędowa szczotka druciana ze stali węglowej | C61: 9.3112 | D61: 12
A62: 0760024300 | B62: Czterorzędowa szczotka druciana ze stali węglowej | C62: 10.4236 | D62: 12
A63: 0760024500 | B63: Dwurzędowa szczotka ze stali nierdzewnej | C63: 22.8763 | D63: 12
A64: 0760024600 | B64: Trójrzędowa szczotka ze stali nierdzewnej | C64: 27.4186 | D64: 12
A65: 0760024700 | B65: Czterorzędowa szczotka ze stali nierdzewnej | C65: 31.6107 | D65: 12
A66: 0700014043 | B66: Wózek do butli propanowej/tlenowej | C66: 876 | D66: 2
A67: 0700014044 | B67: Wózek uniwersalny | C67: 638 | D67: 1
A68: 0700009883 | B68: G-Tech Handy 230 V | C68: 5354 | D68: 1
A69: 0700009067 | B69: G-Tech Handy II complete 120V | C69: 4448 | D69: 1
A70: 0700009886 | B70: G-Tech Handy II complete 230V | C70: 4756 | D70: 1
B71: SUSZARKI I TERMOSY
A72: 0700100000 | B72: Suszarka do topnika SDF-250, zasilanie 3-fazowe 400 V AC 50/60 Hz | C72: 13553 | D72: 1
A73: 0700100021 | B73: Suszarka do topnika SDF-50, zasilanie 3-fazowe 400 V AC 50/60 Hz | C73: 8175 | D73: 1
A74: 0700100059 | B74: Suszarka do topnika SDF-50, zasilanie 1-fazowe 230 V AC 50/60 Hz | C74: 8175 | D74: 1
A75: 0700100044 | B75: Suszarka do elektrod SDE-250, zasilanie 3-fazowe 400 V AC 50/60 Hz | C75: 9824 | D75: 1
A76: 0700100061 | B76: Suszarka do elektrod SDE-250, zasilanie 1-fazowe 230 V AC 50/60 Hz | C76: 9824 | D76: 1
A77: 0700100068 | B77: Suszarka do elektrod SDE-100, zasilanie 3-fazowe 400 V AC 50/60 Hz | C77: 6693 | D77: 1
A78: 0700100069 | B78: Suszarka do elektrod SDE-100, zasilanie 1-fazowe 110 V AC 50/60 Hz | C78: 6693 | D78: 1
A79: 0700100060 | B79: Suszarka do elektrod SDE-100, zasilanie 1-fazowe 230 V AC 50/60 Hz | C79: 6693 | D79: 1
A80: 0700100092 | B80: Suszarka do elektrod SDE-50, zasilanie 3-fazowe 400 V AC 50/60 Hz | C80: 6053 | D80: 1
A81: 0700100127 | B81: Pojemnik do suchego składowania elektrod PSE-10, zasilanie 1-fazowe 230 V AC 50/60 Hz | C81: 994 | D81: 1
A82: 0700100129 | B82: Pojemnik do suchego składowania elektrod PSE-10, zasilanie 1-fazowe 24 V AC 50/60 Hz | C82: 994 | D82: 1
A83: 0700100109 | B83: Pojemnik do suchego składowania elektrod PSE-24, zasilanie 1-fazowe 230 V AC 50/60 Hz | C83: 1537 | D83: 1
A84: 0700100111 | B84: Pojemnik do suchego składowania elektrod PSE-24, zasilanie 1-fazowe 24 V AC 50/60 Hz | C84: 1537 | D84: 1
A85: 0700100145 | B85: Pojemnik do suchego składowania elektrod PSE-5, zasilanie 1-fazowe 230 V AC 50/60 Hz | C85: 543 | D85: 1
A86: 0700100147 | B86: Pojemnik do suchego składowania elektrod PSE-5, zasilanie 1-fazowe 24 V AC 50/60 Hz | C86: 543 | D86: 1

Sheet 24-Arc Air
A1: Numer katalogowy | B1: Nazwa | C1: Cena katalogowa netto [zł] | D1: Minimalna ilość zamówienia
A2: ELEKTRODY DC MIEDZIOWANE ZAOSTRZONE
A3: 22023003 | B3: Pro DC Carbon 3.2mm x 30.5cm | C3: 1.4317 | D3: 100
A4: 22983003 | B4: Pro DC Carbon 4.0mm x 30.5cm | C4: 1.03 | D4: 50
A5: 22033003 | B5: Pro DC Carbon 4.8mm x 30.5cm | C5: 1.2154 | D5: 50
A6: 22043003 | B6: Pro DC Carbon 6.4mm x 30.5cm | C6: 1.4317 | D6: 50
A7: 22053003 | B7: Pro DC Carbon 7.9mm x 30.5cm | C7: 1.6274 | D7: 50
A8: 22063003 | B8: Pro DC Carbon 9.5mm x 30.5cm | C8: 2.2454 | D8: 50
A9: 22082003 | B9: Pro DC Carbon 12.7mm x 35.6cm | C9: 4.8719 | D9: 50
A10: ELEKTRODY DC ZAOSTRZONE BEZ POWŁOKI
A11: 21983003 | B11: Pro DC Plain 4.0mm x 30.5cm | C11: 1.71 | D11: 50
A12: 21033003 | B12: Pro DC Plain 4.8mm x 30.5cm | C12: 1.8128 | D12: 50
A13: 21043003 | B13: Pro DC Plain 6.4mm x 30.5cm | C13: 2.0394 | D13: 50
A14: 21053003 | B14: Pro DC Plain 7.9mm x 30.5cm | C14: 2.25 | D14: 50
A15: 21063003 | B15: Pro DC Plain 9.5mm x 30.5cm | C15: 2.5132 | D15: 50
A16: ELEKTRODY AC MIEDZIOWANE ZAOSTRZONE
A17: 20033003 | B17: Pro AC Carbon 4.8mm x 30.5cm | C17: 5.7268 | D17: 50
A18: 20043003 | B18: Pro AC Carbon 6.4mm x 30.5cm | C18: 6.34 | D18: 50
A19: 20063003 | B19: Pro AC Carbon 9.5mm x 30.5cm | C19: 8.47 | D19: 50
A20: ELEKTRODY DC MIEDZIOWANE PROSTOKĄTNE
A21: 35099003 | B21: Pro DC Flat, 9.5mm x 4.5mm x 30.5cm | C21: 3.2651 | D21: 50
A22: 35033003 | B22: Pro DC Flat, 15.9mm x 4.5mm x 30.5cm | C22: 4.5423 | D22: 50
A23: ELEKTRODY DC MIEDZIOWANE ZAOKRĄGLONE
A24: 25103003 | B24: Pro DC Half round, 5.9mm x 7.9mm x 30.5cm | C24: 6.8 | D24: 50
A25: ELEKTRODY JETRODS® DC MIEDZIOWANE ŁĄCZONE
A26: 24052003 | B26: Jointed Jetrods® 7.9mm x 35.6cm | C26: 3.8213 | D26: 100
A27: 24062003 | B27: Jointed Jetrods® 9.5mm x 35.6cm | C27: 6.6847 | D27: 100
A28: 24064003 | B28: Jointed Jetrods® 9.5mm x 43.2cm | C28: 5.9225 | D28: 100
A29: 24082003 | B29: Jointed Jetrods® 12.7mm x 35.6cm | C29: 6.4169 | D29: 100
A30: 24084003 | B30: Jointed Jetrods® 12.7mm x 43.2cm | C30: 7.5293 | D30: 100
A31: 24104003 | B31: Jointed Jetrods® 15.9mm x 43.2cm | C31: 11.1343 | D31: 100
A32: 24124003 | B32: Jointed Jetrods® 19mm x 43.2cm | C32: 14.0183 | D32: 100
A33: ELEKTRODY Z SERII CUTSKILL
A34: ELEKTRODY DC MIEDZIOWANE ZAOSTRZONE
A35: 22033003C | B35: CutSkill DC Carbon 4.8mm x 30.5cm | C35: 0.8858 | D35: 50
A36: 22043003C | B36: CutSkill DC Carbon 6.4mm x 30.5cm | C36: 1.0094 | D36: 50
A37: 22053003C | B37: CutSkill DC Carbon 7.9mm x 30.5cm | C37: 1.3493 | D37: 50
A38: 22063003C | B38: CutSkill DC Carbon 9.5mm x 30.5cm | C38: 1.7716 | D38: 50
A39: ELEKTRODY DC MIEDZIOWANE DRĄŻONE ZAOSTRZONA
A40: 22033003HC | B40: Hollow CutSkill DC Carbon 4.8mm x 30.5cm | C40: 1.71 | D40: 50
A41: 22043003HC | B41: Hollow CutSkill DC Carbon 6.4mm x 30.5cm | C41: 1.9364 | D41: 50
A42: 22053003HC | B42: Hollow CutSkill DC Carbon 7.9mm x 30.5cm | C42: 2.2969 | D42: 50
A43: 22063003HC | B43: Hollow CutSkill DC Carbon 9.5mm x 30.5cm | C43: 2.9252 | D43: 50
A44: 22082003HC | B44: Hollow CutSkill DC Carbon 12.7mm x 35.6cm | C44: 6.37 | D44: 50
A45: ELEKTRODY DC MIEDZIOWANE ŁĄCZONE
A46: 24064003C | B46: Cutskill Jointed Carbon 9.5mm x 43.2cm | C46: 3.8728 | D46: 100
A47: 24084003C | B47: Cutskill Jointed Carbon 12.7mm x 43.2cm | C47: 4.7998 | D47: 100
A48: 24104003C | B48: Cutskill Jointed Carbon 15,9mm x 43.2cm | C48: 6.0049 | D48: 100
A49: 24124003C | B49: Cutskill Jointed Carbon 19mm x 43.2cm | C49: 10.3103 | D49: 100
A50: 24164003C | B50: Cutskill Jointed Carbon 25.4mm x 43.2cm | C50: 17.9529 | D50: 25
A51: UCHWYTY DO ŻŁOBIENIA ORAZ AKCESORIA
A52: 61088010 | B52: CSK4000 GOUGING TORCH W/3m | C52: 1098 | D52: 1
A53: 61088007 | B53: CSK4000 GOUGING TORCH W/2,1m | C53: 1004 | D53: 1
A54: 61104007 | B54: K-5 EXTREME GOUGING TORCH, CABLE 2,1m | C54: 2211 | D54: 1
A55: 61104008 | B55: K-5 EXTREME GOUGING TORCH, CABLE 3m | C55: 2516 | D55: 1
A56: 62991417 | B56: TRI-ARC GOUGING TORCH CABLE 2,1 (bez wkładek) | C56: 4400 | D56: 1
A57: 94378298 | B57: TRI-ARC wkładki do usuwania wad 9,5-19mm | C57: 167.993 | D57: 1
A58: 61084008 | B58: AIRPRO X4000-7FT SWIVEL-STD | C58: 2133 | D58: 1
A59: 61084006 | B59: AIRPRO X4000-7FT HOOKUP KIT | C59: 2594 | D59: 1
A60: 61084009 | B60: AIRPRO X4000-10FT SWIVEL-STD | C60: 1946 | D60: 1
A61: 61084007 | B61: AIRPRO X4000-10FT HOOKUP KIT | C61: 2336 | D61: 1
A62: 61082008 | B62: K4000 GOUGING TORCH , CABLE 2,1M | C62: 1020 | D62: 1
A63: 61082006 | B63: K4000 GOUGING TORCH , CABLE 2,1M z izolowanym przyłączem | C63: 1442 | D63: 1
A64: 61082007 | B64: K4000 GOUGING TORCH , CABLE 3,0M z izolowanym przyłączem | C64: 1710 | D64: 1
A65: 61065006 | B65: K3000 GOUGING TORCH , CABLE 2,1M | C65: 1029 | D65: 1
A66: 61065002 | B66: K3000 GOUGING TORCH , CABLE 2,1M z izolowanym przyłączem | C66: 1453 | D66: 1
A67: 61084008 | B67: X4000 AIRPRO GOUGING TORCH , CABLE 2,1M | C67: 2133 | D67: 1
A68: 61084006 | B68: X4000 AIRPRO GOUGING TORCH , CABLE 2,1M z izolowanym przyłączem | C68: 2594 | D68: 1
A69: 94463046 | B69: GOUGING TORCH , zestaw szybkiego montażu | C69: 497.2325 | D69: 1
A70: SYSTEMY DO CIĘCIA EGZOTERMICZNEGO
A71: 63991047CE | B71: SLICE UTILITY PACK | C71: 5487 | D71: 1
A72: 63991044CE | B72: SLICE BATTERY PACK | C72: 9990 | D72: 1
A73: 63991042CE | B73: SLICE COMPLETE PACK | C73: 14990 | D73: 1
A74: 72012010 | B74: SLICE STRIKER ASSEMBLY | C74: 1250 | D74: 1
A75: 43049002 | B75: Pręty tnące SLICE 6,4 mm x 55,9 cm (PK 25) | C75: 9.0331 | D75: 25
A76: 43049003 | B76: Pręty tnące SLICE 6,4 mm x 55,9 cm (PK 100) | C76: 7.6632 | D76: 100
A77: 43049005 | B77: Pręty tnące SLICE 6,4 mm x 111,8 cm (PK 25) | C77: 13.9256 | D77: 25
A78: 43049007 | B78: Pręty tnące SLICE 9,5 mm x 45,7 cm (PK 50) | C78: 14.626 | D78: 50
A79: 43049009 | B79: Pręty tnące SLICE 9,5 mm x 91,4,7 cm (PK 25) | C79: 16.2946 | D79: 25
A80: 42049002 | B80: Pręty tnące w otulinie SLICE 6,4 mm x 55,9 cm (PK 25) | C80: 12.9368 | D80: 25
A81: 42049003 | B81: Pręty tnące w otulinie SLICE 6,4 mm x 55,9 cm (PK 100) | C81: 10.0631 | D81: 100
A82: 42049005 | B82: Pręty tnące w otulinie SLICE 9,5 mm x 45,7 cm (PK 50) | C82: 19.4979 | D82: 50
A83: SYSTEMY DO CIĘCIA I SPAWANIA PODWODNEGO
A84: 14050124 | B84: Uchwyt Sea Torch - tuleja zaciskowa elektrody do cięcia 7,9 mm | C84: 3401 | D84: 1
A85: 14050126 | B85: Uchwyt Sea Torch - tuleja zaciskowa elektrody do cięcia 9,5 mm | C85: 3401 | D85: 1
A86: 14050127 | B86: Uchwyt Arcwater II | C86: 7720 | D86: 1
A87: 14050128 | B87: Uchwyt Sea-Stinger II | C87: 1354 | D87: 1
A88: 42059007 | B88: Elektrody do cięcia SEA CUT 7,9/2,9 mm x 45,7 mm | C88: 917 | D88: Karton 50 szt
A89: 42059008 | B89: Elektrody do cięcia TUFF COTE 7,9/2,9 mm x 45,7 mm | C89: 6026 | D89: Karton 50 szt
A90: 42066006 | B90: Elektrody do cięcia SEA JET 9,5 mm x 45,7 mm | C90: 2699 | D90: Karton 50 szt
A91: 42075005 | B91: Elektrody do cięcia SEA DRAGON 9,5 mm x 45,7 mm | C91: 896 | D91: Karton 50 szt
A92: 42024002 | B92: Elektrody do spawania SEA WELD 3,2 mm x 356 mm | C92: 2174 | D92: Karton 150 szt
A93: 42984004 | B93: Elektrody do spawania SEA WELD 4,0 mm x 356 mm | C93: 1671 | D93: Karton 100 szt
A94: 42034007 | B94: Elektrody do spawania SEA WELD 4,8 mm x 457 mm | C94: 1403 | D94: Karton 75 szt
A95: 42059006 | B95: Elektrody do żłobienia ARC WATTER 7,9 mm 229 mm (350-450 A) | C95: 662 | D95: Karton 50 szt
A96: Pręty i płyty węglowe
A97: 48043012 | B97: Płyta 6,4 mm x 30,5 cm x 30,5 cm | C97: 475.7982 | D97: 1
A98: 48063012 | B98: Płyta 9,5 mm x 30,5 cm x 30,5 cm | C98: 510.0869 | D98: 1
A99: 48083012 | B99: Płyta 12,7 mm x 30,5 cm x 30,5 cm | C99: 541 | D99: 1
A100: 48123012 | B100: Płyta 19 mm x 30,5 cm x 30,5 cm | C100: 788 | D100: 1
A101: 48163012 | B101: Płyta 25,4 mm x 30,5 cm x 30,5 cm | C101: 1005 | D101: 1
A102: 47123000 | B102: Pręt 19,0 mm x 20,5 cm | C102: 168.6831 | D102: 1
A103: 47143000 | B103: Pręt 22,23 mm x 20,5 cm | C103: 160.68 | D103: 1
A104: 47164000 | B104: Pręt 25,4 mm x 20,5 cm | C104: 40.7983 | D104: 1
A105: 47183000 | B105: Pręt 28,6 mm x 20,5 cm | C105: 263.7933 | D105: 1
A106: 47203000 | B106: Pręt 31,8 mm x 20,5 cm | C106: 293.6015 | D106: 1
A107: 47243000 | B107: Pręt 38,1 mm x 20,5 cm | C107: 648 | D107: 1
A108: 47323000 | B108: Pręt 50,8 mm x 20,5 cm | C108: 557 | D108: 1

Sheet Cennik numeryczny
A1: GIN | B1: Opis Produktu | C1: UoM | D1: Grupa produktowa | E1: Cena katalogowa netto PLN
A2: 0000103588 | B2: Return clamp JK 3 | C2: PCE | D2: 853 | E2: 381.9034
A3: 0000134716 | B3: Universal Top Tool | C3: PCE | D3: 853 | E3: 55.8672
A4: 0000138408 | B4: Hand spray bottle 0,65 l | C4: PCE | D4: 853 | E4: 59.6267
A5: 0000139054 | B5: Universal Top Tool Mini | C5: PCE | D5: 853 | E5: 51.7678
A6: 0000139931 | B6: Fillet gauge KL-1 Laser | C6: PCE | D6: 853 | E6: 625
A7: 0000139932 | B7: Fillet gauge KL-2 Laser | C7: PCE | D7: 853 | E7: 799
A8: 0000419450 | B8: MK 450 | C8: PCE | D8: 307 | E8: 74.1394
A9: 0000500225 | B9: HANDLE SAMSON 500 | C9: PCE | D9: 853 | E9: 67.8976
A10: 0000500270 | B10: INSULATING HEAD OPT.4/5/600 | C10: PCE | D10: 853 | E10: 36.2354
A11: 0000500282 | B11: INSULATING HEAD OPTIMUS 300 | C11: PCE | D11: 853 | E11: 30.4365
A12: 0000500318 | B12: Full size visor DIN 8 | C12: PCE | D12: 856 | E12: 221.244
A13: 0000500415 | B13: Magnetic return clamp 400 | C13: PCE | D13: 307 | E13: 51.0777
A14: 0000500416 | B14: Magnetic return clamp 600 | C14: PCE | D14: 307 | E14: 77.7444
A15: 0000500500 | B15: Euromask, Shade 11 | C15: PCE | D15: 851 | E15: 497.2325
A16: 0000500501 | B16: Euromask, Shade 10 | C16: PCE | D16: 851 | E16: 492.9374
A17: 0000500502 | B17: Euromask shade 10 for hard hat | C17: PCE | D17: 851 | E17: 756
A18: 0000500503 | B18: Euromask shade 11 for hard hat | C18: PCE | D18: 851 | E18: 759
A19: 0000500511 | B19: Visor frame | C19: PCE | D19: 856 | E19: 61.1202
A20: 0000500512 | B20: UV protector 1,7 DIN | C20: PCE | D20: 856 | E20: 194.1447
A21: 0000500513 | B21: UV protector 3 DIN | C21: PCE | D21: 856 | E21: 161.9366
A22: 0000500514 | B22: Visor 8 DIN | C22: PCE | D22: 856 | E22: 87.8281
A23: 0000500515 | B23: Visor 10 DIN | C23: PCE | D23: 856 | E23: 95.7694
A24: 0000500519 | B24: Euromask Headgear | C24: PCE | D24: 856 | E24: 93.3283
A25: 0000500522 | B25: Chin cover for Euromask | C25: PCE | D25: 856 | E25: 45.1861
A26: 0000500524 | B26: UV protector 5 DIN | C26: PCE | D26: 856 | E26: 202.8894
A27: 0000500525 | B27: Visor 5 DIN | C27: PCE | D27: 856 | E27: 73.2639
A28: 0000500526 | B28: UV protector clear | C28: PCE | D28: 856 | E28: 101.4344
A29: 0000500535 | B29: Visor 11 DIN | C29: PCE | D29: 856 | E29: 108.0573
A30: 0000515077 | B30: DRYING CABINET FCW, LK10 | C30: PCE | D30: 853 | E30: 24967
A31: 0000593268 | B31: Filarc fillet gauge | C31: PCE | D31: 853 | E31: 346.5847
A32: 0000593269 | B32: Proban hood | C32: PCE | D32: 852 | E32: 79.6705
A33: 0000593720 | B33: INOX fillet gauge | C33: PCE | D33: 853 | E33: 1055
A34: 0000595039 | B34: Welding sleeves | C34: PCE | D34: 852 | E34: 90.9696
A35: 0000595133 | B35: Rotating coupling NKK 400 | C35: PCE | D35: 307 | E35: 2178
A36: 0000595178 | B36: Albatross 1000 Face Seal | C36: PCE | D36: 856 | E36: 81.6172
A37: 0000595199 | B37: Ear defender with head support | C37: PCE | D37: 857 | E37: 149.3088
A38: 0000595208 | B38: Screw for Euromaski visor | C38: PCE | D38: 856 | E38: 4.5629
A39: 0000595252 | B39: Adapter (L and R) for Hard hat | C39: PCE | D39: 857 | E39: 56.2277
A40: 0000595315 | B40: Mobile curtain red 2000x2000 | C40: PCE | D40: 861 | E40: 1156
A41: 0000595319 | B41: Inspection mirror | C41: PCE | D41: 853 | E41: 72.0279
A42: 0000663000 | B42: Chipping hammer SH2 | C42: PCE | D42: 853 | E42: 51.0365
A43: 0000665600 | B43: Cover Lens Diam. 50 mm glass | C43: PCE | D43: 856 | E43: 1.0094
A44: 0000665604 | B44: Filter Lens 50mm Dia Shade 4 | C44: PCE | D44: 856 | E44: 1.9776
A45: 0000665605 | B45: Filter Lens 50mm Dia Shade 5 | C45: PCE | D45: 856 | E45: 1.9776
A46: 0000665606 | B46: Filter Lens 50mm Dia Shade 6 | C46: PCE | D46: 856 | E46: 1.9776
A47: 0000701981 | B47: ADAPTER WIREBASKET + SPRING | C47: PCE | D47: 330 | E47: 63.1802
A48: 0000904378 | B48: Insulated helmet liner | C48: PCE | D48: 852 | E48: 62.7476
A49: 0000915058 | B49: Cover Lens 98x75 glass | C49: PCE | D49: 856 | E49: 0.8137
A50: 0030467001 | B50: Cooling flange sleeve PKB 400 | C50: PCE | D50: 373 | E50: 147.6299
A51: 0030467401 | B51: Contact tube PKB 315/400 | C51: PCE | D51: 325 | E51: 184.4318
A52: 0030470583 | B52: Flow Relay Complete A9 | C52: PCE | D52: 377 | E52: 2617
A53: 0040936901 | B53: Clamp | C53: PCE | D53: 377 | E53: 4.4908
A54: 0040991301 | B54: Gas nozzle 22mm PKB 315/400 | C54: PCE | D54: 325 | E54: 62.4592
A55: 0040991401 | B55: Locking ring PKB 315/400 | C55: PCE | D55: 373 | E55: 122.2404
A56: 0041051606 | B56: Contact protection 1uF | C56: PCE | D56: 377 | E56: 42.3948
A57: 01082002 | B57: K4000 EXTREME TORCH ONLY | C57: PCE | D57: 760 | E57: 660
A58: 012P381330 | B58: TBi AUT 240-3m-Euro-45 | C58: PCE | D58: 324 | E58: 1212
A59: 0146967881 | B59: Brake hub | C59: PCE | D59: 377 | E59: 119.2225
A60: 0147866001 | B60: Toggle Switch DPDT 3A 250V | C60: PCE | D60: 377 | E60: 94.4407
A61: 0147866002 | B61: Toggle Switch 3 Position | C61: PCE | D61: 377 | E61: 111.4254
A62: 0147866008 | B62: Switch 2-POL | C62: PCE | D62: 377 | E62: 18.3443
A63: 0147866009 | B63: Cover rubber | C63: PCE | D63: 377 | E63: 20.2395
A64: 0147866011 | B64: Switch | C64: PCE | D64: 377 | E64: 22.3407
A65: 0147866012 | B65: Toggle switch | C65: PCE | D65: 377 | E65: 33.6913
A66: 014P281315 | B66: TBi AUT 360-1.5m-Euro-22 | C66: PCE | D66: 324 | E66: 1769
A67: 0151287001 | B67: Wire conduit PKB welding hoses | C67: MTR | D67: 325 | E67: 16.5521
A68: 0151564001 | B68: Insulating Sleeve PKB 400 | C68: PCE | D68: 373 | E68: 40.3142
A69: 0151574009 | B69: Tungsten Pure 1,6x175 mm | C69: PCE | D69: 301 | E69: 15.5427
A70: 0151574010 | B70: Tungsten Pure 2,4x175 mm | C70: PCE | D70: 301 | E70: 25.4204
A71: 0151574011 | B71: Tungsten Pure 3,2x175 mm | C71: PCE | D71: 301 | E71: 34.3711
A72: 0151574037 | B72: Tungsten WC20 1,6x175 mm | C72: PCE | D72: 301 | E72: 19.9408
A73: 0151574038 | B73: Tungsten WC20 2,4x175 mm | C73: PCE | D73: 301 | E73: 33.8046
A74: 0151574039 | B74: Tungsten WC20 3,2x175 mm | C74: PCE | D74: 301 | E74: 55.7539
A75: 0151574050 | B75: Tungsten WL15 1,0x175 mm Gold | C75: PCE | D75: 301 | E75: 12.9986
A76: 0151574051 | B76: Tungsten WL15 1,6x175 mm Gold | C76: PCE | D76: 301 | E76: 19.9408
A77: 0151574052 | B77: Tungsten WL15 2,4x175 mm Gold | C77: PCE | D77: 301 | E77: 33.269
A78: 0151574053 | B78: Tungsten WL15 3,2x175 mm Gold | C78: PCE | D78: 301 | E78: 58.1229
A79: 0151574054 | B79: Tungsten WL15 4,0x175 mm Gold | C79: PCE | D79: 301 | E79: 85.0265
A80: 0151574055 | B80: Tungsten WL15 4,8x175 mm Gold | C80: PCE | D80: 301 | E80: 116.1325
A81: 0151574232 | B81: Tungsten electr. 2,4 Gold Plus | C81: PCE | D81: 301 | E81: 30.3335
A82: 0151574238 | B82: Tungsten WC20 2,4x150 mm | C82: PCE | D82: 301 | E82: 30.9
A83: 0151574242 | B83: Tungsten WC20 2,0x150 mm | C83: PCE | D83: 301 | E83: 21.3828
A84: 0151574246 | B84: Tungsten elec Gold Plus2.0/175 | C84: PCE | D84: 301 | E84: 28.5207
A85: 0151576881 | B85: Gun housing compl. PKB 250/400 | C85: PCE | D85: 373 | E85: 837
A86: 0151729016 | B86: Carbon brush+spring (MLC 42V) | C86: PCE | D86: 377 | E86: 304.6431
A87: 0152450880 | B87: Speed regulator (PKB) | C87: PCE | D87: 377 | E87: 99.2405
A88: 0152451001 | B88: Valve seat PKB 250/400 | C88: PCE | D88: 373 | E88: 56.9281
A89: 0152454880 | B89: Cooling jacket PKB 400 | C89: PCE | D89: 373 | E89: 238.4759
A90: 0152470881 | B90: PKB 400 PP w/straight neck | C90: PCE | D90: 324 | E90: 12044
A91: 0152470882 | B91: PKB 400 PP w/curved neck | C91: PCE | D91: 324 | E91: 12853
A92: 0152475001 | B92: Planet shaft PKB 250/400 (Old) | C92: PCE | D92: 373 | E92: 983
A93: 0152475004 | B93: Motor casing PKB 250/400 | C93: PCE | D93: 373 | E93: 957
A94: 0152475014 | B94: Cylinder PKB 250/400 | C94: PCE | D94: 373 | E94: 1002
A95: 0152475018 | B95: Valve spring PKB 250/400 | C95: PCE | D95: 373 | E95: 8.0031
A96: 0152475023 | B96: Insulation PKB 250/400 | C96: PCE | D96: 373 | E96: 43.7441
A97: 0152475025 | B97: Valve compl. PKB 250/400 | C97: PCE | D97: 373 | E97: 245.0267
A98: 0152475033 | B98: Strainer PKB 250/400 | C98: PCE | D98: 373 | E98: 50.8923
A99: 0152475034 | B99: Housing cover w/grease nipple | C99: PCE | D99: 373 | E99: 713
A100: 0152475035 | B100: Grease nipple PKB 250/400 | C100: PCE | D100: 373 | E100: 129.7594
A101: 0152475036 | B101: Planetary shaft PKB 250/400 | C101: PCE | D101: 373 | E101: 974
A102: 0152475040 | B102: Planetary gear front compl.PKB | C102: PCE | D102: 373 | E102: 2465
A103: 0152475041 | B103: Planetary gear rear compl.PKB | C103: PCE | D103: 373 | E103: 2543
A104: 0152700881 | B104: PKB 250 PP w/straight neck | C104: PCE | D104: 324 | E104: 11714
A105: 0152767001 | B105: Sleeve PKB 400 | C105: PCE | D105: 373 | E105: 130.4289
A106: 0152773880 | B106: Connecting tube PKB 250/400 | C106: PCE | D106: 373 | E106: 146.9604
A107: 0152899001 | B107: Filter PKB 250/400 | C107: PCE | D107: 373 | E107: 1496
A108: 0153043002 | B108: Insulating washer (PKB) | C108: PCE | D108: 377 | E108: 3.9243
A109: 0153093003 | B109: Fan OCE-2H | C109: PCE | D109: 377 | E109: 173.9258
A110: 0153501002 | B110: Contact tip W0.8 M6x38 | C110: PCE | D110: 325 | E110: 9.9498
A111: 0153501004 | B111: Contact tip W1.0 M6x38 | C111: PCE | D111: 325 | E111: 9.9498
A112: 0153501005 | B112: Contact tip W1.2 M6x38 | C112: PCE | D112: 325 | E112: 15.347
A113: 0153501006 | B113: Contact tip W1.4 M6x38 | C113: PCE | D113: 325 | E113: 15.347
A114: 0153501007 | B114: Contact tip W1.6 M6x38 | C114: PCE | D114: 325 | E114: 9.9498
A115: 0153501008 | B115: Contact tip W1.6 Alu M6x38 | C115: PCE | D115: 325 | E115: 15.2337
A116: 0153501009 | B116: Contact tip W2.0 M6x38 | C116: PCE | D116: 325 | E116: 15.2337
A117: 0153501010 | B117: Contact tip W2.4 M6x38 | C117: PCE | D117: 325 | E117: 15.347
A118: 0154352008 | B118: Hose 45mm 15M CarryVac 2 | C118: PCE | D118: 862 | E118: 3045
A119: 0154352015 | B119: Hose 45 mm, 1.6 M CarryVac 2 | C119: PCE | D119: 862 | E119: 262.6912
A120: 0154697880 | B120: Clamp collar PKB 250/400 | C120: PCE | D120: 373 | E120: 161.8542
A121: 0155716880 | B121: Gas flow meter PSF/BTF/TXH | C121: PCE | D121: 373 | E121: 42.8377
A122: 0156388001 | B122: Handle | C122: PCE | D122: 377 | E122: 44.8153
A123: 0156597001 | B123: Connection block Gas | C123: PCE | D123: 377 | E123: 26.4916
A124: 0156602001 | B124: Inlet nozzle 0.8-1.6mm Fe,SS,A | C124: PCE | D124: 318 | E124: 7.9207
A125: 0156602002 | B125: Inlet nozzle 1.6-2.4mm Fe,SS,A | C125: PCE | D125: 318 | E125: 33.6192
A126: 0156603001 | B126: Inter nozzle 0.6-1.6mmFe,SS,Al | C126: PCE | D126: 318 | E126: 33.6192
A127: 0156603002 | B127: Inter nozzle 2.0-2.4mmFe,SS,Al | C127: PCE | D127: 318 | E127: 75.499
A128: 0156626001 | B128: Nut, collet | C128: PCE | D128: 853 | E128: 150.1431
A129: 0156626004 | B129: Impact piston complete for HCB | C129: PCE | D129: 853 | E129: 1059
A130: 0156626006 | B130: REAR BUSHING | C130: PCE | D130: 853 | E130: 57.9066
A131: 0156626007 | B131: Housing middle for HCB | C131: PCE | D131: 853 | E131: 486.5102
A132: 0156626008 | B132: Front spring for HCB | C132: PCE | D132: 853 | E132: 23.5973
A133: 0156626009 | B133: O-ring 29,5x5,7 mm for HCB | C133: PCE | D133: 853 | E133: 43.7029
A134: 0156626010 | B134: Ring for HCB | C134: PCE | D134: 853 | E134: 37.6568
A135: 0156626011 | B135: O-ring 25x8 mm for HCB | C135: PCE | D135: 853 | E135: 56.1453
A136: 0156626012 | B136: Middle lock washer for HCB | C136: PCE | D136: 853 | E136: 81.3906
A137: 0156626013 | B137: Balancing piston for HCB | C137: PCE | D137: 853 | E137: 594
A138: 0156626014 | B138: Housing rear for HCB | C138: PCE | D138: 853 | E138: 848
A139: 0156626015 | B139: Air inlet tube complete HCB | C139: PCE | D139: 853 | E139: 146.1055
A140: 0156626016 | B140: Trigger for HCB | C140: PCE | D140: 853 | E140: 51.0365
A141: 0156626017 | B141: Middle spring for HCB | C141: PCE | D141: 853 | E141: 29.2932
A142: 0156626018 | B142: O-ring 7,66x1,78 mm for HCB | C142: PCE | D142: 853 | E142: 14.1522
A143: 0156626019 | B143: O-ring 5,3x2,4 mm for HCB | C143: PCE | D143: 853 | E143: 14.1522
A144: 0156626020 | B144: Valve pin for HCB | C144: PCE | D144: 853 | E144: 57.2474
A145: 0156626021 | B145: O-ring 5,1x1,6 mm for HCB | C145: PCE | D145: 853 | E145: 14.1522
A146: 0156626022 | B146: Ball retainer for HCB | C146: PCE | D146: 853 | E146: 22.9278
A147: 0156626023 | B147: Cover for HCB | C147: PCE | D147: 853 | E147: 73.1403
A148: 0156626024 | B148: Rubber washer for HCB | C148: PCE | D148: 853 | E148: 16.8611
A149: 0156626025 | B149: Rear lock washer for HCB | C149: PCE | D149: 853 | E149: 17.5306
A150: 0156626026 | B150: Rear spring for HCB | C150: PCE | D150: 853 | E150: 20.2292
A151: 0156626027 | B151: NIPPLE HCA/HCB | C151: PCE | D151: 853 | E151: 154.1807
A152: 0156626028 | B152: Sleeve for HCB | C152: PCE | D152: 853 | E152: 22.9278
A153: 0156626029 | B153: O-ring 13,3x2,4 mm for HCB | C153: PCE | D153: 853 | E153: 14.8217
A154: 0156626031 | B154: VALVEBALL HCA/HCB | C154: PCE | D154: 853 | E154: 18.8799
A155: 0156626032 | B155: SCREW HCA/HCB | C155: PCE | D155: 853 | E155: 38.2336
A156: 0156626033 | B156: O-ring 9,3x2,4 mm for HCB | C156: PCE | D156: 853 | E156: 14.1522
A157: 0156626034 | B157: Clamping ring for HCB | C157: PCE | D157: 853 | E157: 40.9631
A158: 0156627001 | B158: Chisel 15x100 mm for HCB | C158: PCE | D158: 853 | E158: 363.1368
A159: 0156627002 | B159: Chisel 35x100 mm for HCB | C159: PCE | D159: 853 | E159: 450.0791
A160: 0156627004 | B160: Chisel sound damping for HCB | C160: PCE | D160: 853 | E160: 875
A161: 0156627005 | B161: Chisel Extension for HCB | C161: PCE | D161: 853 | E161: 438.2856
A162: 0156627006 | B162: Chisel 15x200 mm for HCB | C162: PCE | D162: 853 | E162: 399.5679
A163: 0156627007 | B163: Chisel 15x300 mm for HCB | C163: PCE | D163: 853 | E163: 412.5665
A164: 0156633003 | B164: Reel cover | C164: PCE | D164: 377 | E164: 48.1937
A165: 0156688001 | B165: Magnetic plate (MEH30/44) | C165: PCE | D165: 377 | E165: 20.2292
A166: 0156705006 | B166: Outlet nozzle 0.8-1.2MM FE,SS | C166: PCE | D166: 318 | E166: 91.0623
A167: 0156706001 | B167: Cable connection block (WFU) | C167: PCE | D167: 377 | E167: 95.8724
A168: 0156707001 | B168: Spacer (MED/MEH) | C168: PCE | D168: 377 | E168: 16.5109
A169: 0156707002 | B169: Adjustment spacer (WFU) | C169: PCE | D169: 377 | E169: 31.4665
A170: 0156728010 | B170: Motor C/W tacho 12V (MEH44) | C170: PCE | D170: 377 | E170: 860
A171: 0156728011 | B171: Motor 12V (MEH44) | C171: PCE | D171: 377 | E171: 941
A172: 0156728012 | B172: Drive Unit 12VDC | C172: PCE | D172: 377 | E172: 1008
A173: 0156743907 | B173: Return cable L=4,5M 50 MM2 | C173: PCE | D173: 377 | E173: 557
A174: 0156868880 | B174: Cable connector OKC 50 TIGAID | C174: PCE | D174: 377 | E174: 204.2593
A175: 0157121016 | B175: Gas lens 0,5-1,0mm | C175: PCE | D175: 301 | E175: 28.9945
A176: 0157121017 | B176: Gas lens 1,6mm | C176: PCE | D176: 301 | E176: 28.9945
A177: 0157121018 | B177: Gas lens 2,4mm | C177: PCE | D177: 301 | E177: 28.9945
A178: 0157121032 | B178: Gas lens nozzle 6,4mm | C178: PCE | D178: 301 | E178: 3.6977
A179: 0157121033 | B179: Gas lens nozzle 8,0mm | C179: PCE | D179: 301 | E179: 3.6977
A180: 0157121034 | B180: Gas lens nozzle 9,8mm | C180: PCE | D180: 301 | E180: 3.6977
A181: 0157121039 | B181: Gas lens nozzle 11,2mm | C181: PCE | D181: 301 | E181: 4.1921
A182: 0157121040 | B182: Gas lens nozzle 12,7mm | C182: PCE | D182: 301 | E182: 4.1921
A183: 0157121041 | B183: Gas lens 3,2mm | C183: PCE | D183: 301 | E183: 28.8606
A184: 0157123010 | B184: Collet 1,0mm | C184: PCE | D184: 301 | E184: 6.077
A185: 0157123011 | B185: Collet 1,6mm | C185: PCE | D185: 301 | E185: 6.077
A186: 0157123012 | B186: Collet 2,4mm | C186: PCE | D186: 301 | E186: 6.077
A187: 0157123013 | B187: Collet 3,2mm | C187: PCE | D187: 301 | E187: 6.077
A188: 0157123014 | B188: Collet 4,0mm | C188: PCE | D188: 301 | E188: 6.2521
A189: 0157123015 | B189: Collet body 1,0mm | C189: PCE | D189: 301 | E189: 12.4012
A190: 0157123016 | B190: Collet body 1,6mm | C190: PCE | D190: 301 | E190: 12.4012
A191: 0157123017 | B191: Collet body 2,4mm | C191: PCE | D191: 301 | E191: 12.4012
A192: 0157123018 | B192: Collet body 3,2mm | C192: PCE | D192: 301 | E192: 12.4012
A193: 0157123019 | B193: Collet body 4,0mm | C193: PCE | D193: 301 | E193: 12.2879
A194: 0157123021 | B194: Gas lens 0,5-1,0mm | C194: PCE | D194: 301 | E194: 31.2914
A195: 0157123022 | B195: Gas lens 1,6mm | C195: PCE | D195: 301 | E195: 31.0236
A196: 0157123023 | B196: Gas lens 2,4mm | C196: PCE | D196: 301 | E196: 31.2914
A197: 0157123024 | B197: Gas lens 3,2mm | C197: PCE | D197: 301 | E197: 31.0236
A198: 0157123025 | B198: Gas lens 4,0mm | C198: PCE | D198: 301 | E198: 31.0236
A199: 0157123028 | B199: Back cup short | C199: PCE | D199: 301 | E199: 13.2046
A200: 0157123029 | B200: Back cup long | C200: PCE | D200: 301 | E200: 15.7075
... 4695 more rows

Sheet Zakres (hidden)
A1: Item | B1: Name | C1: Grupa produktów
A2: 0000237320 | B2: CONTACT JAW 3,0-3,2 MM | C2: Automatyzacja
A3: 0000237321 | B3: CONTACT JAW 4,0 MM | C3: Automatyzacja
A4: 0000237327 | B4: NOZZLE WITH CAP 4,0 MM | C4: Automatyzacja
A5: 0000237331 | B5: NOZZLE CAP | C5: Automatyzacja
A6: 0000237415 | B6: NOZZLE HOLDER | C6: Automatyzacja
A7: 0020301780 | B7: Flux strainer OPC | C7: Automatyzacja
A8: 0030465385 | B8: CONTACT DEVICE A6 | C8: Automatyzacja
A9: 0030465389 | B9: CONTACT DEVICE A2 | C9: Automatyzacja
A10: 0040561301 | B10: Bushing Detension Set | C10: Automatyzacja
A11: 0040561401 | B11: SHAFT | C11: Automatyzacja
A12: 0040887080 | B12: CURRENT RELAY (LAE)800 | C12: Automatyzacja
A13: 0040894001 | B13: CONNECTION BLOCK | C13: Automatyzacja
A14: 0040979501 | B14: Rubber belt, 785 mm A6C | C14: Automatyzacja
A15: 0040980080 | B15: SHUNT 800A/60MV A2/A6 | C15: Automatyzacja
A16: 0144998882 | B16: Hose Set (A2/A6G) | C16: Automatyzacja
A17: 0145063895 | B17: VEC Sq R 4000rpm 312:1 42V | C17: Automatyzacja
A18: 0145063896 | B18: VEC Sq R 4000rpm 156:1 42V | C18: Automatyzacja
A19: 0145063897 | B19: VEC Sq R 4000rpm 74:1 42V | C19: Automatyzacja
A20: 0145063905 | B20: VEC Sq L 4000rpm 312:1 42V | C20: Automatyzacja
A21: 0145063906 | B21: VEC Sq L 4000rpm 156:1 42V | C21: Automatyzacja
A22: 0145063907 | B22: VEC Sq L 4000rpm 74:1 42V | C22: Automatyzacja
A23: 0145063909 | B23: Motor with gear A6 VEC | C23: Automatyzacja
A24: 0145073001 | B24: Lining | C24: Automatyzacja
A25: 0145131002 | B25: Insulation sleeve | C25: Automatyzacja
A26: 0145131003 | B26: Insulation sleeve A6 | C26: Automatyzacja
A27: 0145131004 | B27: Insulation sleeve (2 halves) | C27: Automatyzacja
A28: 0145221881 | B28: Flux funnel D20 A2 | C28: Automatyzacja
A29: 0145226001 | B29: Insulator (A2/A6G) | C29: Automatyzacja
A30: 0145227882 | B30: Gas nozzle A2/A6 | C30: Automatyzacja
A31: 0145501001 | B31: Suction nozzle, butt weld | C31: Automatyzacja
A32: 0145502001 | B32: Suction nozzle, butt weld | C32: Automatyzacja
A33: 0145503001 | B33: Suction nozzle OPB 130 | C33: Automatyzacja
A34: 0145504001 | B34: Suction nozzle, fillet w. left | C34: Automatyzacja
A35: 0145505001 | B35: Suction nozzle,fillet w. right | C35: Automatyzacja
A36: 0145534882 | B36: Contact tube A2/A6G | C36: Automatyzacja
A37: 0145538881 | B37: Feed roller 0.8MM (A2 OLD) | C37: Automatyzacja
A38: 0145538883 | B38: Feed roller 1.2MM (A2/A6) | C38: Automatyzacja
A39: 0145565001 | B39: Lining | C39: Automatyzacja
A40: 0145730001 | B40: Shaft (square) A6 VEC | C40: Automatyzacja
A41: 0145740880 | B41: Suction Nozzle | C41: Automatyzacja
A42: 0145787880 | B42: Wire Straightener Light Twin | C42: Automatyzacja
A43: 0145815001 | B43: Ring | C43: Automatyzacja
A44: 0145815002 | B44: Locking ring | C44: Automatyzacja
A45: 0145824881 | B45: Valve OAP/OPC | C45: Automatyzacja
A46: 0145862001 | B46: Nut (manual slide) A2 | C46: Automatyzacja
A47: 0146024880 | B47: Feed roller knurl. 0,8-1.6mm | C47: Automatyzacja
A48: 0146024881 | B48: Feed roller knurl. 2,0-4,0mm | C48: Automatyzacja
A49: 0146024882 | B49: Feed roller knurl. 5,0-7,0mm | C49: Automatyzacja
A50: 0146025880 | B50: Press.roller knurl. 0,8-1,6mm | C50: Automatyzacja
A51: 0146025881 | B51: Press.roller knurl. 2,0-4,0mm | C51: Automatyzacja
A52: 0146094001 | B52: Extension (A6G Contact Unit) | C52: Automatyzacja
A53: 0146099001 | B53: Plug (A6G Contact Unit) | C53: Automatyzacja
A54: 0146253001 | B54: Stub shaft A6 | C54: Automatyzacja
A55: 0146586001 | B55: Guide Finger Probe (GMC) | C55: Automatyzacja
A56: 0146867001 | B56: Cover (VEC) | C56: Automatyzacja
A57: 0146869001 | B57: Cover plate (VEC) | C57: Automatyzacja
A58: 0146967880 | B58: Brake hub heavy duty (A2/A6) | C58: Automatyzacja
A59: 0147018892 | B59: VEC Co R 4000rpm 672:1 42V | C59: Automatyzacja
A60: 0147018895 | B60: VEC Co R 4000rpm 312:1 42V | C60: Automatyzacja
A61: 0147018905 | B61: VEC Co L 4000rpm 312:1 42V | C61: Automatyzacja
A62: 0147020005 | B62: Rotor 8000r/m,75V A6-VEC | C62: Automatyzacja
A63: 0147020009 | B63: Rotor 8000 r/m,42V A6-VEC | C63: Automatyzacja
A64: 0147333001 | B64: Tip Adaptor M10 to M6 (A2/6) | C64: Automatyzacja
A65: 0147384881 | B65: Holder OPC | C65: Automatyzacja
A66: 0147392001 | B66: Strip | C66: Automatyzacja
A67: 0147568880 | B67: Flux Valve (OPB) | C67: Automatyzacja
A68: 0147576001 | B68: Worm screw (VEC 74:1) | C68: Automatyzacja
A69: 0147576002 | B69: Worm wheel (VEC 74:1) | C69: Automatyzacja
A70: 0147577001 | B70: Worm screw (VEC 156:1) | C70: Automatyzacja
A71: 0147577002 | B71: Worm wheel (VEC 156:1) | C71: Automatyzacja
A72: 0147639880 | B72: Wire straightener RIGHT D35 | C72: Automatyzacja
A73: 0147639881 | B73: Wire straightener LEFT D35 | C73: Automatyzacja
A74: 0147639882 | B74: Wire straightener RIGHT D20 | C74: Automatyzacja
A75: 0147639887 | B75: W. straight. twin RIGHT D35 | C75: Automatyzacja
A76: 0147640880 | B76: Ejector | C76: Automatyzacja
A77: 0147640881 | B77: Ejector OPC | C77: Automatyzacja
A78: 0147645001 | B78: Mounting A6 | C78: Automatyzacja
A79: 0147649881 | B79: Flux Hopper 10L (A6) | C79: Automatyzacja
A80: 0147866004 | B80: Toggle Switch (PEG) | C80: Automatyzacja
A81: 0148107001 | B81: Holder (A6) | C81: Automatyzacja
A82: 0148107002 | B82: Holder (A6/OPC) | C82: Automatyzacja
A83: 0148107003 | B83: Holder (A6/OPC/OGA) | C83: Automatyzacja
A84: 0148140880 | B84: OPC flux recovery unit | C84: Automatyzacja
A85: 0148141001 | B85: Cyclone case (OPC) | C85: Automatyzacja
A86: 0148142001 | B86: Pipe | C86: Automatyzacja
A87: 0148143001 | B87: Cover plate OPC | C87: Automatyzacja
A88: 0148144001 | B88: Prof.clamping ring OPC | C88: Automatyzacja
A89: 0148325001 | B89: Contact jaw (A6 STRIP HEAD) | C89: Automatyzacja
A90: 0148487881 | B90: Bracket for Fluxhopper A6 | C90: Automatyzacja
A91: 0148636002 | B91: Transformer 190-500V/42V 660W | C91: Automatyzacja
A92: 0148772880 | B92: Feed roller twin 2,5MM (A2-A6) | C92: Automatyzacja
A93: 0148799001 | B93: Washer A6 A2 | C93: Automatyzacja
A94: 0148837001 | B94: Window (A6 Flux Hopper) | C94: Automatyzacja
A95: 0153093003 | B95: Fan OCE-2H | C95: Automatyzacja
A96: 0153141001 | B96: Holder A 6 | C96: Automatyzacja
A97: 0153141002 | B97: Holder A 6 | C97: Automatyzacja
A98: 0153142001 | B98: Lamp holder (Guide Lamp) | C98: Automatyzacja
A99: 0153142002 | B99: Lens tube (Guide Lamp) | C99: Automatyzacja
A100: 0153142003 | B100: Bulb | C100: Automatyzacja
A101: 0153142880 | B101: Pilot lamp (A2/A6) | C101: Automatyzacja
A102: 0153142881 | B102: Pilot lamp (A2/A6) | C102: Automatyzacja
A103: 0153143880 | B103: Guide lamp+holder D35+D20 | C103: Automatyzacja
A104: 0153143885 | B104: Guide lamp+holder D35+D20 | C104: Automatyzacja
A105: 0153148880 | B105: Roller (A6 STRAIGHTENER) | C105: Automatyzacja
A106: 0153290002 | B106: Tube holder | C106: Automatyzacja
A107: 0153296001 | B107: Flux tube (Bent) A6 | C107: Automatyzacja
A108: 0153299880 | B108: Flux nozzle (A6) | C108: Automatyzacja
A109: 0153347880 | B109: Valve | C109: Automatyzacja
A110: 0153347881 | B110: Flux valve A2 MINIT | C110: Automatyzacja
A111: 0153348001 | B111: Flux nozzle | C111: Automatyzacja
A112: 0153401001 | B112: Bushing (Guide Lamp) | C112: Automatyzacja
A113: 0153425001 | B113: Knob (FLUX NOZZLE) A6 | C113: Automatyzacja
A114: 0153482001 | B114: Wire guide (A6T) | C114: Automatyzacja
A115: 0153491001 | B115: Branching tube (A6) | C115: Automatyzacja
A116: 0153856882 | B116: Flux container 1L A6 | C116: Automatyzacja
A117: 0153872880 | B117: Wire drum (plastic) 25KG | C117: Automatyzacja
A118: 0154007001 | B118: Container | C118: Automatyzacja
A119: 0154203880 | B119: Guide rail 3M (A2/A6 TRACTORS) | C119: Automatyzacja
A120: 0154221003 | B120: Spring PRB/PRC71-160 | C120: Automatyzacja
A121: 0154363001 | B121: Sleeve (A6 Conduit) | C121: Automatyzacja
A122: 0154375001 | B122: Nipple (A6 Conduit) | C122: Automatyzacja
A123: 0154381001 | B123: Contact tube D20 (A2/A6) | C123: Automatyzacja
A124: 0154463880 | B124: Runner 150mm (To Slide) | C124: Automatyzacja
A125: 0154465880 | B125: Slide 90mm Travel | C125: Automatyzacja
A126: 0154465881 | B126: Slide 210mm Travel | C126: Automatyzacja
A127: 0154465882 | B127: Slide 330mm Travel | C127: Automatyzacja
A128: 0154465883 | B128: Slide 450mm Travel | C128: Automatyzacja
A129: 0154623002 | B129: Contact tip 5.0MM A6 | C129: Automatyzacja
A130: 0154623003 | B130: Contact tip 4.0MM A2/A6 | C130: Automatyzacja
A131: 0154623004 | B131: Contact tip 3.2MM A2/A6 | C131: Automatyzacja
A132: 0154623005 | B132: Contact tip 3.0MM A2/A6 | C132: Automatyzacja
A133: 0154623006 | B133: Contact tip 2.5MM A2/A6 | C133: Automatyzacja
A134: 0154623007 | B134: Contact tip 2.0MM A2/A6 | C134: Automatyzacja
A135: 0154623008 | B135: Contact tip 1.6MM A2/A6 | C135: Automatyzacja
A136: 0154624880 | B136: Flux tube holder (A6) | C136: Automatyzacja
A137: 0154734001 | B137: Clamp (Brake Hub) A2/A6 | C137: Automatyzacja
A138: 0154737001 | B138: Arm OPC | C138: Automatyzacja
A139: 0154738001 | B139: Arm OPC | C139: Automatyzacja
A140: 0154739001 | B140: Bracket OPC | C140: Automatyzacja
A141: 0155197001 | B141: Contact tube D20(BENT) (A2/A6) | C141: Automatyzacja
A142: 0155244001 | B142: Wire liner L=3 MTR A21 | C142: Automatyzacja
A143: 0155966001 | B143: Filter | C143: Automatyzacja
A144: 0155969001 | B144: Filter bag (OPB) | C144: Automatyzacja
A145: 0156449001 | B145: Clamp (A6 Straightener) | C145: Automatyzacja
A146: 0156530001 | B146: Clamp half (A6 Straightener) | C146: Automatyzacja
A147: 0156531001 | B147: Clamp half (A6 Straightener) | C147: Automatyzacja
A148: 0156726001 | B148: Telescopic bellows D30/70x330 | C148: Automatyzacja
A149: 0156726003 | B149: Telescopic bellows D40/20x539 | C149: Automatyzacja
A150: 0156800002 | B150: LF-hose D 8/4 L=1,0 m | C150: Automatyzacja
A151: 0157123103 | B151: Gas lens 18XLGL18 | C151: Automatyzacja
A152: 0157123105 | B152: Gas lens 18XLGL36 | C152: Automatyzacja
A153: 0157172001 | B153: Bulb 6V 5W (Guide Lamp) | C153: Automatyzacja
A154: 0158115880 | B154: Cable inlet | C154: Automatyzacja
A155: 0158117880 | B155: Cable inlet guide (LAN/LAR) | C155: Automatyzacja
A156: 0160570001 | B156: Friction coupling (LAE) | C156: Automatyzacja
A157: 0160684886 | B157: Fuse link 1160 Amp (LAD) | C157: Automatyzacja
A158: 0160969001 | B158: Rheostat 22/50G 1K6 (LAE) | C158: Automatyzacja
A159: 0163139002 | B159: Insulator A2 | C159: Automatyzacja
A160: 0190315109 | B160: Hose D 35/25 | C160: Automatyzacja
A161: 0190343104 | B161: Water Hose (OCE) | C161: Automatyzacja
A162: 0190531201 | B162: Bearing SKF 3201 | C162: Automatyzacja
A163: 0190680303 | B163: O-RING (W/C NOZZLE) 5.3X2.4 | C163: Automatyzacja
A164: 0190680313 | B164: O-RING (W/C NOZZLE) 15.3X2.4 | C164: Automatyzacja
A165: 0190680405 | B165: O-RING (W/C NOZZLE) 22.2X3 | C165: Automatyzacja
A166: 0190726003 | B166: Ball bearing SKF 6003 2RS | C166: Automatyzacja
A167: 0191005104 | B167: Knob (PEF/PTF/PAG) | C167: Automatyzacja
A168: 0191011111 | B168: Selector switch (PEF) | C168: Automatyzacja
A169: 0191011112 | B169: Selector switch (PAF1/12) | C169: Automatyzacja
A170: 0191011114 | B170: Arc strike switch (PEF) | C170: Automatyzacja
A171: 0191011115 | B171: Selector switch (PEF) | C171: Automatyzacja
A172: 0191011116 | B172: Switch direction/travel (PTF) | C172: Automatyzacja
A173: 0191011117 | B173: Selector switch (PAF1) | C173: Automatyzacja
A174: 0191017103 | B174: CONTACTOR 110/127V | C174: Automatyzacja
A175: 0191032101 | B175: Relay (PEF) | C175: Automatyzacja
A176: 0191032102 | B176: Relay (PEF) | C176: Automatyzacja
A177: 0191085105 | B177: Capacitor 5UF 400V | C177: Automatyzacja
A178: 0191632202 | B178: EMERGENCY STOP | C178: Automatyzacja
A179: 0191870111 | B179: POTENTIOMETER 2KOHM 2W (PHB1) | C179: Automatyzacja
A180: 0192238287 | B180: SCREW IN6 STEEL 8.8 M4X8 | C180: Automatyzacja
A181: 0192296104 | B181: Knob C/W Pointer 6X20mm | C181: Automatyzacja
A182: 0192372006 | B182: STICKER 40x70 YELLOW ESAB | C182: Automatyzacja
A183: 0192372011 | B183: STICKER 120x180 YELLOWESAB | C183: Automatyzacja
A184: 0192372013 | B184: STICKER 360x240 YELLOWESAB | C184: Automatyzacja
A185: 0192519001 | B185: RUBBER AB1 | C185: Automatyzacja
A186: 0192541003 | B186: PIN CONTACT 2,5 MM2 | C186: Automatyzacja
A187: 0192645002 | B187: BUSHING TET 10-1 | C187: Automatyzacja
A188: 0192855002 | B188: TIGHTENING STRAP (OPC) | C188: Automatyzacja
A189: 0193114001 | B189: SLEVE PLUG 14 POL. 22-19S | C189: Automatyzacja
A190: 0193358102 | B190: CONTACTOR 42V (LAE800) | C190: Automatyzacja
A191: 0193444102 | B191: CONTACTOR EH100 42V | C191: Automatyzacja
A192: 0193550005 | B192: Microswitch (POB) | C192: Automatyzacja
A193: 0193570131 | B193: LOCKING ARM (A2 Multitrac) | C193: Automatyzacja
A194: 0193586104 | B194: CIRCUIT BREAKER 20A | C194: Automatyzacja
A195: 0193733012 | B195: ADJUSTING RING | C195: Automatyzacja
A196: 0194091002 | B196: AUTOMATIC FUSE K16A | C196: Automatyzacja
A197: 0211102962 | B197: ROLL PIN D 5X40 | C197: Automatyzacja
A198: 0212900001 | B198: FIXING SCREW (A6 STRAIGHTENER) | C198: Automatyzacja
A199: 0212901101 | B199: SHAFT STUD(for knurled roller) | C199: Automatyzacja
A200: 0212902601 | B200: SPACING SCREW(A2 STRAIGHTENER) | C200: Automatyzacja
... 6978 more rows

Sheet Indeks (hidden)
A1: Arkusz | B1: Gin | C1: Opis | D1: Cena | E1: =COUNTA(A:A) -> 27 | G1: Numer w opisie arkusza (dane pomocnicze) | H1: Pomiń arkusz ("1")
A2: 1 | B2: 2 | C2: 3 | D2: 5 | G2: 1
A3: 2 | B3: 2 | C3: 3 | D3: 5 | G3: 2 | H3: 1
A4: 3 | B4: 2 | C4: 3 | D4: 5 | G4: 3
A5: 4 | B5: 1 | C5: 2 | D5: 3 | G5: 4
A6: 5 | B6: 2 | C6: 1 | D6: 3 | G6: 5
A7: 6 | B7: 2 | C7: 1 | D7: 3 | G7: 6
A8: 7 | B8: 2 | C8: 1 | D8: 3 | G8: 6a
A9: 8 | B9: 2 | C9: 1 | D9: 3 | G9: 7
A10: 9 | B10: 2 | C10: 1 | D10: 3 | G10: 8
A11: 10 | B11: 2 | C11: 1 | D11: 3 | G11: 9
A12: 11 | B12: 2 | C12: 1 | D12: 3 | G12: 10
A13: 12 | B13: 2 | C13: 1 | D13: 3 | G13: 11
A14: 13 | B14: 2 | C14: 1 | D14: 3 | G14: 12
A15: 14 | B15: 2 | C15: 1 | D15: 3 | G15: 13
A16: 15 | B16: 2 | C16: 1 | D16: 3 | G16: 14
A17: 16 | B17: 2 | C17: 1 | D17: 3 | G17: 14a
A18: 17 | B18: 2 | C18: 5 | D18: 3 | G18: 15
A19: 18 | B19: 3 | C19: 1 | D19: 5 | G19: 16
A20: 19 | B20: 3 | C20: 1 | D20: 5 | G20: 18
A21: 20 | B21: 3 | C21: 1 | D21: 5 | G21: 19
A22: 21 | B22: 1 | C22: 3 | D22: 4 | G22: 20
A23: 22 | B23: 1 | C23: 3 | D23: 4 | G23: 21 | H23: 1
A24: 23 | B24: 1 | C24: 2 | D24: 3 | G24: 22
A25: 24 | B25: 1 | C25: 2 | D25: 3 | G25: 23
A26: 25 | B26: 1 | C26: 2 | D26: 3 | G26: 24
A27: 26 | B27: 1 | C27: 2 | D27: 3 | G27: 25

Sheet Temp (hidden)
